{"text_format":"3","workbook":"xlsx","n_sheets":7,"sheets":["Risk template_Jan2019","Risk template_JUNE 2026","Contractor Baseline template","Consequence rating","Likelihood rating","Risk control effectiveness","Risk matrix"],"not_rendered":{"external_links":2,"defined_names":10,"comments":1},"read":"whole","date_system":"1900"}

{"sheet":"Risk template_Jan2019","index":0,"n_rows":31,"n_cols":30,"rows_kept":31,"hidden":true,"merged":[[0,0,0,1],[0,2,0,9],[0,10,0,11],[0,12,0,15],[0,17,0,19],[2,0,4,1],[2,2,4,4],[2,5,4,7],[2,8,4,9],[2,10,2,11],[3,10,3,11],[4,10,4,11],[5,0,5,19],[6,1,6,2],[6,3,6,10],[6,11,6,15],[6,17,6,20],[6,22,6,29],[7,12,7,13],[7,14,8,14],[7,18,7,19],[7,20,8,20],[7,27,7,28],[9,0,11,0],[14,0,18,0],[20,0,26,0],[27,0,30,0]]}
["Project/Dept:",null,"NOSNO",{"$nulls":7},"Scope of Risk Assessment:",null,"Performing work activities in NOSNO Section",{"$nulls":3},"Next Review Date:  ","23-01-2021",null,null,"Unique identifier","240-70044602"]
[]
[" Date: 24-01-2019",null,"Prepared by: ",null,null,"NOSNO Team (9 Staff)",null,null,"Authorised by:   ",null,"Name: Dayahalan Chetty",{"$nulls":9},"Revision:",0,null,null," "]
[{"$nulls":10},"Signed:___________________________________",{"$nulls":9},"Revision date:","2016-04-01"]
[{"$nulls":10},"Date:_____24 January 2019_____________"]
["Refer to Occupational Health and Safety Risk assessment procedure 32-520"]
["1: List activity","2:  Hazard identification",null,"3:  Risk identification",{"$nulls":7},"4:  Assess & Analyse Risks",{"$nulls":5},"5: Evaluate Risk",{"$nulls":4},"6:  Reduce & Eliminate Risk"]
["List activity","Hazard nr","Hazard Identification","Risk Nr","Exposed group/employees","Risk Owner","Exposure patterns","Associated risk","Risk type"," Conditions(Normal/Abnormal)","Cause(s) of the risk","What are the Consequences?","First determine Consequence and then the Likelihood of that Consequence.",null,"Risk Priority Rating","Existing Controls",null,"Additional Controls or Tasks Aimed at improving Existing Controls","First determine Consequence and then the Likelihood of that Consequence.",null,"Risk Priority Rating","Monitoring  Mechanisms","Control Owner","Legal and Other Requirements","Initial Target Date","Revised Target Date","Current Status","Independent Verification\n(i.e. Confirmation that the objectives have been met)",null,"Comments"]
["List specific activities to be performed taking into consideration the equipment to be used, the personnel involved in the task.","#","A hazard is anything that is likely to lead to an event that will have an adverse impact on achieving an objective. A hazard can pose more than one risk.","#","Who is exposed to the hazard i.e.  Employees, visitors, members of the public, etc.","Who is accountable for making sure the controls and monitors are:\n-  in place,\n-  implemented,\n-  regularly reviewed for effectiveness.","The frequency and duration  the person/group is exposed to the hazard e.g. Daily for 3 hrs.","A physical event occurs in relation to the hazard","Safety or health","Indicate Yes or No.  These short-term changes to conditions that could not be reasonably anticipated e.g. Emergencies","What causes the risk to come into effect?","What is the expected adverse impact on the objective?","Consequence","Likelihood",null,"Include:\n- Preventative Controls\n(controls implemented to eliminate hazards or reduce the likelihood of the risk occurring), and\n- Reactive Controls \n(controls implemented to reduce the immediate impact of the risk occurring)    ","RCE\nRisk Control Effectiveness","Include:\n- Preventative Controls\n(controls implemented to eliminate hazards or reduce the likelihood of the risk occurring), and\n- Reactive Controls \n(controls implemented to reduce the immediate impact of the risk occurring)  ","Consequence","Likelihood",null,"How we know if we are succeeding. Include comments on effectiveness.\nThis may include i.e. measurements, inspections, supervision where necessary.","Person allocated the responsibility for implementing the agreed controls ","Where relevant, list the relevant legislative and or Eskom requirements that prescribe the control.","Once a date has been agreed to, this  can not be changed","Used if, for any reason, a Target Date is revised.  Use the Comments field to explain.","Pending,\nIn Progress,\nComplete","Date Done:","By whom:","Comments"]
["Driving of vehicles",1,"Driving ",1,"ALL","Managers, Supervisors, Drivers","± 1hrs per driver/day","Involved in accident","Safety","Normal","Not adhering to the regulation, speed limit,Not paying attention, not farmialr with the road,making use of cellphone, distractions, exposed to unsafe behavours, congested roads, Pedestrians and live stock, Taxi and Truck on the road, Civil unrest. Negligent driving/fatigue","Fatalities,Injuries, Property damage",6,3,"l","Staff driving vehicles to have national driver's license and Eskom driver's evaluation permit, vehicles in roadworthy condition, only transport authorised staff in vehicle and obeying of all traffic laws, Adherence to life saving rules. Discuss MVA's in safety meetings to increase awareness.","F","To adhere to the existing controls",{"$f":"M10","v":6},{"$f":"N10","v":3},{"$f":"O10","v":"l"},"Incident records, annual driver risk assessments, annual vehicle inspections","Manager and Staff","National Road Safety Act. ESKOM Procedure 32-93 (Vehicle and driver safety management) . ESKOM Procedure 36-588 (Vehicle safety and transportation management) , Life saving rules","N/A","N/A","In Progress","N/A","N/A","N/A"]
[null,2,"Parking of vehicles outside Eskom premises.",2,"ALL","Drivers/Passengers ","When attending meetings ","Hijacking, attacked, robberies vehicles could be stolen or Damaged","Safety","Normal","Shortage of secured parking","Injuries,loss/damage to property",5,3,"II","Staff receive awareness during safety talks ","P","PC-Arrange with meeting convener to organise parking for meeting where possible.\n\nRC-If being Hi-jacked be summisive, no eye contact, no sudden movements",{"$f":"M11","v":5},2,{"$f":"O11","v":"II"},"Incident Stats","Manager and Staff","NA","N/A","N/A","In Progress","N/A","N/A","N/A"]
[null,3,"Stray/wild animals",{"$f":"B12","v":3},"ALL","Managers, Supervisors, Drivers","When attending meetings ","Involved in accidents (MVA/Property)","Safety/Environmental","Normal","Wildlife on road, drivers not observant enough","Fatalities,Injuries, Property damage",5,4,"I","Drivers to adhere to road regulations","P","Adhere to the existing controls",{"$f":"M12","v":5},4,"I","Incident Stats","Manager and Staff","National Road Safety Act. ESKOM Procedure 32-93 (Vehicle and driver safety management) . ESKOM Procedure 36-588 (Vehicle safety and transportation management) , Life saving rules","N/A","N/A","In Progress","N/A","N/A","N/A"]
["Computer use and office work",4,"Working on PC's, sitting position, use of mouse and keyboard , type of chairs, ( Poor Ergonomics)",{"$f":"B13","v":4},"ALL","Managers, Supervisors, SHE Reps","Daily","Back and neck injuries, straining of legs, straining of eyes","Health","Normal","Bad posture, incorrect working position, chairs not ergonomically designed, incorrect work station layout, ","Work related upper limb disorders, repetetive strain syndrome, capal tunnel syndrome, eye strain",3,4,"IV","Safety talks,Awareness,  Avoid long working sessions, take regular breaks, conduct medical checks ","P","Supplement chairs with lumber support ",3,4,"IV","Incident/Medical records and Inspections","Manager and Staff","OHSA R1010 r1, OHSA R924 r8(a)(c)  [Provide employee whose work can effectively performed while sitting with ergonomically sound seating,Provide seats with backrests]","N/A","N/A","In Progress","N/A","N/A","N/A"]
["Make use of the hydroboil",5," Hot water ",5,"ALL","Managers, Supervisors, all employees","Daily","Injuries ","Safety","Normal","Air trapped within Hydroboil causing hot water to splash on person , leaking tap","Injury, burns",4,4,"III","Awareness, focussing on task at hand, Excersise caution when opening the taps, Adhere to warning signs","P","NA","NA","NA","NA","Incident records","Manager and Staff","OHSAct section 8 (1): Employer shall provide and maintain as far as is reasonably practicable a working environment that is safe and without risk to the health of his employees.","N/A","N/A","In Progress","N/A","N/A","N/A"]
["Working in the field",28,"Insects ",28,"ALL","Managers, Supervisors, all employees","Daily","Insects bites","Health","Normal","Insects disturbance, Weather conditions ","Experience burning, pain, itching, rediness, headache, rash, nausea, vomiting",5,4,"III","OPERATIONAL CONTROL: Individuals to be aware of their status regarding allergies. Seek immediate emergency care for treatment. Treatment may include: Wash the area well with soap and water. Apply a cold or ice pack wrapped in a cloth, or a cold, wet washcloth to the site. Protect against infection.  Elevate the site if the bite occured on an arm or leg (to help prevent swelling). PROGRAMME: SHE talks, medical surveillance and situational awereness.","P","Maintain existing control measures",5,4,"III","Incident records","Manager and Staff","OHSAct section 8 (1): Employer shall provide and maintain as far as is reasonably practicable a working environment that is safe and without risk to the health of his employees.","N/A","N/A","In Progress","N/A","N/A","N/A"]
[null,29,"Bees",29,"ALL","Managers, Supervisors, all employees","Daily","Bee stings","Health","Normal","Employees with Anaphylaxis for bee stings are especially at high risk","Allergic reaction ie. pain, redness. swelling, itching, sweating, anxiety, dizziness or fainting. Possible fatality.",5,4,"III","Individuals to be aware of their status regarding allergies and inform rest of group.  In the case of a bee sting, make use of a first aider.","P","Employees to confirm for bee allergies, always ensure that you are accompanied on site when  not sure about allergies, identification of high risk areas, provision insecticides,",5,4,"III","Incident records","Manager and Staff","OHSAct section 8 (1): Employer shall provide and maintain as far as is reasonably practicable a working environment that is safe and without risk to the health of his employees.","N/A","N/A","In Progress","N/A","N/A","N/A"]
[null,30,"Snakes/Scorpions",30,"ALL","Managers, Supervisors, all employees","Daily","Snake/scorpions bites","Health","Normal","Working in the field, vegetation & weather condition, substations","Shock, fever, fainting, rapid pulse and breathing difficulties and worse case fatality.",5,4,"III","Leave snakes alone. Always be aware of your surroundings. Stay out of tall grass unless you wear thick leather boots.Keep hands and feet out of areas you cannot see.  It is very important to try and note what the snake looked like (colour, size etc).... to assist Medical Services or treating physician to establish what anti-venom to administer","P","Employees to be tested for allergies, if safe take the photos of the snake, Awareness sessions, posters",5,4,"III","Incident records","Manager and Staff","OHSAct section 8 (1): Employer shall provide and maintain as far as is reasonably practicable a working environment that is safe and without risk to the health of his employees.","N/A","N/A","In Progress","N/A","N/A","N/A"]
[null,31,"Exposure to extreme weather conditions",31,"ALL","Managers, Supervisors, all employees","Daily","Illness, heat strokes, Hypothermia","Health","Normal","Extreme weather conditions,","Illnesses",3,3,"II","Take enough fluids, usage of PPE, take regular breaks","P","Take enough fluids, usage of PPE, take regular breaks",3,3,"II","Incident records","Manager and Staff","OHSAct section 8 (1): Employer shall provide and maintain as far as is reasonably practicable a working environment that is safe and without risk to the health of his employees.","N/A","N/A","In Progress","N/A","N/A","N/A"]
[null,32,"Wet or slippery or uneven surfaces",32,"ALL","Managers, Supervisors, all employees","Daily","Slip, Trip & Fall on wet floors or uneven surfaces","Safety","Normal","Weather conditions,not paying attention & uneven surface, ","Injury",3,4,"II","Obey barricades & sign posting, PPE to be worn, be aware of where you are stepping, clean up spills immediately, Safety talks & Risk Assesment ","P","Awareness",3,4,"II","Incident records","Manager and Staff","OHSAct section 8 (1): Employer shall provide and maintain as far as is reasonably practicable a working environment that is safe and without risk to the health of his employees.","N/A","N/A","In Progress","N/A","N/A","N/A"]
["Using Stairways",6,"Unsafe use of Stairways",6,"ALL","Managers, Supervisors, all employees","Daily","Falling down the stairs","Safety","Normal","Distractions (phones, looking around, running, rushing), Failure to hold onto the rails","Fractures, bruises, dislocation of ankle etc",4,4,"III","Informing personnel about the safe use of stairways ","P","NA","NA","NA","NA","Incident records","Manager and Staff","OHSAct section 8 (1): Employer shall provide and maintain as far as is reasonably practicable a working environment that is safe and without risk to the health of his employees.","N/A","N/A","In Progress","N/A","N/A","N/A"]
["SUBSTATION INSPECTION/AUDITS/VISITS",39,"Slip,Trip and falls, oil spillages",39,"ALL","Managers, Supervisors, SHE Reps","Monthly","Staff falling/tripping injuries","Safety","Normal","LACK OF CONCENTRATION, cracked trench covers, distraction","ANKLE INJURY,BROKEN BONES",5,2,"III","Obey barricades & sign posting, PPE to be worn, be aware of where you are stepping, clean up spills immediately, Safety talks. Do proper risk assessment","P","MAINTAIN EXISTING CONTROLS",5,2,"III","Incident Reports","Managers","Occupational Health and Safety Act, 1993 (Act No. 85 of 1993) ","N/A","N/A","In Progress","N/A","N/A","N/A"]
[null,40,"Electrical contact / Data capturing",40,"ALL","Managers, Supervisors","Monthly","Electrocution ","Safety","Normal","MAKING CONTACT WITH LIVE EQUIPMENT","Possible fatalities - Lost time injury ",5,2,"II"," STAY ON GROUND LEVEL, .ADEQUATE TRAINING AND PPE MUST BE WORN ,PROPER RISK ASSESSMENT MUST BE DONE , ADEQUATE SUPERVISION AND CLEAR INSTRUCTIONS , AWARENESS,TASK OBSERVATIONS ","P","MAINTAIN EXISTING CONTROLS",5,2,"II","Incident Reports","Managers","Occupational Health and Safety Act, 1993 (Act No. 85 of 1993) ","N/A","N/A","In Progress","N/A","N/A","N/A"]
[null,41,"Inadequate Supervision/ Unauthorised personnel",41,"ALL","Managers, Supervisors","Monthly","Injuries, damages, unauthorised operating","Safety","Normal","Not trained personnel,unauthorized personnel","Fatalities",5,2,"IV","Safety talks, Risk assessment, awareness, adeqaute training and apply correct level of supervision. Should be medical fit. Ensure no unauthorised operating takes place.","P","MAINTAIN EXISTING CONTROLS",5,2,"IV","Incident Reports","Managers","Occupational Health and Safety Act, 1993 (Act No. 85 of 1993) ","N/A","N/A","In Progress","N/A","N/A","N/A"]
[null,42,"Attacked by community",42,"ALL","Managers, Supervisors","Monthly","Injuries, damages","Safety","Normal","Load shedding/ bitterness/frustration","Fatalities",5,2,"IV","Community awareness sessions, avoid areas where there's protests, Continous risk assessment, safety talks,    ","P","MAINTAIN EXISTING CONTROLS",5,2,"IV","Incident reports","Managers","Occupational Health and Safety Act, 1993 (Act No. 85 of 1993) ","N/A","N/A","In Progress","N/A","N/A","N/A"]
[null,43,"Asbestos",43,"All","Managers, Supervisors, SHE Reps","Monthly","Occupational Disease","Safety","Normal","Asbestos fibers, ","Fatalities",5,2,"IV","Signage, Technical instruction, PPE","P","Awareness session, provision of PPE, completion of the man job specs correctly, ",5,2,"IV","Incident Reports","Managers","Occupational Health and Safety Act, 1993 (Act No. 85 of 1993) ","N/A","N/A","In Progress","N/A","N/A","N/A"]
[null,44,"Explosion of Balteau current transformer",44,"ALL","Managers, Supervisors, SHE Reps","Monthly","Explosion, injuries","Safety","Normal","Design specifications","Fatalities",5,2,"IV","Signage, Technical instruction/ CT`s to be replaced","P","Maintain the existing control measures",5,2,"IV","Incident Report","Managers","Technical Bulliton","N/A","N/A","In Progress","N/A","N/A","N/A"]
[null,45,"Intruders",45,"ALL","Managers, Supervisors, SHE Reps","Monthly","Injuries,Damage to property","Safety","Normal","Theft ","Fatalities",4,2,"III","Security, identification of high risk substation, suirveillance cameras","P","Constantly monitoring of cameras, provide security guards ",4,2,"III","Incident Reports","Managers","Occupational Health and Safety Act, 1993 (Act No. 85 of 1993) ","N/A","N/A","In Progress","N/A","N/A","N/A"]
["Line Investigation",46,"Animal / Insect attacks",46,"ALL","Managers, Supervisors","Monthly","Dog bites,Insect Attacks","Health","Normal","Environment","Allergic reactions, swelling,itching, sweating, dizziness, fainting and possible fatality.",5,3,"II","Safety talks, Risk assessment, Situational awareness, Individuals to be aware of their status. Share status to their collegues, Medical surveillance/Stun gun/Cattle prod","P","Maintain existing controls, dog whitles",5,3,"II","Incident Reports and reporting of near misses","Managers","OHSACT 8(1) Employer shall provide and maintain, as far as reasonably practicable, a working environment that is safe and without risk to the health of his employees.","N/A","N/A","In Progress","N/A","N/A","N/A"]
[null,47,"Falls on uneven terrain",47,"ALL","Managers, Supervisors, SHE Reps","Monthly","Trip/slip/falls","Safety","Normal","Uneven terrain /surface","Strains / sprains/leg/back injuries",4,4,"I","Proper training on ascending and descending steep inclines/ PPE","P","Proper Risk Assessment",4,4,"I","Incident Reports and reporting of near misses","Managers","OHSACT 8(1) Employer shall provide and maintain, as far as reasonably practicable, a working environment that is safe and without risk to the health of his employees.","N/A","N/A","In Progress","N/A","N/A","N/A"]
[null,48,"Criminal activities",48,"ALL","Managers, Supervisors, SHE Reps","Monthly","Mugging/robbery","Safety","Normal","Criminal activities","Injuries/ hijacking/LTI Fatality/property damage",5,3,"II","Risk Assessment, Anti hijacking Training. Be vigilant","P","Be vigilant at all times, avoid going alone to remote areas, Risk Assessment",5,3,"II","Incident Reports and reporting of near misses","Managers","OHSACT 8(1) Employer shall provide and maintain, as far as reasonably practicable, a working environment that is safe and without risk to the health of his employees.","N/A","N/A","In Progress","N/A","N/A","N/A"]
[null,49,"Attacks from Wild animals",49,"ALL","Managers, Supervisors","Morning Safety Talks","Wild Animal attacks","Safety","Normal","Game farms","Injury",5,3,"II","Be aware of surroundings and contact Game Rangers  where possible to accompany you, Risk Assessment","P","Maintain existing controls",5,3,"II","Incident Reports and reporting of near misses","Managers","OHSACT 8(1) Employer shall provide and maintain, as far as reasonably practicable, a working environment that is safe and without risk to the health of his employees.","N/A","N/A","In Progress","N/A","N/A","N/A"]

{"sheet":"Risk template_JUNE 2026","index":1,"n_rows":39,"n_cols":44,"rows_kept":39,"merged":[[2,0,2,23],[3,1,3,8],[3,10,3,13],[3,14,3,19],[4,0,4,23],[5,0,8,0],[5,1,8,8],[5,9,8,9],[5,10,8,11],[5,12,8,13],[5,14,5,17],[5,18,8,21],[6,14,6,17],[7,14,7,17],[8,14,8,17],[9,0,9,23],[10,15,11,15],[10,29,22,29],[12,0,15,0]]}
[]
[]
["Occupational Health and Safety Baseline risk assessment template"]
["Business/Operating unit:","Retic Panel",{"$nulls":7},"Department:","SHEQS  ",{"$nulls":9},"Next Review Date \n(every 2 years):  ","2029-06-04","Template identifier: ","240-70044602"]
[]
[" Date:    ","2026-06-04",{"$nulls":7},"Prepared by:   ","Nondumiso Dlamini",null,"Authorised by:   ",null,"Name:   Bongani Makhuba",{"$nulls":7},"Document identifier",{"$nulls":15},"R","Safety",1,"A","Fully effective","I"]
[{"$nulls":14},"Designation: SHE Contractor Manager",{"$nulls":7},"Revision number:",5,{"$nulls":14},"N","Health",2,"B","Mostly effective","II"]
[{"$nulls":14},"Signed:Bongani Makhuba",{"$nulls":7},"Revision date: ","2029-06-04",{"$nulls":16},3,"C","Mostly ineffective","III"]
[{"$nulls":14},"Date:04 June 2026",{"$nulls":25},4,"D","None","IV"]
["Refer to Occupational Health and Safety Risk assessment procedure 32-520",{"$nulls":39},5,"E"]
["List activity"," Activity type \n(Routine/Non-routine)","Hazard nr","Hazard Identification","Risk Nr","Associated risk","Risk type","Cause(s) of the risk","Exposed group/employees","Risk Owner","Exposure patterns","What are the possible consequences?","Existing Controls"," ",null,"Risk Priority Rating",null,"Additional Controls or Tasks Aimed at improving Existing Controls","Monitoring  Mechanisms","Control Owner","Legal and Other Requirements","Target Date","Current Status","Integrated Risk Management (IRM) reference number"]
["List specific activities to be performed taking into consideration the equipment to be used, the personnel involved in the task.","              Indicate R or N \n1. Routine activities and situations create hazards through day-to-day operations and normal\nwork activities;\n2. Non-routine activities and situations are occasional or unplanned;","#","Anything  with potential to cause  of harm. \nNote: A hazard can pose more than one risk.","#","A chance that injury , ill health or damage could occur as a result of uncontrolled hazard.","Safety or health","What causes the risk to come into effect?","Who is exposed to the hazard i.e.    visitors, members of the public, etc.","Who is accountable for making sure the controls and monitors are:\n-  in place,\n-  implemented,\n-  regularly reviewed for effectiveness.","The frequency and duration  the person/group is exposed to the hazard e.g. Daily for 3 hrs.","Consider the worse case scenario without controls?","Include:\n- Preventative Controls\n(controls implemented to eliminate hazards or reduce the likelihood of the risk occurring), and\n- Reactive Controls \n(controls implemented to reduce the immediate impact of the risk occurring)    \n\nElimination\nSubstitution \nEngineering controls \nAdministrative controls \nPersonal protective equipment (PPE)","Consequence","Likelihood",null,"RCE\nRisk Control Effectiveness","Include:\n- Preventative Controls\n(controls implemented to eliminate hazards or reduce the likelihood of the risk occurring), and\n- Reactive Controls \n(controls implemented to reduce the immediate impact of the risk occurring)  \nElimination\nSubstitution \nEngineering controls \nAdministrative controls \nPersonal protective equipment (PPE)\n\nNB: The risk shall be evaluated, assessed and rated again once additional controls have been implemented and those controls listed as existing controls. ","How we know if we are succeeding. Include comments on effectiveness.\nThis may include i.e. measurements, inspections, supervision where necessary.","Person allocated the responsibility for implementing the agreed controls (if applicable)","Where relevant, list the relevant legislative and or Eskom requirements that prescribe the control.","Once a date has been agreed to, this  can not be changed (if applicable)","Pending,\nIn Progress,\nComplete (if applicable)","Where applicable, add IRM system reference number for tracking of treatment actions. \n(applicable to risks that have an impact on business objectives or require intervention from Senior or Executive management such as impementing major engineering projects as a control)"]
["Driving of vehicles","R",{"$f":"'Risk template_Jan2019'!B10","v":1},{"$f":"'Risk template_Jan2019'!C10","v":"Driving "},{"$f":"'Risk template_Jan2019'!D10","v":1},{"$f":"'Risk template_Jan2019'!H10","v":"Involved in accident"},{"$f":"'Risk template_Jan2019'!I10","v":"Safety"},{"$f":"'Risk template_Jan2019'!K10","v":"Not adhering to the regulation, speed limit,Not paying attention, not farmialr with the road,making use of cellphone, distractions, exposed to unsafe behavours, congested roads, Pedestrians and live stock, Taxi and Truck on the road, Civil unrest. Negligent driving/fatigue"},{"$f":"'Risk template_Jan2019'!E10","v":"ALL"},{"$f":"'Risk template_Jan2019'!F10","v":"Managers, Supervisors, Drivers"},{"$f":"'Risk template_Jan2019'!G10","v":"± 1hrs per driver/day"},{"$f":"'Risk template_Jan2019'!L10","v":"Fatalities,Injuries, Property damage"},{"$f":"'Risk template_Jan2019'!P10","v":"Staff driving vehicles to have national driver's license and Eskom driver's evaluation permit, vehicles in roadworthy condition, only transport authorised staff in vehicle and obeying of all traffic laws, Adherence to life saving rules. Discuss MVA's in safety meetings to increase awareness."},{"$f":"'Risk template_Jan2019'!M10","v":6},"C","I","Fully effective",{"$f":"'Risk template_Jan2019'!R10","v":"To adhere to the existing controls"},{"$f":"'Risk template_Jan2019'!V10","v":"Incident records, annual driver risk assessments, annual vehicle inspections"},{"$f":"'Risk template_Jan2019'!W10","v":"Manager and Staff"},{"$f":"'Risk template_Jan2019'!X10","v":"National Road Safety Act. ESKOM Procedure 32-93 (Vehicle and driver safety management) . ESKOM Procedure 36-588 (Vehicle safety and transportation management) , Life saving rules"},{"$f":"'Risk template_Jan2019'!Y10","v":"N/A"},"Completed","N/A",{"$nulls":6},5,"III","II","II","I","I"]
[null,"N",{"$f":"'Risk template_Jan2019'!B11","v":2},{"$f":"'Risk template_Jan2019'!C11","v":"Parking of vehicles outside Eskom premises."},{"$f":"'Risk template_Jan2019'!D11","v":2},{"$f":"'Risk template_Jan2019'!H11","v":"Hijacking, attacked, robberies vehicles could be stolen or Damaged"},{"$f":"'Risk template_Jan2019'!I11","v":"Safety"},{"$f":"'Risk template_Jan2019'!K11","v":"Shortage of secured parking"},{"$f":"'Risk template_Jan2019'!E11","v":"ALL"},{"$f":"'Risk template_Jan2019'!F11","v":"Drivers/Passengers "},{"$f":"'Risk template_Jan2019'!G11","v":"When attending meetings "},{"$f":"'Risk template_Jan2019'!L11","v":"Injuries,loss/damage to property"},{"$f":"'Risk template_Jan2019'!P11","v":"Staff receive awareness during safety talks "},{"$f":"'Risk template_Jan2019'!M11","v":5},"C","II","Mostly effective",{"$f":"'Risk template_Jan2019'!R11","v":"PC-Arrange with meeting convener to organise parking for meeting where possible.\n\nRC-If being Hi-jacked be summisive, no eye contact, no sudden movements"},{"$f":"'Risk template_Jan2019'!V11","v":"Incident Stats"},{"$f":"'Risk template_Jan2019'!W11","v":"Manager and Staff"},{"$f":"'Risk template_Jan2019'!X11","v":"NA"},"2025-01-16",{"$f":"'Risk template_Jan2019'!AA11","v":"In Progress"},"N/A",{"$nulls":6},4,"IV","III","II","I","I"]
[null,null,4,"Overflowing low level bridges",4,"Drowning, getting washed away ","Safety","High levels of water, heavy rain, taking chances, attitude, opening of dam gates","Employees","Sen Sup / Manager","Rare / Seasonal","Fatality; Injuries","Administrative controls (Sharing of case studies; route risk assessments)",5,"B","II","Mostly effective","Administrative controls - Ongoing safety awareness and compliance. Employees to check weather forecasts before travelling.","Incident statistics","Sen Sup / Manager","Fality Case Studies","2025-01-16","Ongoing Monitoring "]
[null,"N",{"$f":"'Risk template_Jan2019'!B12","v":3},{"$f":"'Risk template_Jan2019'!C12","v":"Stray/wild animals"},{"$f":"'Risk template_Jan2019'!D12","v":3},{"$f":"'Risk template_Jan2019'!H12","v":"Involved in accidents (MVA/Property)"},{"$f":"'Risk template_Jan2019'!I12","v":"Safety/Environmental"},{"$f":"'Risk template_Jan2019'!K12","v":"Wildlife on road, drivers not observant enough"},{"$f":"'Risk template_Jan2019'!E12","v":"ALL"},{"$f":"'Risk template_Jan2019'!F12","v":"Managers, Supervisors, Drivers"},{"$f":"'Risk template_Jan2019'!G12","v":"When attending meetings "},{"$f":"'Risk template_Jan2019'!L12","v":"Fatalities,Injuries, Property damage"},{"$f":"'Risk template_Jan2019'!P12","v":"Drivers to adhere to road regulations"},{"$f":"'Risk template_Jan2019'!M12","v":5},"D","I","Mostly effective",{"$f":"'Risk template_Jan2019'!R12","v":"Adhere to the existing controls"},{"$f":"'Risk template_Jan2019'!V12","v":"Incident Stats"},{"$f":"'Risk template_Jan2019'!W12","v":"Manager and Staff"},{"$f":"'Risk template_Jan2019'!X12","v":"National Road Safety Act. ESKOM Procedure 32-93 (Vehicle and driver safety management) . ESKOM Procedure 36-588 (Vehicle safety and transportation management) , Life saving rules"},"2025-01-16",{"$f":"'Risk template_Jan2019'!AA12","v":"In Progress"},"N/A",{"$nulls":6},3,"IV","III","II","II","I"]
["Working in the Field","R",4,"Wet or slippery or uneven surfaces",3,"Slip, Trip & Fall on wet floors or uneven surfaces","Safety","Weather conditions,not paying attention & un even surface","Employees, visitors, members of the public and contractors","Managers, Supervisors","± 1hrs per employee/day","Fatality; Injuries","Obey barricades & sign posting, PPE to be worn, be aware of where you are stepping, clean up spills immediately, Safety talks & Risk Assesment ",4,"D","I","Mostly effective","Occupational Health and Safety Act, 1993 (Act No. 85 of 1993) section 8 (1): Employer shall provide and maintain as far as is reasonably practocable a working environment that is safe and without risk to the health of his employees. Provide PPE  that meets SANS Standards and well maintained and looked after. Not only to use PPE in isolation to mininize the risk but Risk Assessment 32-520 as the control measure.","Incidents Stats","Manager and Staff","Occupational Health and Safety Act, 85 of 1993, PPE 240-120054284, Risk Assessment 32-520, Life Saving Rules 240-62196227","2025-01-16","In Progress","N/A"]
["Working in the Field","R",3,"Bees",3,"Bee stings","Safety","Employees that are allergic to  bee stings are at high risk","Employees, visistors, members of the public and contractors","Managers, Supervisors","± 1hrs per employee/day","Fatality; Injuries","Individuals to be aware of their status regarding allergies and inform rest of group.  In case of a bee sting, make use of a first aider.",4,"D","I","Mostly effective","Occupational Health and Safety Act, 1993 (Act No. 85 of 1993) 85 of 1993 Section: 14 GENERAL DUTIES of EMPLOYER Subsection: (a) - (d) read with Section: 21 GENERAL PROHIBITIONS Subsection: (c)","Incidents Stats","Manager and Staff","Occupational Health and Safety Act, 85 of 1993, PPE 240-120054284, Risk Assessment 32-520, Life Saving Rules 240-62196227","2025-01-16","In Progress","N/A"]
["Working in the Filed","R",3,"Snakes",3,"Snake bites","Safety","Working in the field, vegetation & weather condition","Employees, visistors, members of the public and contractors","Managers, Supervisors","± 1hrs per employee/day","Fatality; Injuries","Where possible contact the snake catchers and have the snake chart. Always be aware of your surroundings. ",4,"D","I","Mostly effective","Occupational Health and Safety Act, 1993 (Act No. 85 of 1993) 85 of 1993 Section: 14 GENERAL DUTIES of EMPLOYER Subsection: (a) - (d) read with Section: 21 GENERAL PROHIBITIONS Subsection: (c)","Incidents Stats","Manager and Staff","Occupational Health and Safety Act, 85 of 1993, PPE 240-120054284, Risk Assessment 32-520, Life Saving Rules 240-62196227","2025-01-16","In Progress","N/A"]
[" Use of step Ladders ","R",4,"The use of damaged, unsecured and uninspected ladders ",4,"Injuries","Safety","Improper use of ladder, handling and No Supervision.","ALL","Managers, Supervisors","Daily","Injuries","Proper storage of ladders is required.Ensure that a proper Training and Awareness is done.Competent person must inspect ladders.",3,"D","II","Mostly effective","Proper Stacking and Storage under OHS Act 85 of 1993,Construction Regulations 28","Incident Stats","Manager and Staff","Occupational Health and Safety Risk Assessment Procedure 32-520, Occupational Health and Safety Act 85 of 1993","2025-01-16","In Progress","N/A"]
["Storage of flammables","R",3,"Oil, Petrol, Diesel, Thinners, Paint etc.",3,"burns, fatality, injuries","Health & Safety","ground-, air-, water pollution - environmental risk","ALL","Managers, Supervisors","Daily","Damage to people and the enivronment","Not following safe working procedures, staff not properly trained, bad housekeeping",3,"D","II","Mostly effective","Waste management training, Safe working procedures, applicable PPE, medical surveilance","Incidents Stats","Manager and Staff","Occupational Health and Safety Risk Assessment Procedure 32-520, Occupational Health and Safety Act 85 of 1993","2025-01-16","In Progress","N/A"]
[{"$f":"'Risk template_Jan2019'!A13","v":"Computer use and office work"},"R",{"$f":"'Risk template_Jan2019'!B13","v":4},{"$f":"'Risk template_Jan2019'!C13","v":"Working on PC's, sitting position, use of mouse and keyboard , type of chairs, ( Poor Ergonomics)"},{"$f":"'Risk template_Jan2019'!D13","v":4},{"$f":"'Risk template_Jan2019'!H13","v":"Back and neck injuries, straining of legs, straining of eyes"},"Health & Safety",{"$f":"'Risk template_Jan2019'!K13","v":"Bad posture, incorrect working position, chairs not ergonomically designed, incorrect work station layout, "},{"$f":"'Risk template_Jan2019'!E13","v":"ALL"},{"$f":"'Risk template_Jan2019'!F13","v":"Managers, Supervisors, SHE Reps"},{"$f":"'Risk template_Jan2019'!G13","v":"Daily"},{"$f":"'Risk template_Jan2019'!L13","v":"Work related upper limb disorders, repetetive strain syndrome, capal tunnel syndrome, eye strain"},{"$f":"'Risk template_Jan2019'!P13","v":"Safety talks,Awareness,  Avoid long working sessions, take regular breaks, conduct medical checks "},{"$f":"'Risk template_Jan2019'!M13","v":3},"D","II","Mostly effective",{"$f":"'Risk template_Jan2019'!R13","v":"Supplement chairs with lumber support "},{"$f":"'Risk template_Jan2019'!V13","v":"Incident/Medical records and Inspections"},{"$f":"'Risk template_Jan2019'!W13","v":"Manager and Staff"},{"$f":"'Risk template_Jan2019'!X13","v":"OHSA R1010 r1, OHSA R924 r8(a)(c)  [Provide employee whose work can effectively performed while sitting with ergonomically sound seating,Provide seats with backrests]"},"2025-01-16",{"$f":"'Risk template_Jan2019'!AA13","v":"In Progress"},"N/A",{"$nulls":6},2,"IV","IV","III","II","II"]
[{"$f":"'Risk template_Jan2019'!A14","v":"Make use of the hydroboil"},"R",{"$f":"'Risk template_Jan2019'!B14","v":5},{"$f":"'Risk template_Jan2019'!C14","v":" Hot water "},{"$f":"'Risk template_Jan2019'!D14","v":5},{"$f":"'Risk template_Jan2019'!H14","v":"Injuries "},{"$f":"'Risk template_Jan2019'!I14","v":"Safety"},{"$f":"'Risk template_Jan2019'!K14","v":"Air trapped within Hydroboil causing hot water to splash on person , leaking tap"},{"$f":"'Risk template_Jan2019'!E14","v":"ALL"},{"$f":"'Risk template_Jan2019'!F14","v":"Managers, Supervisors, all employees"},{"$f":"'Risk template_Jan2019'!G14","v":"Daily"},{"$f":"'Risk template_Jan2019'!L14","v":"Injury, burns"},{"$f":"'Risk template_Jan2019'!P14","v":"Awareness, focussing on task at hand, Excersise caution when opening the taps, Adhere to warning signs"},{"$f":"'Risk template_Jan2019'!M14","v":4},"D","I","Mostly effective",{"$f":"'Risk template_Jan2019'!R14","v":"NA"},{"$f":"'Risk template_Jan2019'!V14","v":"Incident records"},{"$f":"'Risk template_Jan2019'!W14","v":"Manager and Staff"},{"$f":"'Risk template_Jan2019'!X14","v":"OHSAct section 8 (1): Employer shall provide and maintain as far as is reasonably practicable a working environment that is safe and without risk to the health of his employees."},"2025-01-16",{"$f":"'Risk template_Jan2019'!AA14","v":"In Progress"},"N/A",{"$nulls":6},1,"IV","IV","III","III","III"]
["Emergency Preparedness","R",5,"Inadequate emergency planning could result in the inability to effectively respond to emergencies.                               Inadequate First-Aid arrangements could impact negatively of the ability to respond to first-aid injuries or to stabiliza injured employees or other persons that may require advanced healthcare.                  Inadequate fire prevention and protection measure may impact on the ability ti fight fires",5,"Injuries ","Safety","Exposed to risk/hazard which can cause harm to person or damage to environment or propety.","ALL","Managers, Supervisors, all employees","Daily","Injuries","Awareness, focussing on task at hand, Excersise caution when opening the taps, Adhere to warning signs",4,"D","I","Mostly effective","To appoint a competent person to act as emergency controller and or coordinator. To conduct an emergency identification exercise and establish what emergencies( such as health, safety,environment, third party, community related action) to be developed. They must develop detailed contingency plans and emergency procedure, taking into account any emergency plan that the site/office may have in place. Security must hold regular practice drills of contingency plan and emergency procedure to test them and familarize employees with them.  Emergency evacuation points must be available and signage displayed.                                                                                                   First Aid- The service provider to provide first aid equipment and have qualified First-Aider(s) on site as required by GSR3 of the OHSACT. The contingency plan of the service provider to include arrangements for the speedily and timeously transportation of injured and or ill person(s) to a medical facility or getting emergency medical support to person(s) who may require it. To have firm arrangement with his contractors in place regarding the resposibility of these contractors first-aid arrangements as well as treatment of injured and or ill employees.                                                                                                                                                                                                             Fire Prevention and Protection-to ensure suffiecient and suitable storage of flammable is provided. Employees are trained in the use of fire fughting equipment and know how to attempt to extinguish a fire. (employee must be appointed and proof of competency to be available).","Incident records","All","Occupational Health and Safety Act, 1993 (Act No. 85 of 1993); Eskom Fire Risk Management 32-124 ","2025-01-16","Ongoing Monitoring ","N/A"]
["Working in inclement weather","R",5,"Exposed to thunderstorms, lighting,strong wind, rain, sand dust, storms, extreme hot condictions.",5,"Injuries, Drowning, getting washed away, skin burn","Health & Safety","Natural Hazard","ALL","Managers, Supervisors, all employees","Daily","Injuries","Safety talks, Awareness, use of Safe Working Procedures and provision of proper Personnel Protective Equipments",4,"D","I","Mostly effective","Working under supervision all the time and adhere to control measures.","Incident Records","All","Occupational Health and Safety Act, 1993 (Act No. 85 of 1993); Eskom Procedure 32-93","2025-01-16","Ongoing Monitoring ","N/A"]
["Community Protest","R",5,"Actions and condictions leading to possible theft, vandalism.",5,"Injuries","Safety","Community unrest","ALL","Managers, Supervisors, all employees","Daily","Injuries","Awareness,Request SAPS to escort for protection, adhere to warning signs.",4,"D","I","Mostly effective","Making sure that you are safe and you are escorted all the time.Report matter before to the Security Department and SAPS.","Incident Records","All","Occupational Health and Safety Act 85 of 1993, Section 8(1).","2025-01-16","Ongoing Monitoring ","N/A"]
["Storage of waste","R",5,"Hazardous waste, oil contamination, ink or cartilage",5,"Damage to people and the environment","Health & Safety","Not following Safe Working Procedures or bad housekeeping.","ALL","Managers, Supervisors, all employees","Daily","Injuries","Waste Management Training, use of Safe Working Procedures, Use of applicable Personnel Protective Equipments, Medical surveilance.",4,"D","I","Mostly effective","Adhere to the existing controls","Incident Records","All","Occupational Health and Safety Act 85 Of 1993, ","2025-01-16","Ongoing Monitoring ","N/A"]
["Working at Heights","R",5,"Falling from Heights, dropping of tools, inadequate space to work on",5,"Fatalities and Injuries","Safety","No proper guard rails around working platforms, Not using Safety harness,  no stay wires","ALL","Managers, Supervisors, all employees","Daily","Fatalities, Serious Injuries","Safe working platforms, Supervision, Training of staff, Safety harnesses, Medical certificates of fitness",4,"D","I","Mostly effective","Adhere to the existing controls including Work at height standard 32-418.","Incident Records","All","Occupational Health and Safety Act 85 Of 1993, ","2025-01-16","In Progress","N/A"]
["Planting of poles by hand","R",8,"Lifting heavy poles",8,"Fatigue,  Back, shoulder, neck, foot injuries, falling of poles","Safety","Not assisting one another","ALL","Managers, Supervisors, all employees","Daily","Fatalities, Serious Injuries","No regualr breaks, No proper physical material handling of pole which could strain the muscles cause injuries",4,"C","I","Mostly effective","Adhere to all existing controls, Do Risk Assessments 32-520. Ensure that Safe Working Procedures are followed.","Incident Stats","All","Occupational Health and Safety Act 85 Of 1993, ","2025-01-16","In Progress","N/A"]
["Improper use of hand tools","R",4,"Improper use of hand tools",4,"Hand injuries, Broken bones ","Safety","Damaged hand tools","ALL","Managers, Supervisors, all employees","Daily","Hand injuries, Broken bones ","No regular inspection of tools, Incorrect hand tools, ",2,"C","III","Mostly effective","Safaty Talks, Correct PPE for the job, use of correct tools for the job, tools to be in good condition, pre-job brief,.Use \"hand free\" approach Regular inspection of hand tools, PPE\n","Incidents Stats","All","Occupational Health and Safety Act 85 Of 1993, Risk Assessment 32-520","2025-01-16","In Progress","N/A"]
["Physical Material Handling","R",8,"Heavy lifting, Falling of material",8,"Fatigue,  Back, shoulder, neck, foot injuries","Safety","No Regular breaks, Not assisting one another, lack of communication","ALL","Managers, Supervisors, all employees","Daily","Fatigue,  Back, shoulder, neck, foot injuries","No Regular breaks, Not assisting one another or the use of crane.",4,"C","III","Mostly effective"," Requires proper PPE (Safety Boots, Gloves,)  Regular breaks, Proper lifting technique, the use of crane or team work. The proper training is required and  medical surveillances.","Incidents Stats","All","Occupational Health and Safety Act 85 Of 1993, Risk Assessment 32-520","2025-01-16","In Progress","N/A"]
["Vehicle Mounted Crane","R",8,"Lifting heavy equipment, crane failure, loose outriggers",8,"Fatigue,  Back, shoulder, neck, foot injuries, falling of material","Safety","Not assisting one another, crane load examination, lack of communication, inspection of crane","ALL","Managers, Supervisors, all employees","Daily","Fatigue,  Back, shoulder, neck, foot injuries","No Regular breaks, Not assisting one another or the use of crane.",4,"C","III","Mostly effective"," Requires proper PPE (Safety Boots, Gloves,)  Regular breaks, Proper lifting technique, the use of crane or team work. The proper training is required and  medical surveillances.","Incidents Stats","All","Occupational Health and Safety Act 85 Of 1993, Risk Assessment 32-520","2025-01-16","In Progress","N/A"]
["Loading and Off-loading material","R",6,"Improper Loading / off- loading of the equipment/using wrong method,  ",6,"Equipment falling on staff, other equipment","Safety","Not services cranes, Inadequate inspection of lifting equipment, Incorrect rigging, using casuals to support the load","ALL","Managers, Supervisors, all employees","Daily","Possible property damage - Injury to staff","No Regular breaks, Not assisting one another and the use of crane under supervision, Not services cranes, Inadequate inspection of lifting equipment, Incorrect rigging.",4,"C","III","Mostly effective","Keep safe working space around the machine, Supervision, Training of staff","Incidents Stats","All","Occupational Health and Safety Act 85 Of 1993, Risk Assessment 32-520","2025-01-16","In Progress","N/A"]
["Portable power-drilling","R",8,"Noise, Defective tool, improper use",8,"Staff exposed to excessive noise; injuries","Health & Safety","Operation of the machine wrongly, using damage tool","ALL","Managers, Supervisors, all employees","Daily","NIHL","No proper PPE such as earplugs, no regular breaks, No adequate inspection.",4,"D","II","Mostly effective","Supervision, Training, Hearing protection devices, medical surveillance","Incidents Stats","All","Noise Induced Hearing Loss Regulations 6(1) and 7(1)","2025-01-16","In Progress","N/A"]
["EXCAVATION  by  Hands - digging of holes, trenches","R",6,"Open trenches",6,"Fatigue,  Back, shoulder, neck, foot injuries, falling into the holes","Safety","Excavation collapse, open trenches or holes","ALL","Managers, Supervisors, all employees","Daily","Possible fatalities - Back injuries","No proper supervision, No Shoring of excavation, Soil structure, ",4,"D","II","Mostly effective","Excavate to natural angle of repose - Excavation shored/braced, Sides of excavation fenced off, Training on excavation work, Supervision.","Incident Stats","All","Occupational Health and Safety Act 85 of 1993, CR 13(1). Risk Assessment to be carried out 32-520. Employees to work under supervision.And Safe Working Procedure to be used.","2025-01-16","In Progress","N/A"]
["Office Environment","R",6,{"$f":"'Risk template_Jan2019'!C20","v":"Unsafe use of Stairways"},6,{"$f":"'Risk template_Jan2019'!H20","v":"Falling down the stairs"},{"$f":"'Risk template_Jan2019'!I20","v":"Safety"},{"$f":"'Risk template_Jan2019'!K20","v":"Distractions (phones, looking around, running, rushing), Failure to hold onto the rails"},{"$f":"'Risk template_Jan2019'!E20","v":"ALL"},{"$f":"'Risk template_Jan2019'!F20","v":"Managers, Supervisors, all employees"},{"$f":"'Risk template_Jan2019'!G20","v":"Daily"},{"$f":"'Risk template_Jan2019'!L20","v":"Fractures, bruises, dislocation of ankle etc"},{"$f":"'Risk template_Jan2019'!P20","v":"Informing personnel about the safe use of stairways "},{"$f":"'Risk template_Jan2019'!M20","v":4},"D","I","Mostly effective",{"$f":"'Risk template_Jan2019'!R20","v":"NA"},{"$f":"'Risk template_Jan2019'!V20","v":"Incident records"},{"$f":"'Risk template_Jan2019'!W20","v":"Manager and Staff"},{"$f":"'Risk template_Jan2019'!X20","v":"OHSAct section 8 (1): Employer shall provide and maintain as far as is reasonably practicable a working environment that is safe and without risk to the health of his employees."},"2025-01-16",{"$f":"'Risk template_Jan2019'!AA20","v":"In Progress"},"N/A"]
[null,"N",8,"Contaminated surfaces and or contaminated respiratory droplets released by individuals who are currently infectious",8,"Exposure to and transmission and spread of the corona virus","Health","Not practising social distancing, offices, surfaces and equipment not effectively sanitised, not following good hygiene practices, no risk assessment conducted, allowing sick people to come to work, no temperature scanning, non compliance to use of 3 ply masks, inadequte ventilation, inadequate waste disposal of contaminated tissues or masks, people sharing resources","employees","Line Manager/Supervsior","Daily","miscarriage, premature delivery","Elimination: \nWorking from home is facilitated wherever possible especially for elderly, pregnant woman, and those with underlying existing health conditions; Workers who are unwell with symptoms of Coronavirus (COVID-19) will not be allowed on site and are advised to self-isolate in accordance with government guidance. They should not travel to or attend the workplace. Meetings are not face to face but use technology in terms of MS teams. \nAdministrative:\nSocial distancing (2m) encouraged; The time the employees are to stay away from home for projects has been minimised. \nTemperature Screening: this is being done by the security at the gate entrances.\nAwareness and up to date information on COVID 19 is shared on a daily basis; risk assessments updated and communicated with all relevant stakeholders; Posters, leaflets and other materials are available for display.\nHygiene practices and cleaning: Offices are frequently cleaned, sanitised and provided with alcohol based sanitisers; Hand washing facilities and soap is provided, disposable paper towels provided, employees encouraged to sanitise their work surfaces regularly. Cleaning contract in place.   \nPPE:   \n3 ply face masks are provided and encouraged to be worn at all times whilst in public.              ",3,"B","III","Mostly effective","Administrative: Employees to be reminded on a regular basis to wash their hands for 20 seconds with water and soap and the importance of proper drying with disposable towels. Also reminded to catch coughs and sneezes in tissues – Follow Catch it, Bin it, Kill it and to avoid touching face, eyes, nose or mouth with unclean hands.\n Encourage staff to report any skin related problems due to use of hand sanitisers and to protect the skin by applying a barrier cream regularly. \nRigorous checks to be carried out by line managers to ensure that the necessary procedures are being followed.\nEmployees are to report immediately if they believe they came into contact with someone who may be infected. \nPPE: if disposable, must be disposed off in closed bin. Reusable must be washed daily and replaced frequently as per specifications due to wear and tear.","incident stats, Eskom dashboard","Line Manager","OHS Act - Section 8, Section 14, Section 18, HBA Regulations, ","TBC (Dr Penny to advise once a decision is made)","Daily monitoring"]
[null,"N",9,"Temperature scanners",9,"Persons being allowed to enter that may potentially be infected","Health","scanners providing inaccurate readings, poor maintenance of scanners, no calibration of equipment","Employees, contractors; MOP","Senior Managers/Security","Daily","ill-health (dry cough,\nsore throat,\ndifficulty in breathing,\ntiredness,\nfever); \n fatalities","Administrative: Security personnel and Managers / Supervisors have had awareness training on the use of the scanners, calibration of the scanners to be checked by Security Manager. All persons are scanned prior to entering the permises.",3,"B","III","Mostly effective","Administrative: Readings should be monitored for trends. If readings are continuosly low, the scanner should be checked against another scanner to determine variance. ","incident stats, Eskom dashboard","Senior Management","OHS Act - S8, 14, HBA Regulations, ","TBC (Dr Penny to advise once a decision is made)","Daily monitoring"]
[null,null,10,null,10,"Transmission of the corona virus","Health","contaminated scanners due to lack of hygiene practices, security personnel unaware of how to care for and use the scanners, that is, making contact with person being tested","Employees, contractors; MOP","Senior Managers/Security","Daily","ill-health (dry cough,\nsore throat,\ndifficulty in breathing,\ntiredness,\nfever); \n fatalities","Administrative: Security personnel and Managers / Supervisors have had awareness training on the use and care of the scanners, scanners are sanitised frequently. Scanners do not make contact with the individual screened.",3,"B","III","Mostly effective","Administrative: Ensure that there is sufficient sanitising and cleaning material provided at the point of use. ","incident stats, Eskom dashboard","Senior Management","OHS Act - S8, 14, HBA Regulations, ","TBC (Dr Penny to advise once a decision is made)","Daily monitoring"]

{"sheet":"Contractor Baseline template","index":2,"n_rows":175,"n_cols":32,"rows_kept":175,"hidden":true,"merged":[[2,0,2,11],[3,1,3,3],[3,4,3,6],[4,0,4,11],[5,0,8,0],[5,1,8,3],[5,4,8,4],[5,5,8,6],[5,7,5,9],[6,7,6,9],[7,7,7,9],[8,7,8,9],[9,0,9,11],[10,8,11,8],[11,17,16,17],[18,19,18,23]]}
[]
[]
["Occupational Health and Safety Baseline risk assessment template"]
["Business/Operating unit:",{"$nulls":9},"Next Review Date \n(every 2 years):  ","Template identifier: "]
[]
[" Date:    ",{"$nulls":4},"Authorised by:   ",null,"Name:  ",null,null,"Document identifier",{"$nulls":15},"R","Safety",1,"A","Fully effective","I"]
[{"$nulls":7},"Designation:",null,null,"Revision number:",1,{"$nulls":14},"N","Health",2,"B","Mostly effective","II"]
[{"$nulls":7},"Signed:",null,null,"Revision date: ","2024-05-31",{"$nulls":16},3,"C","Mostly ineffective","III"]
[{"$nulls":7},"Date:",{"$nulls":20},4,"D","None","IV"]
["Refer to Occupational Health and Safety Risk assessment procedure 32-520",{"$nulls":27},5,"E"]
["List activity","Hazard Identification","Associated risk","Risk type","What are the possible consequences?","Existing Controls"," ",null,"Risk Priority Rating",null,"Control Owner","Legal and Other Requirements",{"$nulls":16},6]
["List specific activities to be performed taking into consideration the equipment to be used, the personnel involved in the task.","Anything  with potential to cause  of harm. \nNote: A hazard can pose more than one risk.","A chance that injury , ill health or damage could occur as a result of uncontrolled hazard.","Safety or health","Consider the worse case scenario without controls?","Include:\n- Preventative Controls\n(controls implemented to eliminate hazards or reduce the likelihood of the risk occurring), and\n- Reactive Controls \n(controls implemented to reduce the immediate impact of the risk occurring)    \n\nElimination\nSubstitution \nEngineering controls \nAdministrative controls \nPersonal protective equipment (PPE)","Consequence","Likelihood",null,"RCE\nRisk Control Effectiveness","Person allocated the responsibility for implementing the agreed controls ","Where relevant, list the relevant legislative and or Eskom requirements that prescribe the control.",{"$nulls":5},"Consequences",6,"III","II","I","I","I"]
[{"$f":"IF('Risk template_JUNE 2026'!A13=\"\",\"\",'Risk template_JUNE 2026'!A13)","v":"Driving of vehicles"},{"$f":"IF('Risk template_JUNE 2026'!A13=\"\",\"\",'Risk template_JUNE 2026'!D13)","v":"Driving "},{"$f":"IF('Risk template_JUNE 2026'!A13=\"\",\"\",'Risk template_JUNE 2026'!F13)","v":"Involved in accident"},{"$f":"IF('Risk template_JUNE 2026'!A13=\"\",\"\",'Risk template_JUNE 2026'!G13)","v":"Safety"},{"$f":"IF('Risk template_JUNE 2026'!A13=\"\",\"\",'Risk template_JUNE 2026'!L13)","v":"Fatalities,Injuries, Property damage"},{"$f":"IF('Risk template_JUNE 2026'!A13=\"\",\"\",'Risk template_JUNE 2026'!M13)","v":"Staff driving vehicles to have national driver's license and Eskom driver's evaluation permit, vehicles in roadworthy condition, only transport authorised staff in vehicle and obeying of all traffic laws, Adherence to life saving rules. Discuss MVA's in safety meetings to increase awareness."},{"$f":"IF('Risk template_JUNE 2026'!A13=\"\",\"\",'Risk template_JUNE 2026'!N13)","v":6},{"$f":"IF('Risk template_JUNE 2026'!A13=\"\",\"\",'Risk template_JUNE 2026'!O13)","v":"C"},{"$f":"IF('Risk template_JUNE 2026'!A13=\"\",\"\",'Risk template_JUNE 2026'!P13)","v":"I"},{"$f":"IF('Risk template_JUNE 2026'!A13=\"\",\"\",'Risk template_JUNE 2026'!Q13)","v":"Fully effective"},{"$f":"IF('Risk template_JUNE 2026'!A13=\"\",\"\",'Risk template_JUNE 2026'!T13)","v":"Manager and Staff"},{"$f":"IF('Risk template_JUNE 2026'!A13=\"\",\"\",'Risk template_JUNE 2026'!U13)","v":"National Road Safety Act. ESKOM Procedure 32-93 (Vehicle and driver safety management) . ESKOM Procedure 36-588 (Vehicle safety and transportation management) , Life saving rules"},{"$nulls":6},5,"III","II","II","I","I"]
[{"$f":"IF('Risk template_JUNE 2026'!A14=\"\",\"\",'Risk template_JUNE 2026'!A14)","v":""},{"$f":"IF('Risk template_JUNE 2026'!A14=\"\",\"\",'Risk template_JUNE 2026'!D14)","v":""},{"$f":"IF('Risk template_JUNE 2026'!A14=\"\",\"\",'Risk template_JUNE 2026'!F14)","v":""},{"$f":"IF('Risk template_JUNE 2026'!A14=\"\",\"\",'Risk template_JUNE 2026'!G14)","v":""},{"$f":"IF('Risk template_JUNE 2026'!A14=\"\",\"\",'Risk template_JUNE 2026'!L14)","v":""},{"$f":"IF('Risk template_JUNE 2026'!A14=\"\",\"\",'Risk template_JUNE 2026'!M14)","v":""},{"$f":"IF('Risk template_JUNE 2026'!A14=\"\",\"\",'Risk template_JUNE 2026'!N14)","v":""},{"$f":"IF('Risk template_JUNE 2026'!A14=\"\",\"\",'Risk template_JUNE 2026'!O14)","v":""},{"$f":"IF('Risk template_JUNE 2026'!A14=\"\",\"\",'Risk template_JUNE 2026'!P14)","v":""},{"$f":"IF('Risk template_JUNE 2026'!A14=\"\",\"\",'Risk template_JUNE 2026'!Q14)","v":""},{"$f":"IF('Risk template_JUNE 2026'!A14=\"\",\"\",'Risk template_JUNE 2026'!T14)","v":""},{"$f":"IF('Risk template_JUNE 2026'!A14=\"\",\"\",'Risk template_JUNE 2026'!U14)","v":""},{"$nulls":6},4,"IV","III","II","I","I"]
[{"$f":"IF('Risk template_JUNE 2026'!A16=\"\",\"\",'Risk template_JUNE 2026'!A16)","v":""},{"$f":"IF('Risk template_JUNE 2026'!A16=\"\",\"\",'Risk template_JUNE 2026'!D16)","v":""},{"$f":"IF('Risk template_JUNE 2026'!A16=\"\",\"\",'Risk template_JUNE 2026'!F16)","v":""},{"$f":"IF('Risk template_JUNE 2026'!A16=\"\",\"\",'Risk template_JUNE 2026'!G16)","v":""},{"$f":"IF('Risk template_JUNE 2026'!A16=\"\",\"\",'Risk template_JUNE 2026'!L16)","v":""},{"$f":"IF('Risk template_JUNE 2026'!A16=\"\",\"\",'Risk template_JUNE 2026'!M16)","v":""},{"$f":"IF('Risk template_JUNE 2026'!A16=\"\",\"\",'Risk template_JUNE 2026'!N16)","v":""},{"$f":"IF('Risk template_JUNE 2026'!A16=\"\",\"\",'Risk template_JUNE 2026'!O16)","v":""},{"$f":"IF('Risk template_JUNE 2026'!A16=\"\",\"\",'Risk template_JUNE 2026'!P16)","v":""},{"$f":"IF('Risk template_JUNE 2026'!A16=\"\",\"\",'Risk template_JUNE 2026'!Q16)","v":""},{"$f":"IF('Risk template_JUNE 2026'!A16=\"\",\"\",'Risk template_JUNE 2026'!T16)","v":""},{"$f":"IF('Risk template_JUNE 2026'!A16=\"\",\"\",'Risk template_JUNE 2026'!U16)","v":""},{"$nulls":6},3,"IV","III","II","II","I"]
[{"$f":"IF('Risk template_JUNE 2026'!A22=\"\",\"\",'Risk template_JUNE 2026'!A22)","v":"Computer use and office work"},{"$f":"IF('Risk template_JUNE 2026'!A22=\"\",\"\",'Risk template_JUNE 2026'!D22)","v":"Working on PC's, sitting position, use of mouse and keyboard , type of chairs, ( Poor Ergonomics)"},{"$f":"IF('Risk template_JUNE 2026'!A22=\"\",\"\",'Risk template_JUNE 2026'!F22)","v":"Back and neck injuries, straining of legs, straining of eyes"},{"$f":"IF('Risk template_JUNE 2026'!A22=\"\",\"\",'Risk template_JUNE 2026'!G22)","v":"Health & Safety"},{"$f":"IF('Risk template_JUNE 2026'!A22=\"\",\"\",'Risk template_JUNE 2026'!L22)","v":"Work related upper limb disorders, repetetive strain syndrome, capal tunnel syndrome, eye strain"},{"$f":"IF('Risk template_JUNE 2026'!A22=\"\",\"\",'Risk template_JUNE 2026'!M22)","v":"Safety talks,Awareness,  Avoid long working sessions, take regular breaks, conduct medical checks "},{"$f":"IF('Risk template_JUNE 2026'!A22=\"\",\"\",'Risk template_JUNE 2026'!N22)","v":3},{"$f":"IF('Risk template_JUNE 2026'!A22=\"\",\"\",'Risk template_JUNE 2026'!O22)","v":"D"},{"$f":"IF('Risk template_JUNE 2026'!A22=\"\",\"\",'Risk template_JUNE 2026'!P22)","v":"II"},{"$f":"IF('Risk template_JUNE 2026'!A22=\"\",\"\",'Risk template_JUNE 2026'!Q22)","v":"Mostly effective"},{"$f":"IF('Risk template_JUNE 2026'!A22=\"\",\"\",'Risk template_JUNE 2026'!T22)","v":"Manager and Staff"},{"$f":"IF('Risk template_JUNE 2026'!A22=\"\",\"\",'Risk template_JUNE 2026'!U22)","v":"OHSA R1010 r1, OHSA R924 r8(a)(c)  [Provide employee whose work can effectively performed while sitting with ergonomically sound seating,Provide seats with backrests]"},{"$nulls":6},2,"IV","IV","III","II","II"]
[{"$f":"IF('Risk template_JUNE 2026'!A23=\"\",\"\",'Risk template_JUNE 2026'!A23)","v":"Make use of the hydroboil"},{"$f":"IF('Risk template_JUNE 2026'!A23=\"\",\"\",'Risk template_JUNE 2026'!D23)","v":" Hot water "},{"$f":"IF('Risk template_JUNE 2026'!A23=\"\",\"\",'Risk template_JUNE 2026'!F23)","v":"Injuries "},{"$f":"IF('Risk template_JUNE 2026'!A23=\"\",\"\",'Risk template_JUNE 2026'!G23)","v":"Safety"},{"$f":"IF('Risk template_JUNE 2026'!A23=\"\",\"\",'Risk template_JUNE 2026'!L23)","v":"Injury, burns"},{"$f":"IF('Risk template_JUNE 2026'!A23=\"\",\"\",'Risk template_JUNE 2026'!M23)","v":"Awareness, focussing on task at hand, Excersise caution when opening the taps, Adhere to warning signs"},{"$f":"IF('Risk template_JUNE 2026'!A23=\"\",\"\",'Risk template_JUNE 2026'!N23)","v":4},{"$f":"IF('Risk template_JUNE 2026'!A23=\"\",\"\",'Risk template_JUNE 2026'!O23)","v":"D"},{"$f":"IF('Risk template_JUNE 2026'!A23=\"\",\"\",'Risk template_JUNE 2026'!P23)","v":"I"},{"$f":"IF('Risk template_JUNE 2026'!A23=\"\",\"\",'Risk template_JUNE 2026'!Q23)","v":"Mostly effective"},{"$f":"IF('Risk template_JUNE 2026'!A23=\"\",\"\",'Risk template_JUNE 2026'!T23)","v":"Manager and Staff"},{"$f":"IF('Risk template_JUNE 2026'!A23=\"\",\"\",'Risk template_JUNE 2026'!U23)","v":"OHSAct section 8 (1): Employer shall provide and maintain as far as is reasonably practicable a working environment that is safe and without risk to the health of his employees."},{"$nulls":6},1,"IV","IV","III","III","III"]
[{"$f":"IF('Risk template_JUNE 2026'!#REF!=\"\",\"\",'Risk template_JUNE 2026'!#REF!)","v":{"$error":"#REF!"}},{"$f":"IF('Risk template_JUNE 2026'!#REF!=\"\",\"\",'Risk template_JUNE 2026'!#REF!)","v":{"$error":"#REF!"}},{"$f":"IF('Risk template_JUNE 2026'!#REF!=\"\",\"\",'Risk template_JUNE 2026'!#REF!)","v":{"$error":"#REF!"}},{"$f":"IF('Risk template_JUNE 2026'!#REF!=\"\",\"\",'Risk template_JUNE 2026'!#REF!)","v":{"$error":"#REF!"}},{"$f":"IF('Risk template_JUNE 2026'!#REF!=\"\",\"\",'Risk template_JUNE 2026'!#REF!)","v":{"$error":"#REF!"}},{"$f":"IF('Risk template_JUNE 2026'!#REF!=\"\",\"\",'Risk template_JUNE 2026'!#REF!)","v":{"$error":"#REF!"}},{"$f":"IF('Risk template_JUNE 2026'!#REF!=\"\",\"\",'Risk template_JUNE 2026'!#REF!)","v":{"$error":"#REF!"}},{"$f":"IF('Risk template_JUNE 2026'!#REF!=\"\",\"\",'Risk template_JUNE 2026'!#REF!)","v":{"$error":"#REF!"}},{"$f":"IF('Risk template_JUNE 2026'!#REF!=\"\",\"\",'Risk template_JUNE 2026'!#REF!)","v":{"$error":"#REF!"}},{"$f":"IF('Risk template_JUNE 2026'!#REF!=\"\",\"\",'Risk template_JUNE 2026'!#REF!)","v":{"$error":"#REF!"}},{"$f":"IF('Risk template_JUNE 2026'!#REF!=\"\",\"\",'Risk template_JUNE 2026'!#REF!)","v":{"$error":"#REF!"}},{"$f":"IF('Risk template_JUNE 2026'!#REF!=\"\",\"\",'Risk template_JUNE 2026'!#REF!)","v":{"$error":"#REF!"}},{"$nulls":7},"A","B","C","D","E"]
[{"$f":"IF('Risk template_JUNE 2026'!#REF!=\"\",\"\",'Risk template_JUNE 2026'!#REF!)","v":{"$error":"#REF!"}},{"$f":"IF('Risk template_JUNE 2026'!#REF!=\"\",\"\",'Risk template_JUNE 2026'!#REF!)","v":{"$error":"#REF!"}},{"$f":"IF('Risk template_JUNE 2026'!#REF!=\"\",\"\",'Risk template_JUNE 2026'!#REF!)","v":{"$error":"#REF!"}},{"$f":"IF('Risk template_JUNE 2026'!#REF!=\"\",\"\",'Risk template_JUNE 2026'!#REF!)","v":{"$error":"#REF!"}},{"$f":"IF('Risk template_JUNE 2026'!#REF!=\"\",\"\",'Risk template_JUNE 2026'!#REF!)","v":{"$error":"#REF!"}},{"$f":"IF('Risk template_JUNE 2026'!#REF!=\"\",\"\",'Risk template_JUNE 2026'!#REF!)","v":{"$error":"#REF!"}},{"$f":"IF('Risk template_JUNE 2026'!#REF!=\"\",\"\",'Risk template_JUNE 2026'!#REF!)","v":{"$error":"#REF!"}},{"$f":"IF('Risk template_JUNE 2026'!#REF!=\"\",\"\",'Risk template_JUNE 2026'!#REF!)","v":{"$error":"#REF!"}},{"$f":"IF('Risk template_JUNE 2026'!#REF!=\"\",\"\",'Risk template_JUNE 2026'!#REF!)","v":{"$error":"#REF!"}},{"$f":"IF('Risk template_JUNE 2026'!#REF!=\"\",\"\",'Risk template_JUNE 2026'!#REF!)","v":{"$error":"#REF!"}},{"$f":"IF('Risk template_JUNE 2026'!#REF!=\"\",\"\",'Risk template_JUNE 2026'!#REF!)","v":{"$error":"#REF!"}},{"$f":"IF('Risk template_JUNE 2026'!#REF!=\"\",\"\",'Risk template_JUNE 2026'!#REF!)","v":{"$error":"#REF!"}},{"$nulls":7},"Likelihood"]
[{"$f":"IF('Risk template_JUNE 2026'!#REF!=\"\",\"\",'Risk template_JUNE 2026'!#REF!)","v":{"$error":"#REF!"}},{"$f":"IF('Risk template_JUNE 2026'!#REF!=\"\",\"\",'Risk template_JUNE 2026'!#REF!)","v":{"$error":"#REF!"}},{"$f":"IF('Risk template_JUNE 2026'!#REF!=\"\",\"\",'Risk template_JUNE 2026'!#REF!)","v":{"$error":"#REF!"}},{"$f":"IF('Risk template_JUNE 2026'!#REF!=\"\",\"\",'Risk template_JUNE 2026'!#REF!)","v":{"$error":"#REF!"}},{"$f":"IF('Risk template_JUNE 2026'!#REF!=\"\",\"\",'Risk template_JUNE 2026'!#REF!)","v":{"$error":"#REF!"}},{"$f":"IF('Risk template_JUNE 2026'!#REF!=\"\",\"\",'Risk template_JUNE 2026'!#REF!)","v":{"$error":"#REF!"}},{"$f":"IF('Risk template_JUNE 2026'!#REF!=\"\",\"\",'Risk template_JUNE 2026'!#REF!)","v":{"$error":"#REF!"}},{"$f":"IF('Risk template_JUNE 2026'!#REF!=\"\",\"\",'Risk template_JUNE 2026'!#REF!)","v":{"$error":"#REF!"}},{"$f":"IF('Risk template_JUNE 2026'!#REF!=\"\",\"\",'Risk template_JUNE 2026'!#REF!)","v":{"$error":"#REF!"}},{"$f":"IF('Risk template_JUNE 2026'!#REF!=\"\",\"\",'Risk template_JUNE 2026'!#REF!)","v":{"$error":"#REF!"}},{"$f":"IF('Risk template_JUNE 2026'!#REF!=\"\",\"\",'Risk template_JUNE 2026'!#REF!)","v":{"$error":"#REF!"}},{"$f":"IF('Risk template_JUNE 2026'!#REF!=\"\",\"\",'Risk template_JUNE 2026'!#REF!)","v":{"$error":"#REF!"}}]
[{"$f":"IF('Risk template_JUNE 2026'!#REF!=\"\",\"\",'Risk template_JUNE 2026'!#REF!)","v":{"$error":"#REF!"}},{"$f":"IF('Risk template_JUNE 2026'!#REF!=\"\",\"\",'Risk template_JUNE 2026'!#REF!)","v":{"$error":"#REF!"}},{"$f":"IF('Risk template_JUNE 2026'!#REF!=\"\",\"\",'Risk template_JUNE 2026'!#REF!)","v":{"$error":"#REF!"}},{"$f":"IF('Risk template_JUNE 2026'!#REF!=\"\",\"\",'Risk template_JUNE 2026'!#REF!)","v":{"$error":"#REF!"}},{"$f":"IF('Risk template_JUNE 2026'!#REF!=\"\",\"\",'Risk template_JUNE 2026'!#REF!)","v":{"$error":"#REF!"}},{"$f":"IF('Risk template_JUNE 2026'!#REF!=\"\",\"\",'Risk template_JUNE 2026'!#REF!)","v":{"$error":"#REF!"}},{"$f":"IF('Risk template_JUNE 2026'!#REF!=\"\",\"\",'Risk template_JUNE 2026'!#REF!)","v":{"$error":"#REF!"}},{"$f":"IF('Risk template_JUNE 2026'!#REF!=\"\",\"\",'Risk template_JUNE 2026'!#REF!)","v":{"$error":"#REF!"}},{"$f":"IF('Risk template_JUNE 2026'!#REF!=\"\",\"\",'Risk template_JUNE 2026'!#REF!)","v":{"$error":"#REF!"}},{"$f":"IF('Risk template_JUNE 2026'!#REF!=\"\",\"\",'Risk template_JUNE 2026'!#REF!)","v":{"$error":"#REF!"}},{"$f":"IF('Risk template_JUNE 2026'!#REF!=\"\",\"\",'Risk template_JUNE 2026'!#REF!)","v":{"$error":"#REF!"}},{"$f":"IF('Risk template_JUNE 2026'!#REF!=\"\",\"\",'Risk template_JUNE 2026'!#REF!)","v":{"$error":"#REF!"}}]
[{"$f":"IF('Risk template_JUNE 2026'!#REF!=\"\",\"\",'Risk template_JUNE 2026'!#REF!)","v":{"$error":"#REF!"}},{"$f":"IF('Risk template_JUNE 2026'!#REF!=\"\",\"\",'Risk template_JUNE 2026'!#REF!)","v":{"$error":"#REF!"}},{"$f":"IF('Risk template_JUNE 2026'!#REF!=\"\",\"\",'Risk template_JUNE 2026'!#REF!)","v":{"$error":"#REF!"}},{"$f":"IF('Risk template_JUNE 2026'!#REF!=\"\",\"\",'Risk template_JUNE 2026'!#REF!)","v":{"$error":"#REF!"}},{"$f":"IF('Risk template_JUNE 2026'!#REF!=\"\",\"\",'Risk template_JUNE 2026'!#REF!)","v":{"$error":"#REF!"}},{"$f":"IF('Risk template_JUNE 2026'!#REF!=\"\",\"\",'Risk template_JUNE 2026'!#REF!)","v":{"$error":"#REF!"}},{"$f":"IF('Risk template_JUNE 2026'!#REF!=\"\",\"\",'Risk template_JUNE 2026'!#REF!)","v":{"$error":"#REF!"}},{"$f":"IF('Risk template_JUNE 2026'!#REF!=\"\",\"\",'Risk template_JUNE 2026'!#REF!)","v":{"$error":"#REF!"}},{"$f":"IF('Risk template_JUNE 2026'!#REF!=\"\",\"\",'Risk template_JUNE 2026'!#REF!)","v":{"$error":"#REF!"}},{"$f":"IF('Risk template_JUNE 2026'!#REF!=\"\",\"\",'Risk template_JUNE 2026'!#REF!)","v":{"$error":"#REF!"}},{"$f":"IF('Risk template_JUNE 2026'!#REF!=\"\",\"\",'Risk template_JUNE 2026'!#REF!)","v":{"$error":"#REF!"}},{"$f":"IF('Risk template_JUNE 2026'!#REF!=\"\",\"\",'Risk template_JUNE 2026'!#REF!)","v":{"$error":"#REF!"}}]
[{"$f":"IF('Risk template_JUNE 2026'!A36=\"\",\"\",'Risk template_JUNE 2026'!A36)","v":"Office Environment"},{"$f":"IF('Risk template_JUNE 2026'!A36=\"\",\"\",'Risk template_JUNE 2026'!D36)","v":"Unsafe use of Stairways"},{"$f":"IF('Risk template_JUNE 2026'!A36=\"\",\"\",'Risk template_JUNE 2026'!F36)","v":"Falling down the stairs"},{"$f":"IF('Risk template_JUNE 2026'!A36=\"\",\"\",'Risk template_JUNE 2026'!G36)","v":"Safety"},{"$f":"IF('Risk template_JUNE 2026'!A36=\"\",\"\",'Risk template_JUNE 2026'!L36)","v":"Fractures, bruises, dislocation of ankle etc"},{"$f":"IF('Risk template_JUNE 2026'!A36=\"\",\"\",'Risk template_JUNE 2026'!M36)","v":"Informing personnel about the safe use of stairways "},{"$f":"IF('Risk template_JUNE 2026'!A36=\"\",\"\",'Risk template_JUNE 2026'!N36)","v":4},{"$f":"IF('Risk template_JUNE 2026'!A36=\"\",\"\",'Risk template_JUNE 2026'!O36)","v":"D"},{"$f":"IF('Risk template_JUNE 2026'!A36=\"\",\"\",'Risk template_JUNE 2026'!P36)","v":"I"},{"$f":"IF('Risk template_JUNE 2026'!A36=\"\",\"\",'Risk template_JUNE 2026'!Q36)","v":"Mostly effective"},{"$f":"IF('Risk template_JUNE 2026'!A36=\"\",\"\",'Risk template_JUNE 2026'!T36)","v":"Manager and Staff"},{"$f":"IF('Risk template_JUNE 2026'!A36=\"\",\"\",'Risk template_JUNE 2026'!U36)","v":"OHSAct section 8 (1): Employer shall provide and maintain as far as is reasonably practicable a working environment that is safe and without risk to the health of his employees."}]
[{"$f":"IF('Risk template_JUNE 2026'!#REF!=\"\",\"\",'Risk template_JUNE 2026'!#REF!)","v":{"$error":"#REF!"}},{"$f":"IF('Risk template_JUNE 2026'!#REF!=\"\",\"\",'Risk template_JUNE 2026'!#REF!)","v":{"$error":"#REF!"}},{"$f":"IF('Risk template_JUNE 2026'!#REF!=\"\",\"\",'Risk template_JUNE 2026'!#REF!)","v":{"$error":"#REF!"}},{"$f":"IF('Risk template_JUNE 2026'!#REF!=\"\",\"\",'Risk template_JUNE 2026'!#REF!)","v":{"$error":"#REF!"}},{"$f":"IF('Risk template_JUNE 2026'!#REF!=\"\",\"\",'Risk template_JUNE 2026'!#REF!)","v":{"$error":"#REF!"}},{"$f":"IF('Risk template_JUNE 2026'!#REF!=\"\",\"\",'Risk template_JUNE 2026'!#REF!)","v":{"$error":"#REF!"}},{"$f":"IF('Risk template_JUNE 2026'!#REF!=\"\",\"\",'Risk template_JUNE 2026'!#REF!)","v":{"$error":"#REF!"}},{"$f":"IF('Risk template_JUNE 2026'!#REF!=\"\",\"\",'Risk template_JUNE 2026'!#REF!)","v":{"$error":"#REF!"}},{"$f":"IF('Risk template_JUNE 2026'!#REF!=\"\",\"\",'Risk template_JUNE 2026'!#REF!)","v":{"$error":"#REF!"}},{"$f":"IF('Risk template_JUNE 2026'!#REF!=\"\",\"\",'Risk template_JUNE 2026'!#REF!)","v":{"$error":"#REF!"}},{"$f":"IF('Risk template_JUNE 2026'!#REF!=\"\",\"\",'Risk template_JUNE 2026'!#REF!)","v":{"$error":"#REF!"}},{"$f":"IF('Risk template_JUNE 2026'!#REF!=\"\",\"\",'Risk template_JUNE 2026'!#REF!)","v":{"$error":"#REF!"}}]
[{"$f":"IF('Risk template_JUNE 2026'!#REF!=\"\",\"\",'Risk template_JUNE 2026'!#REF!)","v":{"$error":"#REF!"}},{"$f":"IF('Risk template_JUNE 2026'!#REF!=\"\",\"\",'Risk template_JUNE 2026'!#REF!)","v":{"$error":"#REF!"}},{"$f":"IF('Risk template_JUNE 2026'!#REF!=\"\",\"\",'Risk template_JUNE 2026'!#REF!)","v":{"$error":"#REF!"}},{"$f":"IF('Risk template_JUNE 2026'!#REF!=\"\",\"\",'Risk template_JUNE 2026'!#REF!)","v":{"$error":"#REF!"}},{"$f":"IF('Risk template_JUNE 2026'!#REF!=\"\",\"\",'Risk template_JUNE 2026'!#REF!)","v":{"$error":"#REF!"}},{"$f":"IF('Risk template_JUNE 2026'!#REF!=\"\",\"\",'Risk template_JUNE 2026'!#REF!)","v":{"$error":"#REF!"}},{"$f":"IF('Risk template_JUNE 2026'!#REF!=\"\",\"\",'Risk template_JUNE 2026'!#REF!)","v":{"$error":"#REF!"}},{"$f":"IF('Risk template_JUNE 2026'!#REF!=\"\",\"\",'Risk template_JUNE 2026'!#REF!)","v":{"$error":"#REF!"}},{"$f":"IF('Risk template_JUNE 2026'!#REF!=\"\",\"\",'Risk template_JUNE 2026'!#REF!)","v":{"$error":"#REF!"}},{"$f":"IF('Risk template_JUNE 2026'!#REF!=\"\",\"\",'Risk template_JUNE 2026'!#REF!)","v":{"$error":"#REF!"}},{"$f":"IF('Risk template_JUNE 2026'!#REF!=\"\",\"\",'Risk template_JUNE 2026'!#REF!)","v":{"$error":"#REF!"}},{"$f":"IF('Risk template_JUNE 2026'!#REF!=\"\",\"\",'Risk template_JUNE 2026'!#REF!)","v":{"$error":"#REF!"}}]
[{"$f":"IF('Risk template_JUNE 2026'!#REF!=\"\",\"\",'Risk template_JUNE 2026'!#REF!)","v":{"$error":"#REF!"}},{"$f":"IF('Risk template_JUNE 2026'!#REF!=\"\",\"\",'Risk template_JUNE 2026'!#REF!)","v":{"$error":"#REF!"}},{"$f":"IF('Risk template_JUNE 2026'!#REF!=\"\",\"\",'Risk template_JUNE 2026'!#REF!)","v":{"$error":"#REF!"}},{"$f":"IF('Risk template_JUNE 2026'!#REF!=\"\",\"\",'Risk template_JUNE 2026'!#REF!)","v":{"$error":"#REF!"}},{"$f":"IF('Risk template_JUNE 2026'!#REF!=\"\",\"\",'Risk template_JUNE 2026'!#REF!)","v":{"$error":"#REF!"}},{"$f":"IF('Risk template_JUNE 2026'!#REF!=\"\",\"\",'Risk template_JUNE 2026'!#REF!)","v":{"$error":"#REF!"}},{"$f":"IF('Risk template_JUNE 2026'!#REF!=\"\",\"\",'Risk template_JUNE 2026'!#REF!)","v":{"$error":"#REF!"}},{"$f":"IF('Risk template_JUNE 2026'!#REF!=\"\",\"\",'Risk template_JUNE 2026'!#REF!)","v":{"$error":"#REF!"}},{"$f":"IF('Risk template_JUNE 2026'!#REF!=\"\",\"\",'Risk template_JUNE 2026'!#REF!)","v":{"$error":"#REF!"}},{"$f":"IF('Risk template_JUNE 2026'!#REF!=\"\",\"\",'Risk template_JUNE 2026'!#REF!)","v":{"$error":"#REF!"}},{"$f":"IF('Risk template_JUNE 2026'!#REF!=\"\",\"\",'Risk template_JUNE 2026'!#REF!)","v":{"$error":"#REF!"}},{"$f":"IF('Risk template_JUNE 2026'!#REF!=\"\",\"\",'Risk template_JUNE 2026'!#REF!)","v":{"$error":"#REF!"}}]
[{"$f":"IF('Risk template_JUNE 2026'!#REF!=\"\",\"\",'Risk template_JUNE 2026'!#REF!)","v":{"$error":"#REF!"}},{"$f":"IF('Risk template_JUNE 2026'!#REF!=\"\",\"\",'Risk template_JUNE 2026'!#REF!)","v":{"$error":"#REF!"}},{"$f":"IF('Risk template_JUNE 2026'!#REF!=\"\",\"\",'Risk template_JUNE 2026'!#REF!)","v":{"$error":"#REF!"}},{"$f":"IF('Risk template_JUNE 2026'!#REF!=\"\",\"\",'Risk template_JUNE 2026'!#REF!)","v":{"$error":"#REF!"}},{"$f":"IF('Risk template_JUNE 2026'!#REF!=\"\",\"\",'Risk template_JUNE 2026'!#REF!)","v":{"$error":"#REF!"}},{"$f":"IF('Risk template_JUNE 2026'!#REF!=\"\",\"\",'Risk template_JUNE 2026'!#REF!)","v":{"$error":"#REF!"}},{"$f":"IF('Risk template_JUNE 2026'!#REF!=\"\",\"\",'Risk template_JUNE 2026'!#REF!)","v":{"$error":"#REF!"}},{"$f":"IF('Risk template_JUNE 2026'!#REF!=\"\",\"\",'Risk template_JUNE 2026'!#REF!)","v":{"$error":"#REF!"}},{"$f":"IF('Risk template_JUNE 2026'!#REF!=\"\",\"\",'Risk template_JUNE 2026'!#REF!)","v":{"$error":"#REF!"}},{"$f":"IF('Risk template_JUNE 2026'!#REF!=\"\",\"\",'Risk template_JUNE 2026'!#REF!)","v":{"$error":"#REF!"}},{"$f":"IF('Risk template_JUNE 2026'!#REF!=\"\",\"\",'Risk template_JUNE 2026'!#REF!)","v":{"$error":"#REF!"}},{"$f":"IF('Risk template_JUNE 2026'!#REF!=\"\",\"\",'Risk template_JUNE 2026'!#REF!)","v":{"$error":"#REF!"}}]
[{"$f":"IF('Risk template_JUNE 2026'!#REF!=\"\",\"\",'Risk template_JUNE 2026'!#REF!)","v":{"$error":"#REF!"}},{"$f":"IF('Risk template_JUNE 2026'!#REF!=\"\",\"\",'Risk template_JUNE 2026'!#REF!)","v":{"$error":"#REF!"}},{"$f":"IF('Risk template_JUNE 2026'!#REF!=\"\",\"\",'Risk template_JUNE 2026'!#REF!)","v":{"$error":"#REF!"}},{"$f":"IF('Risk template_JUNE 2026'!#REF!=\"\",\"\",'Risk template_JUNE 2026'!#REF!)","v":{"$error":"#REF!"}},{"$f":"IF('Risk template_JUNE 2026'!#REF!=\"\",\"\",'Risk template_JUNE 2026'!#REF!)","v":{"$error":"#REF!"}},{"$f":"IF('Risk template_JUNE 2026'!#REF!=\"\",\"\",'Risk template_JUNE 2026'!#REF!)","v":{"$error":"#REF!"}},{"$f":"IF('Risk template_JUNE 2026'!#REF!=\"\",\"\",'Risk template_JUNE 2026'!#REF!)","v":{"$error":"#REF!"}},{"$f":"IF('Risk template_JUNE 2026'!#REF!=\"\",\"\",'Risk template_JUNE 2026'!#REF!)","v":{"$error":"#REF!"}},{"$f":"IF('Risk template_JUNE 2026'!#REF!=\"\",\"\",'Risk template_JUNE 2026'!#REF!)","v":{"$error":"#REF!"}},{"$f":"IF('Risk template_JUNE 2026'!#REF!=\"\",\"\",'Risk template_JUNE 2026'!#REF!)","v":{"$error":"#REF!"}},{"$f":"IF('Risk template_JUNE 2026'!#REF!=\"\",\"\",'Risk template_JUNE 2026'!#REF!)","v":{"$error":"#REF!"}},{"$f":"IF('Risk template_JUNE 2026'!#REF!=\"\",\"\",'Risk template_JUNE 2026'!#REF!)","v":{"$error":"#REF!"}}]
[{"$f":"IF('Risk template_JUNE 2026'!#REF!=\"\",\"\",'Risk template_JUNE 2026'!#REF!)","v":{"$error":"#REF!"}},{"$f":"IF('Risk template_JUNE 2026'!#REF!=\"\",\"\",'Risk template_JUNE 2026'!#REF!)","v":{"$error":"#REF!"}},{"$f":"IF('Risk template_JUNE 2026'!#REF!=\"\",\"\",'Risk template_JUNE 2026'!#REF!)","v":{"$error":"#REF!"}},{"$f":"IF('Risk template_JUNE 2026'!#REF!=\"\",\"\",'Risk template_JUNE 2026'!#REF!)","v":{"$error":"#REF!"}},{"$f":"IF('Risk template_JUNE 2026'!#REF!=\"\",\"\",'Risk template_JUNE 2026'!#REF!)","v":{"$error":"#REF!"}},{"$f":"IF('Risk template_JUNE 2026'!#REF!=\"\",\"\",'Risk template_JUNE 2026'!#REF!)","v":{"$error":"#REF!"}},{"$f":"IF('Risk template_JUNE 2026'!#REF!=\"\",\"\",'Risk template_JUNE 2026'!#REF!)","v":{"$error":"#REF!"}},{"$f":"IF('Risk template_JUNE 2026'!#REF!=\"\",\"\",'Risk template_JUNE 2026'!#REF!)","v":{"$error":"#REF!"}},{"$f":"IF('Risk template_JUNE 2026'!#REF!=\"\",\"\",'Risk template_JUNE 2026'!#REF!)","v":{"$error":"#REF!"}},{"$f":"IF('Risk template_JUNE 2026'!#REF!=\"\",\"\",'Risk template_JUNE 2026'!#REF!)","v":{"$error":"#REF!"}},{"$f":"IF('Risk template_JUNE 2026'!#REF!=\"\",\"\",'Risk template_JUNE 2026'!#REF!)","v":{"$error":"#REF!"}},{"$f":"IF('Risk template_JUNE 2026'!#REF!=\"\",\"\",'Risk template_JUNE 2026'!#REF!)","v":{"$error":"#REF!"}}]
[{"$f":"IF('Risk template_JUNE 2026'!#REF!=\"\",\"\",'Risk template_JUNE 2026'!#REF!)","v":{"$error":"#REF!"}},{"$f":"IF('Risk template_JUNE 2026'!#REF!=\"\",\"\",'Risk template_JUNE 2026'!#REF!)","v":{"$error":"#REF!"}},{"$f":"IF('Risk template_JUNE 2026'!#REF!=\"\",\"\",'Risk template_JUNE 2026'!#REF!)","v":{"$error":"#REF!"}},{"$f":"IF('Risk template_JUNE 2026'!#REF!=\"\",\"\",'Risk template_JUNE 2026'!#REF!)","v":{"$error":"#REF!"}},{"$f":"IF('Risk template_JUNE 2026'!#REF!=\"\",\"\",'Risk template_JUNE 2026'!#REF!)","v":{"$error":"#REF!"}},{"$f":"IF('Risk template_JUNE 2026'!#REF!=\"\",\"\",'Risk template_JUNE 2026'!#REF!)","v":{"$error":"#REF!"}},{"$f":"IF('Risk template_JUNE 2026'!#REF!=\"\",\"\",'Risk template_JUNE 2026'!#REF!)","v":{"$error":"#REF!"}},{"$f":"IF('Risk template_JUNE 2026'!#REF!=\"\",\"\",'Risk template_JUNE 2026'!#REF!)","v":{"$error":"#REF!"}},{"$f":"IF('Risk template_JUNE 2026'!#REF!=\"\",\"\",'Risk template_JUNE 2026'!#REF!)","v":{"$error":"#REF!"}},{"$f":"IF('Risk template_JUNE 2026'!#REF!=\"\",\"\",'Risk template_JUNE 2026'!#REF!)","v":{"$error":"#REF!"}},{"$f":"IF('Risk template_JUNE 2026'!#REF!=\"\",\"\",'Risk template_JUNE 2026'!#REF!)","v":{"$error":"#REF!"}},{"$f":"IF('Risk template_JUNE 2026'!#REF!=\"\",\"\",'Risk template_JUNE 2026'!#REF!)","v":{"$error":"#REF!"}}]
[{"$f":"IF('Risk template_JUNE 2026'!#REF!=\"\",\"\",'Risk template_JUNE 2026'!#REF!)","v":{"$error":"#REF!"}},{"$f":"IF('Risk template_JUNE 2026'!#REF!=\"\",\"\",'Risk template_JUNE 2026'!#REF!)","v":{"$error":"#REF!"}},{"$f":"IF('Risk template_JUNE 2026'!#REF!=\"\",\"\",'Risk template_JUNE 2026'!#REF!)","v":{"$error":"#REF!"}},{"$f":"IF('Risk template_JUNE 2026'!#REF!=\"\",\"\",'Risk template_JUNE 2026'!#REF!)","v":{"$error":"#REF!"}},{"$f":"IF('Risk template_JUNE 2026'!#REF!=\"\",\"\",'Risk template_JUNE 2026'!#REF!)","v":{"$error":"#REF!"}},{"$f":"IF('Risk template_JUNE 2026'!#REF!=\"\",\"\",'Risk template_JUNE 2026'!#REF!)","v":{"$error":"#REF!"}},{"$f":"IF('Risk template_JUNE 2026'!#REF!=\"\",\"\",'Risk template_JUNE 2026'!#REF!)","v":{"$error":"#REF!"}},{"$f":"IF('Risk template_JUNE 2026'!#REF!=\"\",\"\",'Risk template_JUNE 2026'!#REF!)","v":{"$error":"#REF!"}},{"$f":"IF('Risk template_JUNE 2026'!#REF!=\"\",\"\",'Risk template_JUNE 2026'!#REF!)","v":{"$error":"#REF!"}},{"$f":"IF('Risk template_JUNE 2026'!#REF!=\"\",\"\",'Risk template_JUNE 2026'!#REF!)","v":{"$error":"#REF!"}},{"$f":"IF('Risk template_JUNE 2026'!#REF!=\"\",\"\",'Risk template_JUNE 2026'!#REF!)","v":{"$error":"#REF!"}},{"$f":"IF('Risk template_JUNE 2026'!#REF!=\"\",\"\",'Risk template_JUNE 2026'!#REF!)","v":{"$error":"#REF!"}}]
[{"$f":"IF('Risk template_JUNE 2026'!#REF!=\"\",\"\",'Risk template_JUNE 2026'!#REF!)","v":{"$error":"#REF!"}},{"$f":"IF('Risk template_JUNE 2026'!#REF!=\"\",\"\",'Risk template_JUNE 2026'!#REF!)","v":{"$error":"#REF!"}},{"$f":"IF('Risk template_JUNE 2026'!#REF!=\"\",\"\",'Risk template_JUNE 2026'!#REF!)","v":{"$error":"#REF!"}},{"$f":"IF('Risk template_JUNE 2026'!#REF!=\"\",\"\",'Risk template_JUNE 2026'!#REF!)","v":{"$error":"#REF!"}},{"$f":"IF('Risk template_JUNE 2026'!#REF!=\"\",\"\",'Risk template_JUNE 2026'!#REF!)","v":{"$error":"#REF!"}},{"$f":"IF('Risk template_JUNE 2026'!#REF!=\"\",\"\",'Risk template_JUNE 2026'!#REF!)","v":{"$error":"#REF!"}},{"$f":"IF('Risk template_JUNE 2026'!#REF!=\"\",\"\",'Risk template_JUNE 2026'!#REF!)","v":{"$error":"#REF!"}},{"$f":"IF('Risk template_JUNE 2026'!#REF!=\"\",\"\",'Risk template_JUNE 2026'!#REF!)","v":{"$error":"#REF!"}},{"$f":"IF('Risk template_JUNE 2026'!#REF!=\"\",\"\",'Risk template_JUNE 2026'!#REF!)","v":{"$error":"#REF!"}},{"$f":"IF('Risk template_JUNE 2026'!#REF!=\"\",\"\",'Risk template_JUNE 2026'!#REF!)","v":{"$error":"#REF!"}},{"$f":"IF('Risk template_JUNE 2026'!#REF!=\"\",\"\",'Risk template_JUNE 2026'!#REF!)","v":{"$error":"#REF!"}},{"$f":"IF('Risk template_JUNE 2026'!#REF!=\"\",\"\",'Risk template_JUNE 2026'!#REF!)","v":{"$error":"#REF!"}}]
[{"$f":"IF('Risk template_JUNE 2026'!#REF!=\"\",\"\",'Risk template_JUNE 2026'!#REF!)","v":{"$error":"#REF!"}},{"$f":"IF('Risk template_JUNE 2026'!#REF!=\"\",\"\",'Risk template_JUNE 2026'!#REF!)","v":{"$error":"#REF!"}},{"$f":"IF('Risk template_JUNE 2026'!#REF!=\"\",\"\",'Risk template_JUNE 2026'!#REF!)","v":{"$error":"#REF!"}},{"$f":"IF('Risk template_JUNE 2026'!#REF!=\"\",\"\",'Risk template_JUNE 2026'!#REF!)","v":{"$error":"#REF!"}},{"$f":"IF('Risk template_JUNE 2026'!#REF!=\"\",\"\",'Risk template_JUNE 2026'!#REF!)","v":{"$error":"#REF!"}},{"$f":"IF('Risk template_JUNE 2026'!#REF!=\"\",\"\",'Risk template_JUNE 2026'!#REF!)","v":{"$error":"#REF!"}},{"$f":"IF('Risk template_JUNE 2026'!#REF!=\"\",\"\",'Risk template_JUNE 2026'!#REF!)","v":{"$error":"#REF!"}},{"$f":"IF('Risk template_JUNE 2026'!#REF!=\"\",\"\",'Risk template_JUNE 2026'!#REF!)","v":{"$error":"#REF!"}},{"$f":"IF('Risk template_JUNE 2026'!#REF!=\"\",\"\",'Risk template_JUNE 2026'!#REF!)","v":{"$error":"#REF!"}},{"$f":"IF('Risk template_JUNE 2026'!#REF!=\"\",\"\",'Risk template_JUNE 2026'!#REF!)","v":{"$error":"#REF!"}},{"$f":"IF('Risk template_JUNE 2026'!#REF!=\"\",\"\",'Risk template_JUNE 2026'!#REF!)","v":{"$error":"#REF!"}},{"$f":"IF('Risk template_JUNE 2026'!#REF!=\"\",\"\",'Risk template_JUNE 2026'!#REF!)","v":{"$error":"#REF!"}}]
[{"$f":"IF('Risk template_JUNE 2026'!#REF!=\"\",\"\",'Risk template_JUNE 2026'!#REF!)","v":{"$error":"#REF!"}},{"$f":"IF('Risk template_JUNE 2026'!#REF!=\"\",\"\",'Risk template_JUNE 2026'!#REF!)","v":{"$error":"#REF!"}},{"$f":"IF('Risk template_JUNE 2026'!#REF!=\"\",\"\",'Risk template_JUNE 2026'!#REF!)","v":{"$error":"#REF!"}},{"$f":"IF('Risk template_JUNE 2026'!#REF!=\"\",\"\",'Risk template_JUNE 2026'!#REF!)","v":{"$error":"#REF!"}},{"$f":"IF('Risk template_JUNE 2026'!#REF!=\"\",\"\",'Risk template_JUNE 2026'!#REF!)","v":{"$error":"#REF!"}},{"$f":"IF('Risk template_JUNE 2026'!#REF!=\"\",\"\",'Risk template_JUNE 2026'!#REF!)","v":{"$error":"#REF!"}},{"$f":"IF('Risk template_JUNE 2026'!#REF!=\"\",\"\",'Risk template_JUNE 2026'!#REF!)","v":{"$error":"#REF!"}},{"$f":"IF('Risk template_JUNE 2026'!#REF!=\"\",\"\",'Risk template_JUNE 2026'!#REF!)","v":{"$error":"#REF!"}},{"$f":"IF('Risk template_JUNE 2026'!#REF!=\"\",\"\",'Risk template_JUNE 2026'!#REF!)","v":{"$error":"#REF!"}},{"$f":"IF('Risk template_JUNE 2026'!#REF!=\"\",\"\",'Risk template_JUNE 2026'!#REF!)","v":{"$error":"#REF!"}},{"$f":"IF('Risk template_JUNE 2026'!#REF!=\"\",\"\",'Risk template_JUNE 2026'!#REF!)","v":{"$error":"#REF!"}},{"$f":"IF('Risk template_JUNE 2026'!#REF!=\"\",\"\",'Risk template_JUNE 2026'!#REF!)","v":{"$error":"#REF!"}}]
[{"$f":"IF('Risk template_JUNE 2026'!#REF!=\"\",\"\",'Risk template_JUNE 2026'!#REF!)","v":{"$error":"#REF!"}},{"$f":"IF('Risk template_JUNE 2026'!#REF!=\"\",\"\",'Risk template_JUNE 2026'!#REF!)","v":{"$error":"#REF!"}},{"$f":"IF('Risk template_JUNE 2026'!#REF!=\"\",\"\",'Risk template_JUNE 2026'!#REF!)","v":{"$error":"#REF!"}},{"$f":"IF('Risk template_JUNE 2026'!#REF!=\"\",\"\",'Risk template_JUNE 2026'!#REF!)","v":{"$error":"#REF!"}},{"$f":"IF('Risk template_JUNE 2026'!#REF!=\"\",\"\",'Risk template_JUNE 2026'!#REF!)","v":{"$error":"#REF!"}},{"$f":"IF('Risk template_JUNE 2026'!#REF!=\"\",\"\",'Risk template_JUNE 2026'!#REF!)","v":{"$error":"#REF!"}},{"$f":"IF('Risk template_JUNE 2026'!#REF!=\"\",\"\",'Risk template_JUNE 2026'!#REF!)","v":{"$error":"#REF!"}},{"$f":"IF('Risk template_JUNE 2026'!#REF!=\"\",\"\",'Risk template_JUNE 2026'!#REF!)","v":{"$error":"#REF!"}},{"$f":"IF('Risk template_JUNE 2026'!#REF!=\"\",\"\",'Risk template_JUNE 2026'!#REF!)","v":{"$error":"#REF!"}},{"$f":"IF('Risk template_JUNE 2026'!#REF!=\"\",\"\",'Risk template_JUNE 2026'!#REF!)","v":{"$error":"#REF!"}},{"$f":"IF('Risk template_JUNE 2026'!#REF!=\"\",\"\",'Risk template_JUNE 2026'!#REF!)","v":{"$error":"#REF!"}},{"$f":"IF('Risk template_JUNE 2026'!#REF!=\"\",\"\",'Risk template_JUNE 2026'!#REF!)","v":{"$error":"#REF!"}}]
[{"$f":"IF('Risk template_JUNE 2026'!#REF!=\"\",\"\",'Risk template_JUNE 2026'!#REF!)","v":{"$error":"#REF!"}},{"$f":"IF('Risk template_JUNE 2026'!#REF!=\"\",\"\",'Risk template_JUNE 2026'!#REF!)","v":{"$error":"#REF!"}},{"$f":"IF('Risk template_JUNE 2026'!#REF!=\"\",\"\",'Risk template_JUNE 2026'!#REF!)","v":{"$error":"#REF!"}},{"$f":"IF('Risk template_JUNE 2026'!#REF!=\"\",\"\",'Risk template_JUNE 2026'!#REF!)","v":{"$error":"#REF!"}},{"$f":"IF('Risk template_JUNE 2026'!#REF!=\"\",\"\",'Risk template_JUNE 2026'!#REF!)","v":{"$error":"#REF!"}},{"$f":"IF('Risk template_JUNE 2026'!#REF!=\"\",\"\",'Risk template_JUNE 2026'!#REF!)","v":{"$error":"#REF!"}},{"$f":"IF('Risk template_JUNE 2026'!#REF!=\"\",\"\",'Risk template_JUNE 2026'!#REF!)","v":{"$error":"#REF!"}},{"$f":"IF('Risk template_JUNE 2026'!#REF!=\"\",\"\",'Risk template_JUNE 2026'!#REF!)","v":{"$error":"#REF!"}},{"$f":"IF('Risk template_JUNE 2026'!#REF!=\"\",\"\",'Risk template_JUNE 2026'!#REF!)","v":{"$error":"#REF!"}},{"$f":"IF('Risk template_JUNE 2026'!#REF!=\"\",\"\",'Risk template_JUNE 2026'!#REF!)","v":{"$error":"#REF!"}},{"$f":"IF('Risk template_JUNE 2026'!#REF!=\"\",\"\",'Risk template_JUNE 2026'!#REF!)","v":{"$error":"#REF!"}},{"$f":"IF('Risk template_JUNE 2026'!#REF!=\"\",\"\",'Risk template_JUNE 2026'!#REF!)","v":{"$error":"#REF!"}}]
[{"$f":"IF('Risk template_JUNE 2026'!#REF!=\"\",\"\",'Risk template_JUNE 2026'!#REF!)","v":{"$error":"#REF!"}},{"$f":"IF('Risk template_JUNE 2026'!#REF!=\"\",\"\",'Risk template_JUNE 2026'!#REF!)","v":{"$error":"#REF!"}},{"$f":"IF('Risk template_JUNE 2026'!#REF!=\"\",\"\",'Risk template_JUNE 2026'!#REF!)","v":{"$error":"#REF!"}},{"$f":"IF('Risk template_JUNE 2026'!#REF!=\"\",\"\",'Risk template_JUNE 2026'!#REF!)","v":{"$error":"#REF!"}},{"$f":"IF('Risk template_JUNE 2026'!#REF!=\"\",\"\",'Risk template_JUNE 2026'!#REF!)","v":{"$error":"#REF!"}},{"$f":"IF('Risk template_JUNE 2026'!#REF!=\"\",\"\",'Risk template_JUNE 2026'!#REF!)","v":{"$error":"#REF!"}},{"$f":"IF('Risk template_JUNE 2026'!#REF!=\"\",\"\",'Risk template_JUNE 2026'!#REF!)","v":{"$error":"#REF!"}},{"$f":"IF('Risk template_JUNE 2026'!#REF!=\"\",\"\",'Risk template_JUNE 2026'!#REF!)","v":{"$error":"#REF!"}},{"$f":"IF('Risk template_JUNE 2026'!#REF!=\"\",\"\",'Risk template_JUNE 2026'!#REF!)","v":{"$error":"#REF!"}},{"$f":"IF('Risk template_JUNE 2026'!#REF!=\"\",\"\",'Risk template_JUNE 2026'!#REF!)","v":{"$error":"#REF!"}},{"$f":"IF('Risk template_JUNE 2026'!#REF!=\"\",\"\",'Risk template_JUNE 2026'!#REF!)","v":{"$error":"#REF!"}},{"$f":"IF('Risk template_JUNE 2026'!#REF!=\"\",\"\",'Risk template_JUNE 2026'!#REF!)","v":{"$error":"#REF!"}}]
[{"$f":"IF('Risk template_JUNE 2026'!#REF!=\"\",\"\",'Risk template_JUNE 2026'!#REF!)","v":{"$error":"#REF!"}},{"$f":"IF('Risk template_JUNE 2026'!#REF!=\"\",\"\",'Risk template_JUNE 2026'!#REF!)","v":{"$error":"#REF!"}},{"$f":"IF('Risk template_JUNE 2026'!#REF!=\"\",\"\",'Risk template_JUNE 2026'!#REF!)","v":{"$error":"#REF!"}},{"$f":"IF('Risk template_JUNE 2026'!#REF!=\"\",\"\",'Risk template_JUNE 2026'!#REF!)","v":{"$error":"#REF!"}},{"$f":"IF('Risk template_JUNE 2026'!#REF!=\"\",\"\",'Risk template_JUNE 2026'!#REF!)","v":{"$error":"#REF!"}},{"$f":"IF('Risk template_JUNE 2026'!#REF!=\"\",\"\",'Risk template_JUNE 2026'!#REF!)","v":{"$error":"#REF!"}},{"$f":"IF('Risk template_JUNE 2026'!#REF!=\"\",\"\",'Risk template_JUNE 2026'!#REF!)","v":{"$error":"#REF!"}},{"$f":"IF('Risk template_JUNE 2026'!#REF!=\"\",\"\",'Risk template_JUNE 2026'!#REF!)","v":{"$error":"#REF!"}},{"$f":"IF('Risk template_JUNE 2026'!#REF!=\"\",\"\",'Risk template_JUNE 2026'!#REF!)","v":{"$error":"#REF!"}},{"$f":"IF('Risk template_JUNE 2026'!#REF!=\"\",\"\",'Risk template_JUNE 2026'!#REF!)","v":{"$error":"#REF!"}},{"$f":"IF('Risk template_JUNE 2026'!#REF!=\"\",\"\",'Risk template_JUNE 2026'!#REF!)","v":{"$error":"#REF!"}},{"$f":"IF('Risk template_JUNE 2026'!#REF!=\"\",\"\",'Risk template_JUNE 2026'!#REF!)","v":{"$error":"#REF!"}}]
[{"$f":"IF('Risk template_JUNE 2026'!#REF!=\"\",\"\",'Risk template_JUNE 2026'!#REF!)","v":{"$error":"#REF!"}},{"$f":"IF('Risk template_JUNE 2026'!#REF!=\"\",\"\",'Risk template_JUNE 2026'!#REF!)","v":{"$error":"#REF!"}},{"$f":"IF('Risk template_JUNE 2026'!#REF!=\"\",\"\",'Risk template_JUNE 2026'!#REF!)","v":{"$error":"#REF!"}},{"$f":"IF('Risk template_JUNE 2026'!#REF!=\"\",\"\",'Risk template_JUNE 2026'!#REF!)","v":{"$error":"#REF!"}},{"$f":"IF('Risk template_JUNE 2026'!#REF!=\"\",\"\",'Risk template_JUNE 2026'!#REF!)","v":{"$error":"#REF!"}},{"$f":"IF('Risk template_JUNE 2026'!#REF!=\"\",\"\",'Risk template_JUNE 2026'!#REF!)","v":{"$error":"#REF!"}},{"$f":"IF('Risk template_JUNE 2026'!#REF!=\"\",\"\",'Risk template_JUNE 2026'!#REF!)","v":{"$error":"#REF!"}},{"$f":"IF('Risk template_JUNE 2026'!#REF!=\"\",\"\",'Risk template_JUNE 2026'!#REF!)","v":{"$error":"#REF!"}},{"$f":"IF('Risk template_JUNE 2026'!#REF!=\"\",\"\",'Risk template_JUNE 2026'!#REF!)","v":{"$error":"#REF!"}},{"$f":"IF('Risk template_JUNE 2026'!#REF!=\"\",\"\",'Risk template_JUNE 2026'!#REF!)","v":{"$error":"#REF!"}},{"$f":"IF('Risk template_JUNE 2026'!#REF!=\"\",\"\",'Risk template_JUNE 2026'!#REF!)","v":{"$error":"#REF!"}},{"$f":"IF('Risk template_JUNE 2026'!#REF!=\"\",\"\",'Risk template_JUNE 2026'!#REF!)","v":{"$error":"#REF!"}}]
[{"$f":"IF('Risk template_JUNE 2026'!#REF!=\"\",\"\",'Risk template_JUNE 2026'!#REF!)","v":{"$error":"#REF!"}},{"$f":"IF('Risk template_JUNE 2026'!#REF!=\"\",\"\",'Risk template_JUNE 2026'!#REF!)","v":{"$error":"#REF!"}},{"$f":"IF('Risk template_JUNE 2026'!#REF!=\"\",\"\",'Risk template_JUNE 2026'!#REF!)","v":{"$error":"#REF!"}},{"$f":"IF('Risk template_JUNE 2026'!#REF!=\"\",\"\",'Risk template_JUNE 2026'!#REF!)","v":{"$error":"#REF!"}},{"$f":"IF('Risk template_JUNE 2026'!#REF!=\"\",\"\",'Risk template_JUNE 2026'!#REF!)","v":{"$error":"#REF!"}},{"$f":"IF('Risk template_JUNE 2026'!#REF!=\"\",\"\",'Risk template_JUNE 2026'!#REF!)","v":{"$error":"#REF!"}},{"$f":"IF('Risk template_JUNE 2026'!#REF!=\"\",\"\",'Risk template_JUNE 2026'!#REF!)","v":{"$error":"#REF!"}},{"$f":"IF('Risk template_JUNE 2026'!#REF!=\"\",\"\",'Risk template_JUNE 2026'!#REF!)","v":{"$error":"#REF!"}},{"$f":"IF('Risk template_JUNE 2026'!#REF!=\"\",\"\",'Risk template_JUNE 2026'!#REF!)","v":{"$error":"#REF!"}},{"$f":"IF('Risk template_JUNE 2026'!#REF!=\"\",\"\",'Risk template_JUNE 2026'!#REF!)","v":{"$error":"#REF!"}},{"$f":"IF('Risk template_JUNE 2026'!#REF!=\"\",\"\",'Risk template_JUNE 2026'!#REF!)","v":{"$error":"#REF!"}},{"$f":"IF('Risk template_JUNE 2026'!#REF!=\"\",\"\",'Risk template_JUNE 2026'!#REF!)","v":{"$error":"#REF!"}}]
[{"$f":"IF('Risk template_JUNE 2026'!#REF!=\"\",\"\",'Risk template_JUNE 2026'!#REF!)","v":{"$error":"#REF!"}},{"$f":"IF('Risk template_JUNE 2026'!#REF!=\"\",\"\",'Risk template_JUNE 2026'!#REF!)","v":{"$error":"#REF!"}},{"$f":"IF('Risk template_JUNE 2026'!#REF!=\"\",\"\",'Risk template_JUNE 2026'!#REF!)","v":{"$error":"#REF!"}},{"$f":"IF('Risk template_JUNE 2026'!#REF!=\"\",\"\",'Risk template_JUNE 2026'!#REF!)","v":{"$error":"#REF!"}},{"$f":"IF('Risk template_JUNE 2026'!#REF!=\"\",\"\",'Risk template_JUNE 2026'!#REF!)","v":{"$error":"#REF!"}},{"$f":"IF('Risk template_JUNE 2026'!#REF!=\"\",\"\",'Risk template_JUNE 2026'!#REF!)","v":{"$error":"#REF!"}},{"$f":"IF('Risk template_JUNE 2026'!#REF!=\"\",\"\",'Risk template_JUNE 2026'!#REF!)","v":{"$error":"#REF!"}},{"$f":"IF('Risk template_JUNE 2026'!#REF!=\"\",\"\",'Risk template_JUNE 2026'!#REF!)","v":{"$error":"#REF!"}},{"$f":"IF('Risk template_JUNE 2026'!#REF!=\"\",\"\",'Risk template_JUNE 2026'!#REF!)","v":{"$error":"#REF!"}},{"$f":"IF('Risk template_JUNE 2026'!#REF!=\"\",\"\",'Risk template_JUNE 2026'!#REF!)","v":{"$error":"#REF!"}},{"$f":"IF('Risk template_JUNE 2026'!#REF!=\"\",\"\",'Risk template_JUNE 2026'!#REF!)","v":{"$error":"#REF!"}},{"$f":"IF('Risk template_JUNE 2026'!#REF!=\"\",\"\",'Risk template_JUNE 2026'!#REF!)","v":{"$error":"#REF!"}}]
[{"$f":"IF('Risk template_JUNE 2026'!#REF!=\"\",\"\",'Risk template_JUNE 2026'!#REF!)","v":{"$error":"#REF!"}},{"$f":"IF('Risk template_JUNE 2026'!#REF!=\"\",\"\",'Risk template_JUNE 2026'!#REF!)","v":{"$error":"#REF!"}},{"$f":"IF('Risk template_JUNE 2026'!#REF!=\"\",\"\",'Risk template_JUNE 2026'!#REF!)","v":{"$error":"#REF!"}},{"$f":"IF('Risk template_JUNE 2026'!#REF!=\"\",\"\",'Risk template_JUNE 2026'!#REF!)","v":{"$error":"#REF!"}},{"$f":"IF('Risk template_JUNE 2026'!#REF!=\"\",\"\",'Risk template_JUNE 2026'!#REF!)","v":{"$error":"#REF!"}},{"$f":"IF('Risk template_JUNE 2026'!#REF!=\"\",\"\",'Risk template_JUNE 2026'!#REF!)","v":{"$error":"#REF!"}},{"$f":"IF('Risk template_JUNE 2026'!#REF!=\"\",\"\",'Risk template_JUNE 2026'!#REF!)","v":{"$error":"#REF!"}},{"$f":"IF('Risk template_JUNE 2026'!#REF!=\"\",\"\",'Risk template_JUNE 2026'!#REF!)","v":{"$error":"#REF!"}},{"$f":"IF('Risk template_JUNE 2026'!#REF!=\"\",\"\",'Risk template_JUNE 2026'!#REF!)","v":{"$error":"#REF!"}},{"$f":"IF('Risk template_JUNE 2026'!#REF!=\"\",\"\",'Risk template_JUNE 2026'!#REF!)","v":{"$error":"#REF!"}},{"$f":"IF('Risk template_JUNE 2026'!#REF!=\"\",\"\",'Risk template_JUNE 2026'!#REF!)","v":{"$error":"#REF!"}},{"$f":"IF('Risk template_JUNE 2026'!#REF!=\"\",\"\",'Risk template_JUNE 2026'!#REF!)","v":{"$error":"#REF!"}}]
[{"$f":"IF('Risk template_JUNE 2026'!#REF!=\"\",\"\",'Risk template_JUNE 2026'!#REF!)","v":{"$error":"#REF!"}},{"$f":"IF('Risk template_JUNE 2026'!#REF!=\"\",\"\",'Risk template_JUNE 2026'!#REF!)","v":{"$error":"#REF!"}},{"$f":"IF('Risk template_JUNE 2026'!#REF!=\"\",\"\",'Risk template_JUNE 2026'!#REF!)","v":{"$error":"#REF!"}},{"$f":"IF('Risk template_JUNE 2026'!#REF!=\"\",\"\",'Risk template_JUNE 2026'!#REF!)","v":{"$error":"#REF!"}},{"$f":"IF('Risk template_JUNE 2026'!#REF!=\"\",\"\",'Risk template_JUNE 2026'!#REF!)","v":{"$error":"#REF!"}},{"$f":"IF('Risk template_JUNE 2026'!#REF!=\"\",\"\",'Risk template_JUNE 2026'!#REF!)","v":{"$error":"#REF!"}},{"$f":"IF('Risk template_JUNE 2026'!#REF!=\"\",\"\",'Risk template_JUNE 2026'!#REF!)","v":{"$error":"#REF!"}},{"$f":"IF('Risk template_JUNE 2026'!#REF!=\"\",\"\",'Risk template_JUNE 2026'!#REF!)","v":{"$error":"#REF!"}},{"$f":"IF('Risk template_JUNE 2026'!#REF!=\"\",\"\",'Risk template_JUNE 2026'!#REF!)","v":{"$error":"#REF!"}},{"$f":"IF('Risk template_JUNE 2026'!#REF!=\"\",\"\",'Risk template_JUNE 2026'!#REF!)","v":{"$error":"#REF!"}},{"$f":"IF('Risk template_JUNE 2026'!#REF!=\"\",\"\",'Risk template_JUNE 2026'!#REF!)","v":{"$error":"#REF!"}},{"$f":"IF('Risk template_JUNE 2026'!#REF!=\"\",\"\",'Risk template_JUNE 2026'!#REF!)","v":{"$error":"#REF!"}}]
[{"$f":"IF('Risk template_JUNE 2026'!#REF!=\"\",\"\",'Risk template_JUNE 2026'!#REF!)","v":{"$error":"#REF!"}},{"$f":"IF('Risk template_JUNE 2026'!#REF!=\"\",\"\",'Risk template_JUNE 2026'!#REF!)","v":{"$error":"#REF!"}},{"$f":"IF('Risk template_JUNE 2026'!#REF!=\"\",\"\",'Risk template_JUNE 2026'!#REF!)","v":{"$error":"#REF!"}},{"$f":"IF('Risk template_JUNE 2026'!#REF!=\"\",\"\",'Risk template_JUNE 2026'!#REF!)","v":{"$error":"#REF!"}},{"$f":"IF('Risk template_JUNE 2026'!#REF!=\"\",\"\",'Risk template_JUNE 2026'!#REF!)","v":{"$error":"#REF!"}},{"$f":"IF('Risk template_JUNE 2026'!#REF!=\"\",\"\",'Risk template_JUNE 2026'!#REF!)","v":{"$error":"#REF!"}},{"$f":"IF('Risk template_JUNE 2026'!#REF!=\"\",\"\",'Risk template_JUNE 2026'!#REF!)","v":{"$error":"#REF!"}},{"$f":"IF('Risk template_JUNE 2026'!#REF!=\"\",\"\",'Risk template_JUNE 2026'!#REF!)","v":{"$error":"#REF!"}},{"$f":"IF('Risk template_JUNE 2026'!#REF!=\"\",\"\",'Risk template_JUNE 2026'!#REF!)","v":{"$error":"#REF!"}},{"$f":"IF('Risk template_JUNE 2026'!#REF!=\"\",\"\",'Risk template_JUNE 2026'!#REF!)","v":{"$error":"#REF!"}},{"$f":"IF('Risk template_JUNE 2026'!#REF!=\"\",\"\",'Risk template_JUNE 2026'!#REF!)","v":{"$error":"#REF!"}},{"$f":"IF('Risk template_JUNE 2026'!#REF!=\"\",\"\",'Risk template_JUNE 2026'!#REF!)","v":{"$error":"#REF!"}}]
[{"$f":"IF('Risk template_JUNE 2026'!#REF!=\"\",\"\",'Risk template_JUNE 2026'!#REF!)","v":{"$error":"#REF!"}},{"$f":"IF('Risk template_JUNE 2026'!#REF!=\"\",\"\",'Risk template_JUNE 2026'!#REF!)","v":{"$error":"#REF!"}},{"$f":"IF('Risk template_JUNE 2026'!#REF!=\"\",\"\",'Risk template_JUNE 2026'!#REF!)","v":{"$error":"#REF!"}},{"$f":"IF('Risk template_JUNE 2026'!#REF!=\"\",\"\",'Risk template_JUNE 2026'!#REF!)","v":{"$error":"#REF!"}},{"$f":"IF('Risk template_JUNE 2026'!#REF!=\"\",\"\",'Risk template_JUNE 2026'!#REF!)","v":{"$error":"#REF!"}},{"$f":"IF('Risk template_JUNE 2026'!#REF!=\"\",\"\",'Risk template_JUNE 2026'!#REF!)","v":{"$error":"#REF!"}},{"$f":"IF('Risk template_JUNE 2026'!#REF!=\"\",\"\",'Risk template_JUNE 2026'!#REF!)","v":{"$error":"#REF!"}},{"$f":"IF('Risk template_JUNE 2026'!#REF!=\"\",\"\",'Risk template_JUNE 2026'!#REF!)","v":{"$error":"#REF!"}},{"$f":"IF('Risk template_JUNE 2026'!#REF!=\"\",\"\",'Risk template_JUNE 2026'!#REF!)","v":{"$error":"#REF!"}},{"$f":"IF('Risk template_JUNE 2026'!#REF!=\"\",\"\",'Risk template_JUNE 2026'!#REF!)","v":{"$error":"#REF!"}},{"$f":"IF('Risk template_JUNE 2026'!#REF!=\"\",\"\",'Risk template_JUNE 2026'!#REF!)","v":{"$error":"#REF!"}},{"$f":"IF('Risk template_JUNE 2026'!#REF!=\"\",\"\",'Risk template_JUNE 2026'!#REF!)","v":{"$error":"#REF!"}}]
[{"$f":"IF('Risk template_JUNE 2026'!#REF!=\"\",\"\",'Risk template_JUNE 2026'!#REF!)","v":{"$error":"#REF!"}},{"$f":"IF('Risk template_JUNE 2026'!#REF!=\"\",\"\",'Risk template_JUNE 2026'!#REF!)","v":{"$error":"#REF!"}},{"$f":"IF('Risk template_JUNE 2026'!#REF!=\"\",\"\",'Risk template_JUNE 2026'!#REF!)","v":{"$error":"#REF!"}},{"$f":"IF('Risk template_JUNE 2026'!#REF!=\"\",\"\",'Risk template_JUNE 2026'!#REF!)","v":{"$error":"#REF!"}},{"$f":"IF('Risk template_JUNE 2026'!#REF!=\"\",\"\",'Risk template_JUNE 2026'!#REF!)","v":{"$error":"#REF!"}},{"$f":"IF('Risk template_JUNE 2026'!#REF!=\"\",\"\",'Risk template_JUNE 2026'!#REF!)","v":{"$error":"#REF!"}},{"$f":"IF('Risk template_JUNE 2026'!#REF!=\"\",\"\",'Risk template_JUNE 2026'!#REF!)","v":{"$error":"#REF!"}},{"$f":"IF('Risk template_JUNE 2026'!#REF!=\"\",\"\",'Risk template_JUNE 2026'!#REF!)","v":{"$error":"#REF!"}},{"$f":"IF('Risk template_JUNE 2026'!#REF!=\"\",\"\",'Risk template_JUNE 2026'!#REF!)","v":{"$error":"#REF!"}},{"$f":"IF('Risk template_JUNE 2026'!#REF!=\"\",\"\",'Risk template_JUNE 2026'!#REF!)","v":{"$error":"#REF!"}},{"$f":"IF('Risk template_JUNE 2026'!#REF!=\"\",\"\",'Risk template_JUNE 2026'!#REF!)","v":{"$error":"#REF!"}},{"$f":"IF('Risk template_JUNE 2026'!#REF!=\"\",\"\",'Risk template_JUNE 2026'!#REF!)","v":{"$error":"#REF!"}}]
[{"$f":"IF('Risk template_JUNE 2026'!#REF!=\"\",\"\",'Risk template_JUNE 2026'!#REF!)","v":{"$error":"#REF!"}},{"$f":"IF('Risk template_JUNE 2026'!#REF!=\"\",\"\",'Risk template_JUNE 2026'!#REF!)","v":{"$error":"#REF!"}},{"$f":"IF('Risk template_JUNE 2026'!#REF!=\"\",\"\",'Risk template_JUNE 2026'!#REF!)","v":{"$error":"#REF!"}},{"$f":"IF('Risk template_JUNE 2026'!#REF!=\"\",\"\",'Risk template_JUNE 2026'!#REF!)","v":{"$error":"#REF!"}},{"$f":"IF('Risk template_JUNE 2026'!#REF!=\"\",\"\",'Risk template_JUNE 2026'!#REF!)","v":{"$error":"#REF!"}},{"$f":"IF('Risk template_JUNE 2026'!#REF!=\"\",\"\",'Risk template_JUNE 2026'!#REF!)","v":{"$error":"#REF!"}},{"$f":"IF('Risk template_JUNE 2026'!#REF!=\"\",\"\",'Risk template_JUNE 2026'!#REF!)","v":{"$error":"#REF!"}},{"$f":"IF('Risk template_JUNE 2026'!#REF!=\"\",\"\",'Risk template_JUNE 2026'!#REF!)","v":{"$error":"#REF!"}},{"$f":"IF('Risk template_JUNE 2026'!#REF!=\"\",\"\",'Risk template_JUNE 2026'!#REF!)","v":{"$error":"#REF!"}},{"$f":"IF('Risk template_JUNE 2026'!#REF!=\"\",\"\",'Risk template_JUNE 2026'!#REF!)","v":{"$error":"#REF!"}},{"$f":"IF('Risk template_JUNE 2026'!#REF!=\"\",\"\",'Risk template_JUNE 2026'!#REF!)","v":{"$error":"#REF!"}},{"$f":"IF('Risk template_JUNE 2026'!#REF!=\"\",\"\",'Risk template_JUNE 2026'!#REF!)","v":{"$error":"#REF!"}}]
[{"$f":"IF('Risk template_JUNE 2026'!#REF!=\"\",\"\",'Risk template_JUNE 2026'!#REF!)","v":{"$error":"#REF!"}},{"$f":"IF('Risk template_JUNE 2026'!#REF!=\"\",\"\",'Risk template_JUNE 2026'!#REF!)","v":{"$error":"#REF!"}},{"$f":"IF('Risk template_JUNE 2026'!#REF!=\"\",\"\",'Risk template_JUNE 2026'!#REF!)","v":{"$error":"#REF!"}},{"$f":"IF('Risk template_JUNE 2026'!#REF!=\"\",\"\",'Risk template_JUNE 2026'!#REF!)","v":{"$error":"#REF!"}},{"$f":"IF('Risk template_JUNE 2026'!#REF!=\"\",\"\",'Risk template_JUNE 2026'!#REF!)","v":{"$error":"#REF!"}},{"$f":"IF('Risk template_JUNE 2026'!#REF!=\"\",\"\",'Risk template_JUNE 2026'!#REF!)","v":{"$error":"#REF!"}},{"$f":"IF('Risk template_JUNE 2026'!#REF!=\"\",\"\",'Risk template_JUNE 2026'!#REF!)","v":{"$error":"#REF!"}},{"$f":"IF('Risk template_JUNE 2026'!#REF!=\"\",\"\",'Risk template_JUNE 2026'!#REF!)","v":{"$error":"#REF!"}},{"$f":"IF('Risk template_JUNE 2026'!#REF!=\"\",\"\",'Risk template_JUNE 2026'!#REF!)","v":{"$error":"#REF!"}},{"$f":"IF('Risk template_JUNE 2026'!#REF!=\"\",\"\",'Risk template_JUNE 2026'!#REF!)","v":{"$error":"#REF!"}},{"$f":"IF('Risk template_JUNE 2026'!#REF!=\"\",\"\",'Risk template_JUNE 2026'!#REF!)","v":{"$error":"#REF!"}},{"$f":"IF('Risk template_JUNE 2026'!#REF!=\"\",\"\",'Risk template_JUNE 2026'!#REF!)","v":{"$error":"#REF!"}}]
[{"$f":"IF('Risk template_JUNE 2026'!#REF!=\"\",\"\",'Risk template_JUNE 2026'!#REF!)","v":{"$error":"#REF!"}},{"$f":"IF('Risk template_JUNE 2026'!#REF!=\"\",\"\",'Risk template_JUNE 2026'!#REF!)","v":{"$error":"#REF!"}},{"$f":"IF('Risk template_JUNE 2026'!#REF!=\"\",\"\",'Risk template_JUNE 2026'!#REF!)","v":{"$error":"#REF!"}},{"$f":"IF('Risk template_JUNE 2026'!#REF!=\"\",\"\",'Risk template_JUNE 2026'!#REF!)","v":{"$error":"#REF!"}},{"$f":"IF('Risk template_JUNE 2026'!#REF!=\"\",\"\",'Risk template_JUNE 2026'!#REF!)","v":{"$error":"#REF!"}},{"$f":"IF('Risk template_JUNE 2026'!#REF!=\"\",\"\",'Risk template_JUNE 2026'!#REF!)","v":{"$error":"#REF!"}},{"$f":"IF('Risk template_JUNE 2026'!#REF!=\"\",\"\",'Risk template_JUNE 2026'!#REF!)","v":{"$error":"#REF!"}},{"$f":"IF('Risk template_JUNE 2026'!#REF!=\"\",\"\",'Risk template_JUNE 2026'!#REF!)","v":{"$error":"#REF!"}},{"$f":"IF('Risk template_JUNE 2026'!#REF!=\"\",\"\",'Risk template_JUNE 2026'!#REF!)","v":{"$error":"#REF!"}},{"$f":"IF('Risk template_JUNE 2026'!#REF!=\"\",\"\",'Risk template_JUNE 2026'!#REF!)","v":{"$error":"#REF!"}},{"$f":"IF('Risk template_JUNE 2026'!#REF!=\"\",\"\",'Risk template_JUNE 2026'!#REF!)","v":{"$error":"#REF!"}},{"$f":"IF('Risk template_JUNE 2026'!#REF!=\"\",\"\",'Risk template_JUNE 2026'!#REF!)","v":{"$error":"#REF!"}}]
[{"$f":"IF('Risk template_JUNE 2026'!#REF!=\"\",\"\",'Risk template_JUNE 2026'!#REF!)","v":{"$error":"#REF!"}},{"$f":"IF('Risk template_JUNE 2026'!#REF!=\"\",\"\",'Risk template_JUNE 2026'!#REF!)","v":{"$error":"#REF!"}},{"$f":"IF('Risk template_JUNE 2026'!#REF!=\"\",\"\",'Risk template_JUNE 2026'!#REF!)","v":{"$error":"#REF!"}},{"$f":"IF('Risk template_JUNE 2026'!#REF!=\"\",\"\",'Risk template_JUNE 2026'!#REF!)","v":{"$error":"#REF!"}},{"$f":"IF('Risk template_JUNE 2026'!#REF!=\"\",\"\",'Risk template_JUNE 2026'!#REF!)","v":{"$error":"#REF!"}},{"$f":"IF('Risk template_JUNE 2026'!#REF!=\"\",\"\",'Risk template_JUNE 2026'!#REF!)","v":{"$error":"#REF!"}},{"$f":"IF('Risk template_JUNE 2026'!#REF!=\"\",\"\",'Risk template_JUNE 2026'!#REF!)","v":{"$error":"#REF!"}},{"$f":"IF('Risk template_JUNE 2026'!#REF!=\"\",\"\",'Risk template_JUNE 2026'!#REF!)","v":{"$error":"#REF!"}},{"$f":"IF('Risk template_JUNE 2026'!#REF!=\"\",\"\",'Risk template_JUNE 2026'!#REF!)","v":{"$error":"#REF!"}},{"$f":"IF('Risk template_JUNE 2026'!#REF!=\"\",\"\",'Risk template_JUNE 2026'!#REF!)","v":{"$error":"#REF!"}},{"$f":"IF('Risk template_JUNE 2026'!#REF!=\"\",\"\",'Risk template_JUNE 2026'!#REF!)","v":{"$error":"#REF!"}},{"$f":"IF('Risk template_JUNE 2026'!#REF!=\"\",\"\",'Risk template_JUNE 2026'!#REF!)","v":{"$error":"#REF!"}}]
[{"$f":"IF('Risk template_JUNE 2026'!#REF!=\"\",\"\",'Risk template_JUNE 2026'!#REF!)","v":{"$error":"#REF!"}},{"$f":"IF('Risk template_JUNE 2026'!#REF!=\"\",\"\",'Risk template_JUNE 2026'!#REF!)","v":{"$error":"#REF!"}},{"$f":"IF('Risk template_JUNE 2026'!#REF!=\"\",\"\",'Risk template_JUNE 2026'!#REF!)","v":{"$error":"#REF!"}},{"$f":"IF('Risk template_JUNE 2026'!#REF!=\"\",\"\",'Risk template_JUNE 2026'!#REF!)","v":{"$error":"#REF!"}},{"$f":"IF('Risk template_JUNE 2026'!#REF!=\"\",\"\",'Risk template_JUNE 2026'!#REF!)","v":{"$error":"#REF!"}},{"$f":"IF('Risk template_JUNE 2026'!#REF!=\"\",\"\",'Risk template_JUNE 2026'!#REF!)","v":{"$error":"#REF!"}},{"$f":"IF('Risk template_JUNE 2026'!#REF!=\"\",\"\",'Risk template_JUNE 2026'!#REF!)","v":{"$error":"#REF!"}},{"$f":"IF('Risk template_JUNE 2026'!#REF!=\"\",\"\",'Risk template_JUNE 2026'!#REF!)","v":{"$error":"#REF!"}},{"$f":"IF('Risk template_JUNE 2026'!#REF!=\"\",\"\",'Risk template_JUNE 2026'!#REF!)","v":{"$error":"#REF!"}},{"$f":"IF('Risk template_JUNE 2026'!#REF!=\"\",\"\",'Risk template_JUNE 2026'!#REF!)","v":{"$error":"#REF!"}},{"$f":"IF('Risk template_JUNE 2026'!#REF!=\"\",\"\",'Risk template_JUNE 2026'!#REF!)","v":{"$error":"#REF!"}},{"$f":"IF('Risk template_JUNE 2026'!#REF!=\"\",\"\",'Risk template_JUNE 2026'!#REF!)","v":{"$error":"#REF!"}}]
[{"$f":"IF('Risk template_JUNE 2026'!#REF!=\"\",\"\",'Risk template_JUNE 2026'!#REF!)","v":{"$error":"#REF!"}},{"$f":"IF('Risk template_JUNE 2026'!#REF!=\"\",\"\",'Risk template_JUNE 2026'!#REF!)","v":{"$error":"#REF!"}},{"$f":"IF('Risk template_JUNE 2026'!#REF!=\"\",\"\",'Risk template_JUNE 2026'!#REF!)","v":{"$error":"#REF!"}},{"$f":"IF('Risk template_JUNE 2026'!#REF!=\"\",\"\",'Risk template_JUNE 2026'!#REF!)","v":{"$error":"#REF!"}},{"$f":"IF('Risk template_JUNE 2026'!#REF!=\"\",\"\",'Risk template_JUNE 2026'!#REF!)","v":{"$error":"#REF!"}},{"$f":"IF('Risk template_JUNE 2026'!#REF!=\"\",\"\",'Risk template_JUNE 2026'!#REF!)","v":{"$error":"#REF!"}},{"$f":"IF('Risk template_JUNE 2026'!#REF!=\"\",\"\",'Risk template_JUNE 2026'!#REF!)","v":{"$error":"#REF!"}},{"$f":"IF('Risk template_JUNE 2026'!#REF!=\"\",\"\",'Risk template_JUNE 2026'!#REF!)","v":{"$error":"#REF!"}},{"$f":"IF('Risk template_JUNE 2026'!#REF!=\"\",\"\",'Risk template_JUNE 2026'!#REF!)","v":{"$error":"#REF!"}},{"$f":"IF('Risk template_JUNE 2026'!#REF!=\"\",\"\",'Risk template_JUNE 2026'!#REF!)","v":{"$error":"#REF!"}},{"$f":"IF('Risk template_JUNE 2026'!#REF!=\"\",\"\",'Risk template_JUNE 2026'!#REF!)","v":{"$error":"#REF!"}},{"$f":"IF('Risk template_JUNE 2026'!#REF!=\"\",\"\",'Risk template_JUNE 2026'!#REF!)","v":{"$error":"#REF!"}}]
[{"$f":"IF('Risk template_JUNE 2026'!#REF!=\"\",\"\",'Risk template_JUNE 2026'!#REF!)","v":{"$error":"#REF!"}},{"$f":"IF('Risk template_JUNE 2026'!#REF!=\"\",\"\",'Risk template_JUNE 2026'!#REF!)","v":{"$error":"#REF!"}},{"$f":"IF('Risk template_JUNE 2026'!#REF!=\"\",\"\",'Risk template_JUNE 2026'!#REF!)","v":{"$error":"#REF!"}},{"$f":"IF('Risk template_JUNE 2026'!#REF!=\"\",\"\",'Risk template_JUNE 2026'!#REF!)","v":{"$error":"#REF!"}},{"$f":"IF('Risk template_JUNE 2026'!#REF!=\"\",\"\",'Risk template_JUNE 2026'!#REF!)","v":{"$error":"#REF!"}},{"$f":"IF('Risk template_JUNE 2026'!#REF!=\"\",\"\",'Risk template_JUNE 2026'!#REF!)","v":{"$error":"#REF!"}},{"$f":"IF('Risk template_JUNE 2026'!#REF!=\"\",\"\",'Risk template_JUNE 2026'!#REF!)","v":{"$error":"#REF!"}},{"$f":"IF('Risk template_JUNE 2026'!#REF!=\"\",\"\",'Risk template_JUNE 2026'!#REF!)","v":{"$error":"#REF!"}},{"$f":"IF('Risk template_JUNE 2026'!#REF!=\"\",\"\",'Risk template_JUNE 2026'!#REF!)","v":{"$error":"#REF!"}},{"$f":"IF('Risk template_JUNE 2026'!#REF!=\"\",\"\",'Risk template_JUNE 2026'!#REF!)","v":{"$error":"#REF!"}},{"$f":"IF('Risk template_JUNE 2026'!#REF!=\"\",\"\",'Risk template_JUNE 2026'!#REF!)","v":{"$error":"#REF!"}},{"$f":"IF('Risk template_JUNE 2026'!#REF!=\"\",\"\",'Risk template_JUNE 2026'!#REF!)","v":{"$error":"#REF!"}}]
[{"$f":"IF('Risk template_JUNE 2026'!#REF!=\"\",\"\",'Risk template_JUNE 2026'!#REF!)","v":{"$error":"#REF!"}},{"$f":"IF('Risk template_JUNE 2026'!#REF!=\"\",\"\",'Risk template_JUNE 2026'!#REF!)","v":{"$error":"#REF!"}},{"$f":"IF('Risk template_JUNE 2026'!#REF!=\"\",\"\",'Risk template_JUNE 2026'!#REF!)","v":{"$error":"#REF!"}},{"$f":"IF('Risk template_JUNE 2026'!#REF!=\"\",\"\",'Risk template_JUNE 2026'!#REF!)","v":{"$error":"#REF!"}},{"$f":"IF('Risk template_JUNE 2026'!#REF!=\"\",\"\",'Risk template_JUNE 2026'!#REF!)","v":{"$error":"#REF!"}},{"$f":"IF('Risk template_JUNE 2026'!#REF!=\"\",\"\",'Risk template_JUNE 2026'!#REF!)","v":{"$error":"#REF!"}},{"$f":"IF('Risk template_JUNE 2026'!#REF!=\"\",\"\",'Risk template_JUNE 2026'!#REF!)","v":{"$error":"#REF!"}},{"$f":"IF('Risk template_JUNE 2026'!#REF!=\"\",\"\",'Risk template_JUNE 2026'!#REF!)","v":{"$error":"#REF!"}},{"$f":"IF('Risk template_JUNE 2026'!#REF!=\"\",\"\",'Risk template_JUNE 2026'!#REF!)","v":{"$error":"#REF!"}},{"$f":"IF('Risk template_JUNE 2026'!#REF!=\"\",\"\",'Risk template_JUNE 2026'!#REF!)","v":{"$error":"#REF!"}},{"$f":"IF('Risk template_JUNE 2026'!#REF!=\"\",\"\",'Risk template_JUNE 2026'!#REF!)","v":{"$error":"#REF!"}},{"$f":"IF('Risk template_JUNE 2026'!#REF!=\"\",\"\",'Risk template_JUNE 2026'!#REF!)","v":{"$error":"#REF!"}}]
[{"$f":"IF('Risk template_JUNE 2026'!#REF!=\"\",\"\",'Risk template_JUNE 2026'!#REF!)","v":{"$error":"#REF!"}},{"$f":"IF('Risk template_JUNE 2026'!#REF!=\"\",\"\",'Risk template_JUNE 2026'!#REF!)","v":{"$error":"#REF!"}},{"$f":"IF('Risk template_JUNE 2026'!#REF!=\"\",\"\",'Risk template_JUNE 2026'!#REF!)","v":{"$error":"#REF!"}},{"$f":"IF('Risk template_JUNE 2026'!#REF!=\"\",\"\",'Risk template_JUNE 2026'!#REF!)","v":{"$error":"#REF!"}},{"$f":"IF('Risk template_JUNE 2026'!#REF!=\"\",\"\",'Risk template_JUNE 2026'!#REF!)","v":{"$error":"#REF!"}},{"$f":"IF('Risk template_JUNE 2026'!#REF!=\"\",\"\",'Risk template_JUNE 2026'!#REF!)","v":{"$error":"#REF!"}},{"$f":"IF('Risk template_JUNE 2026'!#REF!=\"\",\"\",'Risk template_JUNE 2026'!#REF!)","v":{"$error":"#REF!"}},{"$f":"IF('Risk template_JUNE 2026'!#REF!=\"\",\"\",'Risk template_JUNE 2026'!#REF!)","v":{"$error":"#REF!"}},{"$f":"IF('Risk template_JUNE 2026'!#REF!=\"\",\"\",'Risk template_JUNE 2026'!#REF!)","v":{"$error":"#REF!"}},{"$f":"IF('Risk template_JUNE 2026'!#REF!=\"\",\"\",'Risk template_JUNE 2026'!#REF!)","v":{"$error":"#REF!"}},{"$f":"IF('Risk template_JUNE 2026'!#REF!=\"\",\"\",'Risk template_JUNE 2026'!#REF!)","v":{"$error":"#REF!"}},{"$f":"IF('Risk template_JUNE 2026'!#REF!=\"\",\"\",'Risk template_JUNE 2026'!#REF!)","v":{"$error":"#REF!"}}]
[{"$f":"IF('Risk template_JUNE 2026'!#REF!=\"\",\"\",'Risk template_JUNE 2026'!#REF!)","v":{"$error":"#REF!"}},{"$f":"IF('Risk template_JUNE 2026'!#REF!=\"\",\"\",'Risk template_JUNE 2026'!#REF!)","v":{"$error":"#REF!"}},{"$f":"IF('Risk template_JUNE 2026'!#REF!=\"\",\"\",'Risk template_JUNE 2026'!#REF!)","v":{"$error":"#REF!"}},{"$f":"IF('Risk template_JUNE 2026'!#REF!=\"\",\"\",'Risk template_JUNE 2026'!#REF!)","v":{"$error":"#REF!"}},{"$f":"IF('Risk template_JUNE 2026'!#REF!=\"\",\"\",'Risk template_JUNE 2026'!#REF!)","v":{"$error":"#REF!"}},{"$f":"IF('Risk template_JUNE 2026'!#REF!=\"\",\"\",'Risk template_JUNE 2026'!#REF!)","v":{"$error":"#REF!"}},{"$f":"IF('Risk template_JUNE 2026'!#REF!=\"\",\"\",'Risk template_JUNE 2026'!#REF!)","v":{"$error":"#REF!"}},{"$f":"IF('Risk template_JUNE 2026'!#REF!=\"\",\"\",'Risk template_JUNE 2026'!#REF!)","v":{"$error":"#REF!"}},{"$f":"IF('Risk template_JUNE 2026'!#REF!=\"\",\"\",'Risk template_JUNE 2026'!#REF!)","v":{"$error":"#REF!"}},{"$f":"IF('Risk template_JUNE 2026'!#REF!=\"\",\"\",'Risk template_JUNE 2026'!#REF!)","v":{"$error":"#REF!"}},{"$f":"IF('Risk template_JUNE 2026'!#REF!=\"\",\"\",'Risk template_JUNE 2026'!#REF!)","v":{"$error":"#REF!"}},{"$f":"IF('Risk template_JUNE 2026'!#REF!=\"\",\"\",'Risk template_JUNE 2026'!#REF!)","v":{"$error":"#REF!"}}]
[{"$f":"IF('Risk template_JUNE 2026'!#REF!=\"\",\"\",'Risk template_JUNE 2026'!#REF!)","v":{"$error":"#REF!"}},{"$f":"IF('Risk template_JUNE 2026'!#REF!=\"\",\"\",'Risk template_JUNE 2026'!#REF!)","v":{"$error":"#REF!"}},{"$f":"IF('Risk template_JUNE 2026'!#REF!=\"\",\"\",'Risk template_JUNE 2026'!#REF!)","v":{"$error":"#REF!"}},{"$f":"IF('Risk template_JUNE 2026'!#REF!=\"\",\"\",'Risk template_JUNE 2026'!#REF!)","v":{"$error":"#REF!"}},{"$f":"IF('Risk template_JUNE 2026'!#REF!=\"\",\"\",'Risk template_JUNE 2026'!#REF!)","v":{"$error":"#REF!"}},{"$f":"IF('Risk template_JUNE 2026'!#REF!=\"\",\"\",'Risk template_JUNE 2026'!#REF!)","v":{"$error":"#REF!"}},{"$f":"IF('Risk template_JUNE 2026'!#REF!=\"\",\"\",'Risk template_JUNE 2026'!#REF!)","v":{"$error":"#REF!"}},{"$f":"IF('Risk template_JUNE 2026'!#REF!=\"\",\"\",'Risk template_JUNE 2026'!#REF!)","v":{"$error":"#REF!"}},{"$f":"IF('Risk template_JUNE 2026'!#REF!=\"\",\"\",'Risk template_JUNE 2026'!#REF!)","v":{"$error":"#REF!"}},{"$f":"IF('Risk template_JUNE 2026'!#REF!=\"\",\"\",'Risk template_JUNE 2026'!#REF!)","v":{"$error":"#REF!"}},{"$f":"IF('Risk template_JUNE 2026'!#REF!=\"\",\"\",'Risk template_JUNE 2026'!#REF!)","v":{"$error":"#REF!"}},{"$f":"IF('Risk template_JUNE 2026'!#REF!=\"\",\"\",'Risk template_JUNE 2026'!#REF!)","v":{"$error":"#REF!"}}]
[{"$f":"IF('Risk template_JUNE 2026'!#REF!=\"\",\"\",'Risk template_JUNE 2026'!#REF!)","v":{"$error":"#REF!"}},{"$f":"IF('Risk template_JUNE 2026'!#REF!=\"\",\"\",'Risk template_JUNE 2026'!#REF!)","v":{"$error":"#REF!"}},{"$f":"IF('Risk template_JUNE 2026'!#REF!=\"\",\"\",'Risk template_JUNE 2026'!#REF!)","v":{"$error":"#REF!"}},{"$f":"IF('Risk template_JUNE 2026'!#REF!=\"\",\"\",'Risk template_JUNE 2026'!#REF!)","v":{"$error":"#REF!"}},{"$f":"IF('Risk template_JUNE 2026'!#REF!=\"\",\"\",'Risk template_JUNE 2026'!#REF!)","v":{"$error":"#REF!"}},{"$f":"IF('Risk template_JUNE 2026'!#REF!=\"\",\"\",'Risk template_JUNE 2026'!#REF!)","v":{"$error":"#REF!"}},{"$f":"IF('Risk template_JUNE 2026'!#REF!=\"\",\"\",'Risk template_JUNE 2026'!#REF!)","v":{"$error":"#REF!"}},{"$f":"IF('Risk template_JUNE 2026'!#REF!=\"\",\"\",'Risk template_JUNE 2026'!#REF!)","v":{"$error":"#REF!"}},{"$f":"IF('Risk template_JUNE 2026'!#REF!=\"\",\"\",'Risk template_JUNE 2026'!#REF!)","v":{"$error":"#REF!"}},{"$f":"IF('Risk template_JUNE 2026'!#REF!=\"\",\"\",'Risk template_JUNE 2026'!#REF!)","v":{"$error":"#REF!"}},{"$f":"IF('Risk template_JUNE 2026'!#REF!=\"\",\"\",'Risk template_JUNE 2026'!#REF!)","v":{"$error":"#REF!"}},{"$f":"IF('Risk template_JUNE 2026'!#REF!=\"\",\"\",'Risk template_JUNE 2026'!#REF!)","v":{"$error":"#REF!"}}]
[{"$f":"IF('Risk template_JUNE 2026'!#REF!=\"\",\"\",'Risk template_JUNE 2026'!#REF!)","v":{"$error":"#REF!"}},{"$f":"IF('Risk template_JUNE 2026'!#REF!=\"\",\"\",'Risk template_JUNE 2026'!#REF!)","v":{"$error":"#REF!"}},{"$f":"IF('Risk template_JUNE 2026'!#REF!=\"\",\"\",'Risk template_JUNE 2026'!#REF!)","v":{"$error":"#REF!"}},{"$f":"IF('Risk template_JUNE 2026'!#REF!=\"\",\"\",'Risk template_JUNE 2026'!#REF!)","v":{"$error":"#REF!"}},{"$f":"IF('Risk template_JUNE 2026'!#REF!=\"\",\"\",'Risk template_JUNE 2026'!#REF!)","v":{"$error":"#REF!"}},{"$f":"IF('Risk template_JUNE 2026'!#REF!=\"\",\"\",'Risk template_JUNE 2026'!#REF!)","v":{"$error":"#REF!"}},{"$f":"IF('Risk template_JUNE 2026'!#REF!=\"\",\"\",'Risk template_JUNE 2026'!#REF!)","v":{"$error":"#REF!"}},{"$f":"IF('Risk template_JUNE 2026'!#REF!=\"\",\"\",'Risk template_JUNE 2026'!#REF!)","v":{"$error":"#REF!"}},{"$f":"IF('Risk template_JUNE 2026'!#REF!=\"\",\"\",'Risk template_JUNE 2026'!#REF!)","v":{"$error":"#REF!"}},{"$f":"IF('Risk template_JUNE 2026'!#REF!=\"\",\"\",'Risk template_JUNE 2026'!#REF!)","v":{"$error":"#REF!"}},{"$f":"IF('Risk template_JUNE 2026'!#REF!=\"\",\"\",'Risk template_JUNE 2026'!#REF!)","v":{"$error":"#REF!"}},{"$f":"IF('Risk template_JUNE 2026'!#REF!=\"\",\"\",'Risk template_JUNE 2026'!#REF!)","v":{"$error":"#REF!"}}]
[{"$f":"IF('Risk template_JUNE 2026'!#REF!=\"\",\"\",'Risk template_JUNE 2026'!#REF!)","v":{"$error":"#REF!"}},{"$f":"IF('Risk template_JUNE 2026'!#REF!=\"\",\"\",'Risk template_JUNE 2026'!#REF!)","v":{"$error":"#REF!"}},{"$f":"IF('Risk template_JUNE 2026'!#REF!=\"\",\"\",'Risk template_JUNE 2026'!#REF!)","v":{"$error":"#REF!"}},{"$f":"IF('Risk template_JUNE 2026'!#REF!=\"\",\"\",'Risk template_JUNE 2026'!#REF!)","v":{"$error":"#REF!"}},{"$f":"IF('Risk template_JUNE 2026'!#REF!=\"\",\"\",'Risk template_JUNE 2026'!#REF!)","v":{"$error":"#REF!"}},{"$f":"IF('Risk template_JUNE 2026'!#REF!=\"\",\"\",'Risk template_JUNE 2026'!#REF!)","v":{"$error":"#REF!"}},{"$f":"IF('Risk template_JUNE 2026'!#REF!=\"\",\"\",'Risk template_JUNE 2026'!#REF!)","v":{"$error":"#REF!"}},{"$f":"IF('Risk template_JUNE 2026'!#REF!=\"\",\"\",'Risk template_JUNE 2026'!#REF!)","v":{"$error":"#REF!"}},{"$f":"IF('Risk template_JUNE 2026'!#REF!=\"\",\"\",'Risk template_JUNE 2026'!#REF!)","v":{"$error":"#REF!"}},{"$f":"IF('Risk template_JUNE 2026'!#REF!=\"\",\"\",'Risk template_JUNE 2026'!#REF!)","v":{"$error":"#REF!"}},{"$f":"IF('Risk template_JUNE 2026'!#REF!=\"\",\"\",'Risk template_JUNE 2026'!#REF!)","v":{"$error":"#REF!"}},{"$f":"IF('Risk template_JUNE 2026'!#REF!=\"\",\"\",'Risk template_JUNE 2026'!#REF!)","v":{"$error":"#REF!"}}]
[{"$f":"IF('Risk template_JUNE 2026'!#REF!=\"\",\"\",'Risk template_JUNE 2026'!#REF!)","v":{"$error":"#REF!"}},{"$f":"IF('Risk template_JUNE 2026'!#REF!=\"\",\"\",'Risk template_JUNE 2026'!#REF!)","v":{"$error":"#REF!"}},{"$f":"IF('Risk template_JUNE 2026'!#REF!=\"\",\"\",'Risk template_JUNE 2026'!#REF!)","v":{"$error":"#REF!"}},{"$f":"IF('Risk template_JUNE 2026'!#REF!=\"\",\"\",'Risk template_JUNE 2026'!#REF!)","v":{"$error":"#REF!"}},{"$f":"IF('Risk template_JUNE 2026'!#REF!=\"\",\"\",'Risk template_JUNE 2026'!#REF!)","v":{"$error":"#REF!"}},{"$f":"IF('Risk template_JUNE 2026'!#REF!=\"\",\"\",'Risk template_JUNE 2026'!#REF!)","v":{"$error":"#REF!"}},{"$f":"IF('Risk template_JUNE 2026'!#REF!=\"\",\"\",'Risk template_JUNE 2026'!#REF!)","v":{"$error":"#REF!"}},{"$f":"IF('Risk template_JUNE 2026'!#REF!=\"\",\"\",'Risk template_JUNE 2026'!#REF!)","v":{"$error":"#REF!"}},{"$f":"IF('Risk template_JUNE 2026'!#REF!=\"\",\"\",'Risk template_JUNE 2026'!#REF!)","v":{"$error":"#REF!"}},{"$f":"IF('Risk template_JUNE 2026'!#REF!=\"\",\"\",'Risk template_JUNE 2026'!#REF!)","v":{"$error":"#REF!"}},{"$f":"IF('Risk template_JUNE 2026'!#REF!=\"\",\"\",'Risk template_JUNE 2026'!#REF!)","v":{"$error":"#REF!"}},{"$f":"IF('Risk template_JUNE 2026'!#REF!=\"\",\"\",'Risk template_JUNE 2026'!#REF!)","v":{"$error":"#REF!"}}]
[{"$f":"IF('Risk template_JUNE 2026'!#REF!=\"\",\"\",'Risk template_JUNE 2026'!#REF!)","v":{"$error":"#REF!"}},{"$f":"IF('Risk template_JUNE 2026'!#REF!=\"\",\"\",'Risk template_JUNE 2026'!#REF!)","v":{"$error":"#REF!"}},{"$f":"IF('Risk template_JUNE 2026'!#REF!=\"\",\"\",'Risk template_JUNE 2026'!#REF!)","v":{"$error":"#REF!"}},{"$f":"IF('Risk template_JUNE 2026'!#REF!=\"\",\"\",'Risk template_JUNE 2026'!#REF!)","v":{"$error":"#REF!"}},{"$f":"IF('Risk template_JUNE 2026'!#REF!=\"\",\"\",'Risk template_JUNE 2026'!#REF!)","v":{"$error":"#REF!"}},{"$f":"IF('Risk template_JUNE 2026'!#REF!=\"\",\"\",'Risk template_JUNE 2026'!#REF!)","v":{"$error":"#REF!"}},{"$f":"IF('Risk template_JUNE 2026'!#REF!=\"\",\"\",'Risk template_JUNE 2026'!#REF!)","v":{"$error":"#REF!"}},{"$f":"IF('Risk template_JUNE 2026'!#REF!=\"\",\"\",'Risk template_JUNE 2026'!#REF!)","v":{"$error":"#REF!"}},{"$f":"IF('Risk template_JUNE 2026'!#REF!=\"\",\"\",'Risk template_JUNE 2026'!#REF!)","v":{"$error":"#REF!"}},{"$f":"IF('Risk template_JUNE 2026'!#REF!=\"\",\"\",'Risk template_JUNE 2026'!#REF!)","v":{"$error":"#REF!"}},{"$f":"IF('Risk template_JUNE 2026'!#REF!=\"\",\"\",'Risk template_JUNE 2026'!#REF!)","v":{"$error":"#REF!"}},{"$f":"IF('Risk template_JUNE 2026'!#REF!=\"\",\"\",'Risk template_JUNE 2026'!#REF!)","v":{"$error":"#REF!"}}]
[{"$f":"IF('Risk template_JUNE 2026'!#REF!=\"\",\"\",'Risk template_JUNE 2026'!#REF!)","v":{"$error":"#REF!"}},{"$f":"IF('Risk template_JUNE 2026'!#REF!=\"\",\"\",'Risk template_JUNE 2026'!#REF!)","v":{"$error":"#REF!"}},{"$f":"IF('Risk template_JUNE 2026'!#REF!=\"\",\"\",'Risk template_JUNE 2026'!#REF!)","v":{"$error":"#REF!"}},{"$f":"IF('Risk template_JUNE 2026'!#REF!=\"\",\"\",'Risk template_JUNE 2026'!#REF!)","v":{"$error":"#REF!"}},{"$f":"IF('Risk template_JUNE 2026'!#REF!=\"\",\"\",'Risk template_JUNE 2026'!#REF!)","v":{"$error":"#REF!"}},{"$f":"IF('Risk template_JUNE 2026'!#REF!=\"\",\"\",'Risk template_JUNE 2026'!#REF!)","v":{"$error":"#REF!"}},{"$f":"IF('Risk template_JUNE 2026'!#REF!=\"\",\"\",'Risk template_JUNE 2026'!#REF!)","v":{"$error":"#REF!"}},{"$f":"IF('Risk template_JUNE 2026'!#REF!=\"\",\"\",'Risk template_JUNE 2026'!#REF!)","v":{"$error":"#REF!"}},{"$f":"IF('Risk template_JUNE 2026'!#REF!=\"\",\"\",'Risk template_JUNE 2026'!#REF!)","v":{"$error":"#REF!"}},{"$f":"IF('Risk template_JUNE 2026'!#REF!=\"\",\"\",'Risk template_JUNE 2026'!#REF!)","v":{"$error":"#REF!"}},{"$f":"IF('Risk template_JUNE 2026'!#REF!=\"\",\"\",'Risk template_JUNE 2026'!#REF!)","v":{"$error":"#REF!"}},{"$f":"IF('Risk template_JUNE 2026'!#REF!=\"\",\"\",'Risk template_JUNE 2026'!#REF!)","v":{"$error":"#REF!"}}]
[{"$f":"IF('Risk template_JUNE 2026'!#REF!=\"\",\"\",'Risk template_JUNE 2026'!#REF!)","v":{"$error":"#REF!"}},{"$f":"IF('Risk template_JUNE 2026'!#REF!=\"\",\"\",'Risk template_JUNE 2026'!#REF!)","v":{"$error":"#REF!"}},{"$f":"IF('Risk template_JUNE 2026'!#REF!=\"\",\"\",'Risk template_JUNE 2026'!#REF!)","v":{"$error":"#REF!"}},{"$f":"IF('Risk template_JUNE 2026'!#REF!=\"\",\"\",'Risk template_JUNE 2026'!#REF!)","v":{"$error":"#REF!"}},{"$f":"IF('Risk template_JUNE 2026'!#REF!=\"\",\"\",'Risk template_JUNE 2026'!#REF!)","v":{"$error":"#REF!"}},{"$f":"IF('Risk template_JUNE 2026'!#REF!=\"\",\"\",'Risk template_JUNE 2026'!#REF!)","v":{"$error":"#REF!"}},{"$f":"IF('Risk template_JUNE 2026'!#REF!=\"\",\"\",'Risk template_JUNE 2026'!#REF!)","v":{"$error":"#REF!"}},{"$f":"IF('Risk template_JUNE 2026'!#REF!=\"\",\"\",'Risk template_JUNE 2026'!#REF!)","v":{"$error":"#REF!"}},{"$f":"IF('Risk template_JUNE 2026'!#REF!=\"\",\"\",'Risk template_JUNE 2026'!#REF!)","v":{"$error":"#REF!"}},{"$f":"IF('Risk template_JUNE 2026'!#REF!=\"\",\"\",'Risk template_JUNE 2026'!#REF!)","v":{"$error":"#REF!"}},{"$f":"IF('Risk template_JUNE 2026'!#REF!=\"\",\"\",'Risk template_JUNE 2026'!#REF!)","v":{"$error":"#REF!"}},{"$f":"IF('Risk template_JUNE 2026'!#REF!=\"\",\"\",'Risk template_JUNE 2026'!#REF!)","v":{"$error":"#REF!"}}]
[{"$f":"IF('Risk template_JUNE 2026'!#REF!=\"\",\"\",'Risk template_JUNE 2026'!#REF!)","v":{"$error":"#REF!"}},{"$f":"IF('Risk template_JUNE 2026'!#REF!=\"\",\"\",'Risk template_JUNE 2026'!#REF!)","v":{"$error":"#REF!"}},{"$f":"IF('Risk template_JUNE 2026'!#REF!=\"\",\"\",'Risk template_JUNE 2026'!#REF!)","v":{"$error":"#REF!"}},{"$f":"IF('Risk template_JUNE 2026'!#REF!=\"\",\"\",'Risk template_JUNE 2026'!#REF!)","v":{"$error":"#REF!"}},{"$f":"IF('Risk template_JUNE 2026'!#REF!=\"\",\"\",'Risk template_JUNE 2026'!#REF!)","v":{"$error":"#REF!"}},{"$f":"IF('Risk template_JUNE 2026'!#REF!=\"\",\"\",'Risk template_JUNE 2026'!#REF!)","v":{"$error":"#REF!"}},{"$f":"IF('Risk template_JUNE 2026'!#REF!=\"\",\"\",'Risk template_JUNE 2026'!#REF!)","v":{"$error":"#REF!"}},{"$f":"IF('Risk template_JUNE 2026'!#REF!=\"\",\"\",'Risk template_JUNE 2026'!#REF!)","v":{"$error":"#REF!"}},{"$f":"IF('Risk template_JUNE 2026'!#REF!=\"\",\"\",'Risk template_JUNE 2026'!#REF!)","v":{"$error":"#REF!"}},{"$f":"IF('Risk template_JUNE 2026'!#REF!=\"\",\"\",'Risk template_JUNE 2026'!#REF!)","v":{"$error":"#REF!"}},{"$f":"IF('Risk template_JUNE 2026'!#REF!=\"\",\"\",'Risk template_JUNE 2026'!#REF!)","v":{"$error":"#REF!"}},{"$f":"IF('Risk template_JUNE 2026'!#REF!=\"\",\"\",'Risk template_JUNE 2026'!#REF!)","v":{"$error":"#REF!"}}]
[{"$f":"IF('Risk template_JUNE 2026'!#REF!=\"\",\"\",'Risk template_JUNE 2026'!#REF!)","v":{"$error":"#REF!"}},{"$f":"IF('Risk template_JUNE 2026'!#REF!=\"\",\"\",'Risk template_JUNE 2026'!#REF!)","v":{"$error":"#REF!"}},{"$f":"IF('Risk template_JUNE 2026'!#REF!=\"\",\"\",'Risk template_JUNE 2026'!#REF!)","v":{"$error":"#REF!"}},{"$f":"IF('Risk template_JUNE 2026'!#REF!=\"\",\"\",'Risk template_JUNE 2026'!#REF!)","v":{"$error":"#REF!"}},{"$f":"IF('Risk template_JUNE 2026'!#REF!=\"\",\"\",'Risk template_JUNE 2026'!#REF!)","v":{"$error":"#REF!"}},{"$f":"IF('Risk template_JUNE 2026'!#REF!=\"\",\"\",'Risk template_JUNE 2026'!#REF!)","v":{"$error":"#REF!"}},{"$f":"IF('Risk template_JUNE 2026'!#REF!=\"\",\"\",'Risk template_JUNE 2026'!#REF!)","v":{"$error":"#REF!"}},{"$f":"IF('Risk template_JUNE 2026'!#REF!=\"\",\"\",'Risk template_JUNE 2026'!#REF!)","v":{"$error":"#REF!"}},{"$f":"IF('Risk template_JUNE 2026'!#REF!=\"\",\"\",'Risk template_JUNE 2026'!#REF!)","v":{"$error":"#REF!"}},{"$f":"IF('Risk template_JUNE 2026'!#REF!=\"\",\"\",'Risk template_JUNE 2026'!#REF!)","v":{"$error":"#REF!"}},{"$f":"IF('Risk template_JUNE 2026'!#REF!=\"\",\"\",'Risk template_JUNE 2026'!#REF!)","v":{"$error":"#REF!"}},{"$f":"IF('Risk template_JUNE 2026'!#REF!=\"\",\"\",'Risk template_JUNE 2026'!#REF!)","v":{"$error":"#REF!"}}]
[{"$f":"IF('Risk template_JUNE 2026'!#REF!=\"\",\"\",'Risk template_JUNE 2026'!#REF!)","v":{"$error":"#REF!"}},{"$f":"IF('Risk template_JUNE 2026'!#REF!=\"\",\"\",'Risk template_JUNE 2026'!#REF!)","v":{"$error":"#REF!"}},{"$f":"IF('Risk template_JUNE 2026'!#REF!=\"\",\"\",'Risk template_JUNE 2026'!#REF!)","v":{"$error":"#REF!"}},{"$f":"IF('Risk template_JUNE 2026'!#REF!=\"\",\"\",'Risk template_JUNE 2026'!#REF!)","v":{"$error":"#REF!"}},{"$f":"IF('Risk template_JUNE 2026'!#REF!=\"\",\"\",'Risk template_JUNE 2026'!#REF!)","v":{"$error":"#REF!"}},{"$f":"IF('Risk template_JUNE 2026'!#REF!=\"\",\"\",'Risk template_JUNE 2026'!#REF!)","v":{"$error":"#REF!"}},{"$f":"IF('Risk template_JUNE 2026'!#REF!=\"\",\"\",'Risk template_JUNE 2026'!#REF!)","v":{"$error":"#REF!"}},{"$f":"IF('Risk template_JUNE 2026'!#REF!=\"\",\"\",'Risk template_JUNE 2026'!#REF!)","v":{"$error":"#REF!"}},{"$f":"IF('Risk template_JUNE 2026'!#REF!=\"\",\"\",'Risk template_JUNE 2026'!#REF!)","v":{"$error":"#REF!"}},{"$f":"IF('Risk template_JUNE 2026'!#REF!=\"\",\"\",'Risk template_JUNE 2026'!#REF!)","v":{"$error":"#REF!"}},{"$f":"IF('Risk template_JUNE 2026'!#REF!=\"\",\"\",'Risk template_JUNE 2026'!#REF!)","v":{"$error":"#REF!"}},{"$f":"IF('Risk template_JUNE 2026'!#REF!=\"\",\"\",'Risk template_JUNE 2026'!#REF!)","v":{"$error":"#REF!"}}]
[{"$f":"IF('Risk template_JUNE 2026'!#REF!=\"\",\"\",'Risk template_JUNE 2026'!#REF!)","v":{"$error":"#REF!"}},{"$f":"IF('Risk template_JUNE 2026'!#REF!=\"\",\"\",'Risk template_JUNE 2026'!#REF!)","v":{"$error":"#REF!"}},{"$f":"IF('Risk template_JUNE 2026'!#REF!=\"\",\"\",'Risk template_JUNE 2026'!#REF!)","v":{"$error":"#REF!"}},{"$f":"IF('Risk template_JUNE 2026'!#REF!=\"\",\"\",'Risk template_JUNE 2026'!#REF!)","v":{"$error":"#REF!"}},{"$f":"IF('Risk template_JUNE 2026'!#REF!=\"\",\"\",'Risk template_JUNE 2026'!#REF!)","v":{"$error":"#REF!"}},{"$f":"IF('Risk template_JUNE 2026'!#REF!=\"\",\"\",'Risk template_JUNE 2026'!#REF!)","v":{"$error":"#REF!"}},{"$f":"IF('Risk template_JUNE 2026'!#REF!=\"\",\"\",'Risk template_JUNE 2026'!#REF!)","v":{"$error":"#REF!"}},{"$f":"IF('Risk template_JUNE 2026'!#REF!=\"\",\"\",'Risk template_JUNE 2026'!#REF!)","v":{"$error":"#REF!"}},{"$f":"IF('Risk template_JUNE 2026'!#REF!=\"\",\"\",'Risk template_JUNE 2026'!#REF!)","v":{"$error":"#REF!"}},{"$f":"IF('Risk template_JUNE 2026'!#REF!=\"\",\"\",'Risk template_JUNE 2026'!#REF!)","v":{"$error":"#REF!"}},{"$f":"IF('Risk template_JUNE 2026'!#REF!=\"\",\"\",'Risk template_JUNE 2026'!#REF!)","v":{"$error":"#REF!"}},{"$f":"IF('Risk template_JUNE 2026'!#REF!=\"\",\"\",'Risk template_JUNE 2026'!#REF!)","v":{"$error":"#REF!"}}]
[{"$f":"IF('Risk template_JUNE 2026'!#REF!=\"\",\"\",'Risk template_JUNE 2026'!#REF!)","v":{"$error":"#REF!"}},{"$f":"IF('Risk template_JUNE 2026'!#REF!=\"\",\"\",'Risk template_JUNE 2026'!#REF!)","v":{"$error":"#REF!"}},{"$f":"IF('Risk template_JUNE 2026'!#REF!=\"\",\"\",'Risk template_JUNE 2026'!#REF!)","v":{"$error":"#REF!"}},{"$f":"IF('Risk template_JUNE 2026'!#REF!=\"\",\"\",'Risk template_JUNE 2026'!#REF!)","v":{"$error":"#REF!"}},{"$f":"IF('Risk template_JUNE 2026'!#REF!=\"\",\"\",'Risk template_JUNE 2026'!#REF!)","v":{"$error":"#REF!"}},{"$f":"IF('Risk template_JUNE 2026'!#REF!=\"\",\"\",'Risk template_JUNE 2026'!#REF!)","v":{"$error":"#REF!"}},{"$f":"IF('Risk template_JUNE 2026'!#REF!=\"\",\"\",'Risk template_JUNE 2026'!#REF!)","v":{"$error":"#REF!"}},{"$f":"IF('Risk template_JUNE 2026'!#REF!=\"\",\"\",'Risk template_JUNE 2026'!#REF!)","v":{"$error":"#REF!"}},{"$f":"IF('Risk template_JUNE 2026'!#REF!=\"\",\"\",'Risk template_JUNE 2026'!#REF!)","v":{"$error":"#REF!"}},{"$f":"IF('Risk template_JUNE 2026'!#REF!=\"\",\"\",'Risk template_JUNE 2026'!#REF!)","v":{"$error":"#REF!"}},{"$f":"IF('Risk template_JUNE 2026'!#REF!=\"\",\"\",'Risk template_JUNE 2026'!#REF!)","v":{"$error":"#REF!"}},{"$f":"IF('Risk template_JUNE 2026'!#REF!=\"\",\"\",'Risk template_JUNE 2026'!#REF!)","v":{"$error":"#REF!"}}]
[{"$f":"IF('Risk template_JUNE 2026'!#REF!=\"\",\"\",'Risk template_JUNE 2026'!#REF!)","v":{"$error":"#REF!"}},{"$f":"IF('Risk template_JUNE 2026'!#REF!=\"\",\"\",'Risk template_JUNE 2026'!#REF!)","v":{"$error":"#REF!"}},{"$f":"IF('Risk template_JUNE 2026'!#REF!=\"\",\"\",'Risk template_JUNE 2026'!#REF!)","v":{"$error":"#REF!"}},{"$f":"IF('Risk template_JUNE 2026'!#REF!=\"\",\"\",'Risk template_JUNE 2026'!#REF!)","v":{"$error":"#REF!"}},{"$f":"IF('Risk template_JUNE 2026'!#REF!=\"\",\"\",'Risk template_JUNE 2026'!#REF!)","v":{"$error":"#REF!"}},{"$f":"IF('Risk template_JUNE 2026'!#REF!=\"\",\"\",'Risk template_JUNE 2026'!#REF!)","v":{"$error":"#REF!"}},{"$f":"IF('Risk template_JUNE 2026'!#REF!=\"\",\"\",'Risk template_JUNE 2026'!#REF!)","v":{"$error":"#REF!"}},{"$f":"IF('Risk template_JUNE 2026'!#REF!=\"\",\"\",'Risk template_JUNE 2026'!#REF!)","v":{"$error":"#REF!"}},{"$f":"IF('Risk template_JUNE 2026'!#REF!=\"\",\"\",'Risk template_JUNE 2026'!#REF!)","v":{"$error":"#REF!"}},{"$f":"IF('Risk template_JUNE 2026'!#REF!=\"\",\"\",'Risk template_JUNE 2026'!#REF!)","v":{"$error":"#REF!"}},{"$f":"IF('Risk template_JUNE 2026'!#REF!=\"\",\"\",'Risk template_JUNE 2026'!#REF!)","v":{"$error":"#REF!"}},{"$f":"IF('Risk template_JUNE 2026'!#REF!=\"\",\"\",'Risk template_JUNE 2026'!#REF!)","v":{"$error":"#REF!"}}]
[{"$f":"IF('Risk template_JUNE 2026'!#REF!=\"\",\"\",'Risk template_JUNE 2026'!#REF!)","v":{"$error":"#REF!"}},{"$f":"IF('Risk template_JUNE 2026'!#REF!=\"\",\"\",'Risk template_JUNE 2026'!#REF!)","v":{"$error":"#REF!"}},{"$f":"IF('Risk template_JUNE 2026'!#REF!=\"\",\"\",'Risk template_JUNE 2026'!#REF!)","v":{"$error":"#REF!"}},{"$f":"IF('Risk template_JUNE 2026'!#REF!=\"\",\"\",'Risk template_JUNE 2026'!#REF!)","v":{"$error":"#REF!"}},{"$f":"IF('Risk template_JUNE 2026'!#REF!=\"\",\"\",'Risk template_JUNE 2026'!#REF!)","v":{"$error":"#REF!"}},{"$f":"IF('Risk template_JUNE 2026'!#REF!=\"\",\"\",'Risk template_JUNE 2026'!#REF!)","v":{"$error":"#REF!"}},{"$f":"IF('Risk template_JUNE 2026'!#REF!=\"\",\"\",'Risk template_JUNE 2026'!#REF!)","v":{"$error":"#REF!"}},{"$f":"IF('Risk template_JUNE 2026'!#REF!=\"\",\"\",'Risk template_JUNE 2026'!#REF!)","v":{"$error":"#REF!"}},{"$f":"IF('Risk template_JUNE 2026'!#REF!=\"\",\"\",'Risk template_JUNE 2026'!#REF!)","v":{"$error":"#REF!"}},{"$f":"IF('Risk template_JUNE 2026'!#REF!=\"\",\"\",'Risk template_JUNE 2026'!#REF!)","v":{"$error":"#REF!"}},{"$f":"IF('Risk template_JUNE 2026'!#REF!=\"\",\"\",'Risk template_JUNE 2026'!#REF!)","v":{"$error":"#REF!"}},{"$f":"IF('Risk template_JUNE 2026'!#REF!=\"\",\"\",'Risk template_JUNE 2026'!#REF!)","v":{"$error":"#REF!"}}]
[{"$f":"IF('Risk template_JUNE 2026'!#REF!=\"\",\"\",'Risk template_JUNE 2026'!#REF!)","v":{"$error":"#REF!"}},{"$f":"IF('Risk template_JUNE 2026'!#REF!=\"\",\"\",'Risk template_JUNE 2026'!#REF!)","v":{"$error":"#REF!"}},{"$f":"IF('Risk template_JUNE 2026'!#REF!=\"\",\"\",'Risk template_JUNE 2026'!#REF!)","v":{"$error":"#REF!"}},{"$f":"IF('Risk template_JUNE 2026'!#REF!=\"\",\"\",'Risk template_JUNE 2026'!#REF!)","v":{"$error":"#REF!"}},{"$f":"IF('Risk template_JUNE 2026'!#REF!=\"\",\"\",'Risk template_JUNE 2026'!#REF!)","v":{"$error":"#REF!"}},{"$f":"IF('Risk template_JUNE 2026'!#REF!=\"\",\"\",'Risk template_JUNE 2026'!#REF!)","v":{"$error":"#REF!"}},{"$f":"IF('Risk template_JUNE 2026'!#REF!=\"\",\"\",'Risk template_JUNE 2026'!#REF!)","v":{"$error":"#REF!"}},{"$f":"IF('Risk template_JUNE 2026'!#REF!=\"\",\"\",'Risk template_JUNE 2026'!#REF!)","v":{"$error":"#REF!"}},{"$f":"IF('Risk template_JUNE 2026'!#REF!=\"\",\"\",'Risk template_JUNE 2026'!#REF!)","v":{"$error":"#REF!"}},{"$f":"IF('Risk template_JUNE 2026'!#REF!=\"\",\"\",'Risk template_JUNE 2026'!#REF!)","v":{"$error":"#REF!"}},{"$f":"IF('Risk template_JUNE 2026'!#REF!=\"\",\"\",'Risk template_JUNE 2026'!#REF!)","v":{"$error":"#REF!"}},{"$f":"IF('Risk template_JUNE 2026'!#REF!=\"\",\"\",'Risk template_JUNE 2026'!#REF!)","v":{"$error":"#REF!"}}]
[{"$f":"IF('Risk template_JUNE 2026'!#REF!=\"\",\"\",'Risk template_JUNE 2026'!#REF!)","v":{"$error":"#REF!"}},{"$f":"IF('Risk template_JUNE 2026'!#REF!=\"\",\"\",'Risk template_JUNE 2026'!#REF!)","v":{"$error":"#REF!"}},{"$f":"IF('Risk template_JUNE 2026'!#REF!=\"\",\"\",'Risk template_JUNE 2026'!#REF!)","v":{"$error":"#REF!"}},{"$f":"IF('Risk template_JUNE 2026'!#REF!=\"\",\"\",'Risk template_JUNE 2026'!#REF!)","v":{"$error":"#REF!"}},{"$f":"IF('Risk template_JUNE 2026'!#REF!=\"\",\"\",'Risk template_JUNE 2026'!#REF!)","v":{"$error":"#REF!"}},{"$f":"IF('Risk template_JUNE 2026'!#REF!=\"\",\"\",'Risk template_JUNE 2026'!#REF!)","v":{"$error":"#REF!"}},{"$f":"IF('Risk template_JUNE 2026'!#REF!=\"\",\"\",'Risk template_JUNE 2026'!#REF!)","v":{"$error":"#REF!"}},{"$f":"IF('Risk template_JUNE 2026'!#REF!=\"\",\"\",'Risk template_JUNE 2026'!#REF!)","v":{"$error":"#REF!"}},{"$f":"IF('Risk template_JUNE 2026'!#REF!=\"\",\"\",'Risk template_JUNE 2026'!#REF!)","v":{"$error":"#REF!"}},{"$f":"IF('Risk template_JUNE 2026'!#REF!=\"\",\"\",'Risk template_JUNE 2026'!#REF!)","v":{"$error":"#REF!"}},{"$f":"IF('Risk template_JUNE 2026'!#REF!=\"\",\"\",'Risk template_JUNE 2026'!#REF!)","v":{"$error":"#REF!"}},{"$f":"IF('Risk template_JUNE 2026'!#REF!=\"\",\"\",'Risk template_JUNE 2026'!#REF!)","v":{"$error":"#REF!"}}]
[{"$f":"IF('Risk template_JUNE 2026'!#REF!=\"\",\"\",'Risk template_JUNE 2026'!#REF!)","v":{"$error":"#REF!"}},{"$f":"IF('Risk template_JUNE 2026'!#REF!=\"\",\"\",'Risk template_JUNE 2026'!#REF!)","v":{"$error":"#REF!"}},{"$f":"IF('Risk template_JUNE 2026'!#REF!=\"\",\"\",'Risk template_JUNE 2026'!#REF!)","v":{"$error":"#REF!"}},{"$f":"IF('Risk template_JUNE 2026'!#REF!=\"\",\"\",'Risk template_JUNE 2026'!#REF!)","v":{"$error":"#REF!"}},{"$f":"IF('Risk template_JUNE 2026'!#REF!=\"\",\"\",'Risk template_JUNE 2026'!#REF!)","v":{"$error":"#REF!"}},{"$f":"IF('Risk template_JUNE 2026'!#REF!=\"\",\"\",'Risk template_JUNE 2026'!#REF!)","v":{"$error":"#REF!"}},{"$f":"IF('Risk template_JUNE 2026'!#REF!=\"\",\"\",'Risk template_JUNE 2026'!#REF!)","v":{"$error":"#REF!"}},{"$f":"IF('Risk template_JUNE 2026'!#REF!=\"\",\"\",'Risk template_JUNE 2026'!#REF!)","v":{"$error":"#REF!"}},{"$f":"IF('Risk template_JUNE 2026'!#REF!=\"\",\"\",'Risk template_JUNE 2026'!#REF!)","v":{"$error":"#REF!"}},{"$f":"IF('Risk template_JUNE 2026'!#REF!=\"\",\"\",'Risk template_JUNE 2026'!#REF!)","v":{"$error":"#REF!"}},{"$f":"IF('Risk template_JUNE 2026'!#REF!=\"\",\"\",'Risk template_JUNE 2026'!#REF!)","v":{"$error":"#REF!"}},{"$f":"IF('Risk template_JUNE 2026'!#REF!=\"\",\"\",'Risk template_JUNE 2026'!#REF!)","v":{"$error":"#REF!"}}]
[{"$f":"IF('Risk template_JUNE 2026'!#REF!=\"\",\"\",'Risk template_JUNE 2026'!#REF!)","v":{"$error":"#REF!"}},{"$f":"IF('Risk template_JUNE 2026'!#REF!=\"\",\"\",'Risk template_JUNE 2026'!#REF!)","v":{"$error":"#REF!"}},{"$f":"IF('Risk template_JUNE 2026'!#REF!=\"\",\"\",'Risk template_JUNE 2026'!#REF!)","v":{"$error":"#REF!"}},{"$f":"IF('Risk template_JUNE 2026'!#REF!=\"\",\"\",'Risk template_JUNE 2026'!#REF!)","v":{"$error":"#REF!"}},{"$f":"IF('Risk template_JUNE 2026'!#REF!=\"\",\"\",'Risk template_JUNE 2026'!#REF!)","v":{"$error":"#REF!"}},{"$f":"IF('Risk template_JUNE 2026'!#REF!=\"\",\"\",'Risk template_JUNE 2026'!#REF!)","v":{"$error":"#REF!"}},{"$f":"IF('Risk template_JUNE 2026'!#REF!=\"\",\"\",'Risk template_JUNE 2026'!#REF!)","v":{"$error":"#REF!"}},{"$f":"IF('Risk template_JUNE 2026'!#REF!=\"\",\"\",'Risk template_JUNE 2026'!#REF!)","v":{"$error":"#REF!"}},{"$f":"IF('Risk template_JUNE 2026'!#REF!=\"\",\"\",'Risk template_JUNE 2026'!#REF!)","v":{"$error":"#REF!"}},{"$f":"IF('Risk template_JUNE 2026'!#REF!=\"\",\"\",'Risk template_JUNE 2026'!#REF!)","v":{"$error":"#REF!"}},{"$f":"IF('Risk template_JUNE 2026'!#REF!=\"\",\"\",'Risk template_JUNE 2026'!#REF!)","v":{"$error":"#REF!"}},{"$f":"IF('Risk template_JUNE 2026'!#REF!=\"\",\"\",'Risk template_JUNE 2026'!#REF!)","v":{"$error":"#REF!"}}]
[{"$f":"IF('Risk template_JUNE 2026'!#REF!=\"\",\"\",'Risk template_JUNE 2026'!#REF!)","v":{"$error":"#REF!"}},{"$f":"IF('Risk template_JUNE 2026'!#REF!=\"\",\"\",'Risk template_JUNE 2026'!#REF!)","v":{"$error":"#REF!"}},{"$f":"IF('Risk template_JUNE 2026'!#REF!=\"\",\"\",'Risk template_JUNE 2026'!#REF!)","v":{"$error":"#REF!"}},{"$f":"IF('Risk template_JUNE 2026'!#REF!=\"\",\"\",'Risk template_JUNE 2026'!#REF!)","v":{"$error":"#REF!"}},{"$f":"IF('Risk template_JUNE 2026'!#REF!=\"\",\"\",'Risk template_JUNE 2026'!#REF!)","v":{"$error":"#REF!"}},{"$f":"IF('Risk template_JUNE 2026'!#REF!=\"\",\"\",'Risk template_JUNE 2026'!#REF!)","v":{"$error":"#REF!"}},{"$f":"IF('Risk template_JUNE 2026'!#REF!=\"\",\"\",'Risk template_JUNE 2026'!#REF!)","v":{"$error":"#REF!"}},{"$f":"IF('Risk template_JUNE 2026'!#REF!=\"\",\"\",'Risk template_JUNE 2026'!#REF!)","v":{"$error":"#REF!"}},{"$f":"IF('Risk template_JUNE 2026'!#REF!=\"\",\"\",'Risk template_JUNE 2026'!#REF!)","v":{"$error":"#REF!"}},{"$f":"IF('Risk template_JUNE 2026'!#REF!=\"\",\"\",'Risk template_JUNE 2026'!#REF!)","v":{"$error":"#REF!"}},{"$f":"IF('Risk template_JUNE 2026'!#REF!=\"\",\"\",'Risk template_JUNE 2026'!#REF!)","v":{"$error":"#REF!"}},{"$f":"IF('Risk template_JUNE 2026'!#REF!=\"\",\"\",'Risk template_JUNE 2026'!#REF!)","v":{"$error":"#REF!"}}]
[{"$f":"IF('Risk template_JUNE 2026'!#REF!=\"\",\"\",'Risk template_JUNE 2026'!#REF!)","v":{"$error":"#REF!"}},{"$f":"IF('Risk template_JUNE 2026'!#REF!=\"\",\"\",'Risk template_JUNE 2026'!#REF!)","v":{"$error":"#REF!"}},{"$f":"IF('Risk template_JUNE 2026'!#REF!=\"\",\"\",'Risk template_JUNE 2026'!#REF!)","v":{"$error":"#REF!"}},{"$f":"IF('Risk template_JUNE 2026'!#REF!=\"\",\"\",'Risk template_JUNE 2026'!#REF!)","v":{"$error":"#REF!"}},{"$f":"IF('Risk template_JUNE 2026'!#REF!=\"\",\"\",'Risk template_JUNE 2026'!#REF!)","v":{"$error":"#REF!"}},{"$f":"IF('Risk template_JUNE 2026'!#REF!=\"\",\"\",'Risk template_JUNE 2026'!#REF!)","v":{"$error":"#REF!"}},{"$f":"IF('Risk template_JUNE 2026'!#REF!=\"\",\"\",'Risk template_JUNE 2026'!#REF!)","v":{"$error":"#REF!"}},{"$f":"IF('Risk template_JUNE 2026'!#REF!=\"\",\"\",'Risk template_JUNE 2026'!#REF!)","v":{"$error":"#REF!"}},{"$f":"IF('Risk template_JUNE 2026'!#REF!=\"\",\"\",'Risk template_JUNE 2026'!#REF!)","v":{"$error":"#REF!"}},{"$f":"IF('Risk template_JUNE 2026'!#REF!=\"\",\"\",'Risk template_JUNE 2026'!#REF!)","v":{"$error":"#REF!"}},{"$f":"IF('Risk template_JUNE 2026'!#REF!=\"\",\"\",'Risk template_JUNE 2026'!#REF!)","v":{"$error":"#REF!"}},{"$f":"IF('Risk template_JUNE 2026'!#REF!=\"\",\"\",'Risk template_JUNE 2026'!#REF!)","v":{"$error":"#REF!"}}]
[{"$f":"IF('Risk template_JUNE 2026'!A37=\"\",\"\",'Risk template_JUNE 2026'!A37)","v":""},{"$f":"IF('Risk template_JUNE 2026'!A37=\"\",\"\",'Risk template_JUNE 2026'!D37)","v":""},{"$f":"IF('Risk template_JUNE 2026'!A37=\"\",\"\",'Risk template_JUNE 2026'!F37)","v":""},{"$f":"IF('Risk template_JUNE 2026'!A37=\"\",\"\",'Risk template_JUNE 2026'!G37)","v":""},{"$f":"IF('Risk template_JUNE 2026'!A37=\"\",\"\",'Risk template_JUNE 2026'!L37)","v":""},{"$f":"IF('Risk template_JUNE 2026'!A37=\"\",\"\",'Risk template_JUNE 2026'!M37)","v":""},{"$f":"IF('Risk template_JUNE 2026'!A37=\"\",\"\",'Risk template_JUNE 2026'!N37)","v":""},{"$f":"IF('Risk template_JUNE 2026'!A37=\"\",\"\",'Risk template_JUNE 2026'!O37)","v":""},{"$f":"IF('Risk template_JUNE 2026'!A37=\"\",\"\",'Risk template_JUNE 2026'!P37)","v":""},{"$f":"IF('Risk template_JUNE 2026'!A37=\"\",\"\",'Risk template_JUNE 2026'!Q37)","v":""},{"$f":"IF('Risk template_JUNE 2026'!A37=\"\",\"\",'Risk template_JUNE 2026'!T37)","v":""},{"$f":"IF('Risk template_JUNE 2026'!A37=\"\",\"\",'Risk template_JUNE 2026'!U37)","v":""}]
["s",{"$f":"IF('Risk template_JUNE 2026'!#REF!=\"\",\"\",'Risk template_JUNE 2026'!#REF!)","v":{"$error":"#REF!"}},{"$f":"IF('Risk template_JUNE 2026'!#REF!=\"\",\"\",'Risk template_JUNE 2026'!#REF!)","v":{"$error":"#REF!"}},{"$f":"IF('Risk template_JUNE 2026'!#REF!=\"\",\"\",'Risk template_JUNE 2026'!#REF!)","v":{"$error":"#REF!"}},{"$f":"IF('Risk template_JUNE 2026'!#REF!=\"\",\"\",'Risk template_JUNE 2026'!#REF!)","v":{"$error":"#REF!"}},{"$f":"IF('Risk template_JUNE 2026'!#REF!=\"\",\"\",'Risk template_JUNE 2026'!#REF!)","v":{"$error":"#REF!"}},{"$f":"IF('Risk template_JUNE 2026'!#REF!=\"\",\"\",'Risk template_JUNE 2026'!#REF!)","v":{"$error":"#REF!"}},{"$f":"IF('Risk template_JUNE 2026'!#REF!=\"\",\"\",'Risk template_JUNE 2026'!#REF!)","v":{"$error":"#REF!"}},{"$f":"IF('Risk template_JUNE 2026'!#REF!=\"\",\"\",'Risk template_JUNE 2026'!#REF!)","v":{"$error":"#REF!"}},{"$f":"IF('Risk template_JUNE 2026'!#REF!=\"\",\"\",'Risk template_JUNE 2026'!#REF!)","v":{"$error":"#REF!"}},{"$f":"IF('Risk template_JUNE 2026'!#REF!=\"\",\"\",'Risk template_JUNE 2026'!#REF!)","v":{"$error":"#REF!"}},{"$f":"IF('Risk template_JUNE 2026'!#REF!=\"\",\"\",'Risk template_JUNE 2026'!#REF!)","v":{"$error":"#REF!"}}]
[{"$f":"IF('Risk template_JUNE 2026'!#REF!=\"\",\"\",'Risk template_JUNE 2026'!#REF!)","v":{"$error":"#REF!"}},{"$f":"IF('Risk template_JUNE 2026'!#REF!=\"\",\"\",'Risk template_JUNE 2026'!#REF!)","v":{"$error":"#REF!"}},{"$f":"IF('Risk template_JUNE 2026'!#REF!=\"\",\"\",'Risk template_JUNE 2026'!#REF!)","v":{"$error":"#REF!"}},{"$f":"IF('Risk template_JUNE 2026'!#REF!=\"\",\"\",'Risk template_JUNE 2026'!#REF!)","v":{"$error":"#REF!"}},{"$f":"IF('Risk template_JUNE 2026'!#REF!=\"\",\"\",'Risk template_JUNE 2026'!#REF!)","v":{"$error":"#REF!"}},{"$f":"IF('Risk template_JUNE 2026'!#REF!=\"\",\"\",'Risk template_JUNE 2026'!#REF!)","v":{"$error":"#REF!"}},{"$f":"IF('Risk template_JUNE 2026'!#REF!=\"\",\"\",'Risk template_JUNE 2026'!#REF!)","v":{"$error":"#REF!"}},{"$f":"IF('Risk template_JUNE 2026'!#REF!=\"\",\"\",'Risk template_JUNE 2026'!#REF!)","v":{"$error":"#REF!"}},{"$f":"IF('Risk template_JUNE 2026'!#REF!=\"\",\"\",'Risk template_JUNE 2026'!#REF!)","v":{"$error":"#REF!"}},{"$f":"IF('Risk template_JUNE 2026'!#REF!=\"\",\"\",'Risk template_JUNE 2026'!#REF!)","v":{"$error":"#REF!"}},{"$f":"IF('Risk template_JUNE 2026'!#REF!=\"\",\"\",'Risk template_JUNE 2026'!#REF!)","v":{"$error":"#REF!"}},{"$f":"IF('Risk template_JUNE 2026'!#REF!=\"\",\"\",'Risk template_JUNE 2026'!#REF!)","v":{"$error":"#REF!"}}]
[{"$f":"IF('Risk template_JUNE 2026'!#REF!=\"\",\"\",'Risk template_JUNE 2026'!#REF!)","v":{"$error":"#REF!"}},{"$f":"IF('Risk template_JUNE 2026'!#REF!=\"\",\"\",'Risk template_JUNE 2026'!#REF!)","v":{"$error":"#REF!"}},{"$f":"IF('Risk template_JUNE 2026'!#REF!=\"\",\"\",'Risk template_JUNE 2026'!#REF!)","v":{"$error":"#REF!"}},{"$f":"IF('Risk template_JUNE 2026'!#REF!=\"\",\"\",'Risk template_JUNE 2026'!#REF!)","v":{"$error":"#REF!"}},{"$f":"IF('Risk template_JUNE 2026'!#REF!=\"\",\"\",'Risk template_JUNE 2026'!#REF!)","v":{"$error":"#REF!"}},{"$f":"IF('Risk template_JUNE 2026'!#REF!=\"\",\"\",'Risk template_JUNE 2026'!#REF!)","v":{"$error":"#REF!"}},{"$f":"IF('Risk template_JUNE 2026'!#REF!=\"\",\"\",'Risk template_JUNE 2026'!#REF!)","v":{"$error":"#REF!"}},{"$f":"IF('Risk template_JUNE 2026'!#REF!=\"\",\"\",'Risk template_JUNE 2026'!#REF!)","v":{"$error":"#REF!"}},{"$f":"IF('Risk template_JUNE 2026'!#REF!=\"\",\"\",'Risk template_JUNE 2026'!#REF!)","v":{"$error":"#REF!"}},{"$f":"IF('Risk template_JUNE 2026'!#REF!=\"\",\"\",'Risk template_JUNE 2026'!#REF!)","v":{"$error":"#REF!"}},{"$f":"IF('Risk template_JUNE 2026'!#REF!=\"\",\"\",'Risk template_JUNE 2026'!#REF!)","v":{"$error":"#REF!"}},{"$f":"IF('Risk template_JUNE 2026'!#REF!=\"\",\"\",'Risk template_JUNE 2026'!#REF!)","v":{"$error":"#REF!"}}]
[{"$f":"IF('Risk template_JUNE 2026'!#REF!=\"\",\"\",'Risk template_JUNE 2026'!#REF!)","v":{"$error":"#REF!"}},{"$f":"IF('Risk template_JUNE 2026'!#REF!=\"\",\"\",'Risk template_JUNE 2026'!#REF!)","v":{"$error":"#REF!"}},{"$f":"IF('Risk template_JUNE 2026'!#REF!=\"\",\"\",'Risk template_JUNE 2026'!#REF!)","v":{"$error":"#REF!"}},{"$f":"IF('Risk template_JUNE 2026'!#REF!=\"\",\"\",'Risk template_JUNE 2026'!#REF!)","v":{"$error":"#REF!"}},{"$f":"IF('Risk template_JUNE 2026'!#REF!=\"\",\"\",'Risk template_JUNE 2026'!#REF!)","v":{"$error":"#REF!"}},{"$f":"IF('Risk template_JUNE 2026'!#REF!=\"\",\"\",'Risk template_JUNE 2026'!#REF!)","v":{"$error":"#REF!"}},{"$f":"IF('Risk template_JUNE 2026'!#REF!=\"\",\"\",'Risk template_JUNE 2026'!#REF!)","v":{"$error":"#REF!"}},{"$f":"IF('Risk template_JUNE 2026'!#REF!=\"\",\"\",'Risk template_JUNE 2026'!#REF!)","v":{"$error":"#REF!"}},{"$f":"IF('Risk template_JUNE 2026'!#REF!=\"\",\"\",'Risk template_JUNE 2026'!#REF!)","v":{"$error":"#REF!"}},{"$f":"IF('Risk template_JUNE 2026'!#REF!=\"\",\"\",'Risk template_JUNE 2026'!#REF!)","v":{"$error":"#REF!"}},{"$f":"IF('Risk template_JUNE 2026'!#REF!=\"\",\"\",'Risk template_JUNE 2026'!#REF!)","v":{"$error":"#REF!"}},{"$f":"IF('Risk template_JUNE 2026'!#REF!=\"\",\"\",'Risk template_JUNE 2026'!#REF!)","v":{"$error":"#REF!"}}]
[{"$f":"IF('Risk template_JUNE 2026'!#REF!=\"\",\"\",'Risk template_JUNE 2026'!#REF!)","v":{"$error":"#REF!"}},{"$f":"IF('Risk template_JUNE 2026'!#REF!=\"\",\"\",'Risk template_JUNE 2026'!#REF!)","v":{"$error":"#REF!"}},{"$f":"IF('Risk template_JUNE 2026'!#REF!=\"\",\"\",'Risk template_JUNE 2026'!#REF!)","v":{"$error":"#REF!"}},{"$f":"IF('Risk template_JUNE 2026'!#REF!=\"\",\"\",'Risk template_JUNE 2026'!#REF!)","v":{"$error":"#REF!"}},{"$f":"IF('Risk template_JUNE 2026'!#REF!=\"\",\"\",'Risk template_JUNE 2026'!#REF!)","v":{"$error":"#REF!"}},{"$f":"IF('Risk template_JUNE 2026'!#REF!=\"\",\"\",'Risk template_JUNE 2026'!#REF!)","v":{"$error":"#REF!"}},{"$f":"IF('Risk template_JUNE 2026'!#REF!=\"\",\"\",'Risk template_JUNE 2026'!#REF!)","v":{"$error":"#REF!"}},{"$f":"IF('Risk template_JUNE 2026'!#REF!=\"\",\"\",'Risk template_JUNE 2026'!#REF!)","v":{"$error":"#REF!"}},{"$f":"IF('Risk template_JUNE 2026'!#REF!=\"\",\"\",'Risk template_JUNE 2026'!#REF!)","v":{"$error":"#REF!"}},{"$f":"IF('Risk template_JUNE 2026'!#REF!=\"\",\"\",'Risk template_JUNE 2026'!#REF!)","v":{"$error":"#REF!"}},{"$f":"IF('Risk template_JUNE 2026'!#REF!=\"\",\"\",'Risk template_JUNE 2026'!#REF!)","v":{"$error":"#REF!"}},{"$f":"IF('Risk template_JUNE 2026'!#REF!=\"\",\"\",'Risk template_JUNE 2026'!#REF!)","v":{"$error":"#REF!"}}]
[{"$f":"IF('Risk template_JUNE 2026'!#REF!=\"\",\"\",'Risk template_JUNE 2026'!#REF!)","v":{"$error":"#REF!"}},{"$f":"IF('Risk template_JUNE 2026'!#REF!=\"\",\"\",'Risk template_JUNE 2026'!#REF!)","v":{"$error":"#REF!"}},{"$f":"IF('Risk template_JUNE 2026'!#REF!=\"\",\"\",'Risk template_JUNE 2026'!#REF!)","v":{"$error":"#REF!"}},{"$f":"IF('Risk template_JUNE 2026'!#REF!=\"\",\"\",'Risk template_JUNE 2026'!#REF!)","v":{"$error":"#REF!"}},{"$f":"IF('Risk template_JUNE 2026'!#REF!=\"\",\"\",'Risk template_JUNE 2026'!#REF!)","v":{"$error":"#REF!"}},{"$f":"IF('Risk template_JUNE 2026'!#REF!=\"\",\"\",'Risk template_JUNE 2026'!#REF!)","v":{"$error":"#REF!"}},{"$f":"IF('Risk template_JUNE 2026'!#REF!=\"\",\"\",'Risk template_JUNE 2026'!#REF!)","v":{"$error":"#REF!"}},{"$f":"IF('Risk template_JUNE 2026'!#REF!=\"\",\"\",'Risk template_JUNE 2026'!#REF!)","v":{"$error":"#REF!"}},{"$f":"IF('Risk template_JUNE 2026'!#REF!=\"\",\"\",'Risk template_JUNE 2026'!#REF!)","v":{"$error":"#REF!"}},{"$f":"IF('Risk template_JUNE 2026'!#REF!=\"\",\"\",'Risk template_JUNE 2026'!#REF!)","v":{"$error":"#REF!"}},{"$f":"IF('Risk template_JUNE 2026'!#REF!=\"\",\"\",'Risk template_JUNE 2026'!#REF!)","v":{"$error":"#REF!"}},{"$f":"IF('Risk template_JUNE 2026'!#REF!=\"\",\"\",'Risk template_JUNE 2026'!#REF!)","v":{"$error":"#REF!"}}]
[{"$f":"IF('Risk template_JUNE 2026'!#REF!=\"\",\"\",'Risk template_JUNE 2026'!#REF!)","v":{"$error":"#REF!"}},{"$f":"IF('Risk template_JUNE 2026'!#REF!=\"\",\"\",'Risk template_JUNE 2026'!#REF!)","v":{"$error":"#REF!"}},{"$f":"IF('Risk template_JUNE 2026'!#REF!=\"\",\"\",'Risk template_JUNE 2026'!#REF!)","v":{"$error":"#REF!"}},{"$f":"IF('Risk template_JUNE 2026'!#REF!=\"\",\"\",'Risk template_JUNE 2026'!#REF!)","v":{"$error":"#REF!"}},{"$f":"IF('Risk template_JUNE 2026'!#REF!=\"\",\"\",'Risk template_JUNE 2026'!#REF!)","v":{"$error":"#REF!"}},{"$f":"IF('Risk template_JUNE 2026'!#REF!=\"\",\"\",'Risk template_JUNE 2026'!#REF!)","v":{"$error":"#REF!"}},{"$f":"IF('Risk template_JUNE 2026'!#REF!=\"\",\"\",'Risk template_JUNE 2026'!#REF!)","v":{"$error":"#REF!"}},{"$f":"IF('Risk template_JUNE 2026'!#REF!=\"\",\"\",'Risk template_JUNE 2026'!#REF!)","v":{"$error":"#REF!"}},{"$f":"IF('Risk template_JUNE 2026'!#REF!=\"\",\"\",'Risk template_JUNE 2026'!#REF!)","v":{"$error":"#REF!"}},{"$f":"IF('Risk template_JUNE 2026'!#REF!=\"\",\"\",'Risk template_JUNE 2026'!#REF!)","v":{"$error":"#REF!"}},{"$f":"IF('Risk template_JUNE 2026'!#REF!=\"\",\"\",'Risk template_JUNE 2026'!#REF!)","v":{"$error":"#REF!"}},{"$f":"IF('Risk template_JUNE 2026'!#REF!=\"\",\"\",'Risk template_JUNE 2026'!#REF!)","v":{"$error":"#REF!"}}]
[{"$f":"IF('Risk template_JUNE 2026'!#REF!=\"\",\"\",'Risk template_JUNE 2026'!#REF!)","v":{"$error":"#REF!"}},{"$f":"IF('Risk template_JUNE 2026'!#REF!=\"\",\"\",'Risk template_JUNE 2026'!#REF!)","v":{"$error":"#REF!"}},{"$f":"IF('Risk template_JUNE 2026'!#REF!=\"\",\"\",'Risk template_JUNE 2026'!#REF!)","v":{"$error":"#REF!"}},{"$f":"IF('Risk template_JUNE 2026'!#REF!=\"\",\"\",'Risk template_JUNE 2026'!#REF!)","v":{"$error":"#REF!"}},{"$f":"IF('Risk template_JUNE 2026'!#REF!=\"\",\"\",'Risk template_JUNE 2026'!#REF!)","v":{"$error":"#REF!"}},{"$f":"IF('Risk template_JUNE 2026'!#REF!=\"\",\"\",'Risk template_JUNE 2026'!#REF!)","v":{"$error":"#REF!"}},{"$f":"IF('Risk template_JUNE 2026'!#REF!=\"\",\"\",'Risk template_JUNE 2026'!#REF!)","v":{"$error":"#REF!"}},{"$f":"IF('Risk template_JUNE 2026'!#REF!=\"\",\"\",'Risk template_JUNE 2026'!#REF!)","v":{"$error":"#REF!"}},{"$f":"IF('Risk template_JUNE 2026'!#REF!=\"\",\"\",'Risk template_JUNE 2026'!#REF!)","v":{"$error":"#REF!"}},{"$f":"IF('Risk template_JUNE 2026'!#REF!=\"\",\"\",'Risk template_JUNE 2026'!#REF!)","v":{"$error":"#REF!"}},{"$f":"IF('Risk template_JUNE 2026'!#REF!=\"\",\"\",'Risk template_JUNE 2026'!#REF!)","v":{"$error":"#REF!"}},{"$f":"IF('Risk template_JUNE 2026'!#REF!=\"\",\"\",'Risk template_JUNE 2026'!#REF!)","v":{"$error":"#REF!"}}]
[{"$f":"IF('Risk template_JUNE 2026'!#REF!=\"\",\"\",'Risk template_JUNE 2026'!#REF!)","v":{"$error":"#REF!"}},{"$f":"IF('Risk template_JUNE 2026'!#REF!=\"\",\"\",'Risk template_JUNE 2026'!#REF!)","v":{"$error":"#REF!"}},{"$f":"IF('Risk template_JUNE 2026'!#REF!=\"\",\"\",'Risk template_JUNE 2026'!#REF!)","v":{"$error":"#REF!"}},{"$f":"IF('Risk template_JUNE 2026'!#REF!=\"\",\"\",'Risk template_JUNE 2026'!#REF!)","v":{"$error":"#REF!"}},{"$f":"IF('Risk template_JUNE 2026'!#REF!=\"\",\"\",'Risk template_JUNE 2026'!#REF!)","v":{"$error":"#REF!"}},{"$f":"IF('Risk template_JUNE 2026'!#REF!=\"\",\"\",'Risk template_JUNE 2026'!#REF!)","v":{"$error":"#REF!"}},{"$f":"IF('Risk template_JUNE 2026'!#REF!=\"\",\"\",'Risk template_JUNE 2026'!#REF!)","v":{"$error":"#REF!"}},{"$f":"IF('Risk template_JUNE 2026'!#REF!=\"\",\"\",'Risk template_JUNE 2026'!#REF!)","v":{"$error":"#REF!"}},{"$f":"IF('Risk template_JUNE 2026'!#REF!=\"\",\"\",'Risk template_JUNE 2026'!#REF!)","v":{"$error":"#REF!"}},{"$f":"IF('Risk template_JUNE 2026'!#REF!=\"\",\"\",'Risk template_JUNE 2026'!#REF!)","v":{"$error":"#REF!"}},{"$f":"IF('Risk template_JUNE 2026'!#REF!=\"\",\"\",'Risk template_JUNE 2026'!#REF!)","v":{"$error":"#REF!"}},{"$f":"IF('Risk template_JUNE 2026'!#REF!=\"\",\"\",'Risk template_JUNE 2026'!#REF!)","v":{"$error":"#REF!"}}]
[{"$f":"IF('Risk template_JUNE 2026'!#REF!=\"\",\"\",'Risk template_JUNE 2026'!#REF!)","v":{"$error":"#REF!"}},{"$f":"IF('Risk template_JUNE 2026'!#REF!=\"\",\"\",'Risk template_JUNE 2026'!#REF!)","v":{"$error":"#REF!"}},{"$f":"IF('Risk template_JUNE 2026'!#REF!=\"\",\"\",'Risk template_JUNE 2026'!#REF!)","v":{"$error":"#REF!"}},{"$f":"IF('Risk template_JUNE 2026'!#REF!=\"\",\"\",'Risk template_JUNE 2026'!#REF!)","v":{"$error":"#REF!"}},{"$f":"IF('Risk template_JUNE 2026'!#REF!=\"\",\"\",'Risk template_JUNE 2026'!#REF!)","v":{"$error":"#REF!"}},{"$f":"IF('Risk template_JUNE 2026'!#REF!=\"\",\"\",'Risk template_JUNE 2026'!#REF!)","v":{"$error":"#REF!"}},{"$f":"IF('Risk template_JUNE 2026'!#REF!=\"\",\"\",'Risk template_JUNE 2026'!#REF!)","v":{"$error":"#REF!"}},{"$f":"IF('Risk template_JUNE 2026'!#REF!=\"\",\"\",'Risk template_JUNE 2026'!#REF!)","v":{"$error":"#REF!"}},{"$f":"IF('Risk template_JUNE 2026'!#REF!=\"\",\"\",'Risk template_JUNE 2026'!#REF!)","v":{"$error":"#REF!"}},{"$f":"IF('Risk template_JUNE 2026'!#REF!=\"\",\"\",'Risk template_JUNE 2026'!#REF!)","v":{"$error":"#REF!"}},{"$f":"IF('Risk template_JUNE 2026'!#REF!=\"\",\"\",'Risk template_JUNE 2026'!#REF!)","v":{"$error":"#REF!"}},{"$f":"IF('Risk template_JUNE 2026'!#REF!=\"\",\"\",'Risk template_JUNE 2026'!#REF!)","v":{"$error":"#REF!"}}]
[{"$f":"IF('Risk template_JUNE 2026'!#REF!=\"\",\"\",'Risk template_JUNE 2026'!#REF!)","v":{"$error":"#REF!"}},{"$f":"IF('Risk template_JUNE 2026'!#REF!=\"\",\"\",'Risk template_JUNE 2026'!#REF!)","v":{"$error":"#REF!"}},{"$f":"IF('Risk template_JUNE 2026'!#REF!=\"\",\"\",'Risk template_JUNE 2026'!#REF!)","v":{"$error":"#REF!"}},{"$f":"IF('Risk template_JUNE 2026'!#REF!=\"\",\"\",'Risk template_JUNE 2026'!#REF!)","v":{"$error":"#REF!"}},{"$f":"IF('Risk template_JUNE 2026'!#REF!=\"\",\"\",'Risk template_JUNE 2026'!#REF!)","v":{"$error":"#REF!"}},{"$f":"IF('Risk template_JUNE 2026'!#REF!=\"\",\"\",'Risk template_JUNE 2026'!#REF!)","v":{"$error":"#REF!"}},{"$f":"IF('Risk template_JUNE 2026'!#REF!=\"\",\"\",'Risk template_JUNE 2026'!#REF!)","v":{"$error":"#REF!"}},{"$f":"IF('Risk template_JUNE 2026'!#REF!=\"\",\"\",'Risk template_JUNE 2026'!#REF!)","v":{"$error":"#REF!"}},{"$f":"IF('Risk template_JUNE 2026'!#REF!=\"\",\"\",'Risk template_JUNE 2026'!#REF!)","v":{"$error":"#REF!"}},{"$f":"IF('Risk template_JUNE 2026'!#REF!=\"\",\"\",'Risk template_JUNE 2026'!#REF!)","v":{"$error":"#REF!"}},{"$f":"IF('Risk template_JUNE 2026'!#REF!=\"\",\"\",'Risk template_JUNE 2026'!#REF!)","v":{"$error":"#REF!"}},{"$f":"IF('Risk template_JUNE 2026'!#REF!=\"\",\"\",'Risk template_JUNE 2026'!#REF!)","v":{"$error":"#REF!"}}]
[{"$f":"IF('Risk template_JUNE 2026'!#REF!=\"\",\"\",'Risk template_JUNE 2026'!#REF!)","v":{"$error":"#REF!"}},{"$f":"IF('Risk template_JUNE 2026'!#REF!=\"\",\"\",'Risk template_JUNE 2026'!#REF!)","v":{"$error":"#REF!"}},{"$f":"IF('Risk template_JUNE 2026'!#REF!=\"\",\"\",'Risk template_JUNE 2026'!#REF!)","v":{"$error":"#REF!"}},{"$f":"IF('Risk template_JUNE 2026'!#REF!=\"\",\"\",'Risk template_JUNE 2026'!#REF!)","v":{"$error":"#REF!"}},{"$f":"IF('Risk template_JUNE 2026'!#REF!=\"\",\"\",'Risk template_JUNE 2026'!#REF!)","v":{"$error":"#REF!"}},{"$f":"IF('Risk template_JUNE 2026'!#REF!=\"\",\"\",'Risk template_JUNE 2026'!#REF!)","v":{"$error":"#REF!"}},{"$f":"IF('Risk template_JUNE 2026'!#REF!=\"\",\"\",'Risk template_JUNE 2026'!#REF!)","v":{"$error":"#REF!"}},{"$f":"IF('Risk template_JUNE 2026'!#REF!=\"\",\"\",'Risk template_JUNE 2026'!#REF!)","v":{"$error":"#REF!"}},{"$f":"IF('Risk template_JUNE 2026'!#REF!=\"\",\"\",'Risk template_JUNE 2026'!#REF!)","v":{"$error":"#REF!"}},{"$f":"IF('Risk template_JUNE 2026'!#REF!=\"\",\"\",'Risk template_JUNE 2026'!#REF!)","v":{"$error":"#REF!"}},{"$f":"IF('Risk template_JUNE 2026'!#REF!=\"\",\"\",'Risk template_JUNE 2026'!#REF!)","v":{"$error":"#REF!"}},{"$f":"IF('Risk template_JUNE 2026'!#REF!=\"\",\"\",'Risk template_JUNE 2026'!#REF!)","v":{"$error":"#REF!"}}]
[{"$f":"IF('Risk template_JUNE 2026'!#REF!=\"\",\"\",'Risk template_JUNE 2026'!#REF!)","v":{"$error":"#REF!"}},{"$f":"IF('Risk template_JUNE 2026'!#REF!=\"\",\"\",'Risk template_JUNE 2026'!#REF!)","v":{"$error":"#REF!"}},{"$f":"IF('Risk template_JUNE 2026'!#REF!=\"\",\"\",'Risk template_JUNE 2026'!#REF!)","v":{"$error":"#REF!"}},{"$f":"IF('Risk template_JUNE 2026'!#REF!=\"\",\"\",'Risk template_JUNE 2026'!#REF!)","v":{"$error":"#REF!"}},{"$f":"IF('Risk template_JUNE 2026'!#REF!=\"\",\"\",'Risk template_JUNE 2026'!#REF!)","v":{"$error":"#REF!"}},{"$f":"IF('Risk template_JUNE 2026'!#REF!=\"\",\"\",'Risk template_JUNE 2026'!#REF!)","v":{"$error":"#REF!"}},{"$f":"IF('Risk template_JUNE 2026'!#REF!=\"\",\"\",'Risk template_JUNE 2026'!#REF!)","v":{"$error":"#REF!"}},{"$f":"IF('Risk template_JUNE 2026'!#REF!=\"\",\"\",'Risk template_JUNE 2026'!#REF!)","v":{"$error":"#REF!"}},{"$f":"IF('Risk template_JUNE 2026'!#REF!=\"\",\"\",'Risk template_JUNE 2026'!#REF!)","v":{"$error":"#REF!"}},{"$f":"IF('Risk template_JUNE 2026'!#REF!=\"\",\"\",'Risk template_JUNE 2026'!#REF!)","v":{"$error":"#REF!"}},{"$f":"IF('Risk template_JUNE 2026'!#REF!=\"\",\"\",'Risk template_JUNE 2026'!#REF!)","v":{"$error":"#REF!"}},{"$f":"IF('Risk template_JUNE 2026'!#REF!=\"\",\"\",'Risk template_JUNE 2026'!#REF!)","v":{"$error":"#REF!"}}]
[{"$f":"IF('Risk template_JUNE 2026'!#REF!=\"\",\"\",'Risk template_JUNE 2026'!#REF!)","v":{"$error":"#REF!"}},{"$f":"IF('Risk template_JUNE 2026'!#REF!=\"\",\"\",'Risk template_JUNE 2026'!#REF!)","v":{"$error":"#REF!"}},{"$f":"IF('Risk template_JUNE 2026'!#REF!=\"\",\"\",'Risk template_JUNE 2026'!#REF!)","v":{"$error":"#REF!"}},{"$f":"IF('Risk template_JUNE 2026'!#REF!=\"\",\"\",'Risk template_JUNE 2026'!#REF!)","v":{"$error":"#REF!"}},{"$f":"IF('Risk template_JUNE 2026'!#REF!=\"\",\"\",'Risk template_JUNE 2026'!#REF!)","v":{"$error":"#REF!"}},{"$f":"IF('Risk template_JUNE 2026'!#REF!=\"\",\"\",'Risk template_JUNE 2026'!#REF!)","v":{"$error":"#REF!"}},{"$f":"IF('Risk template_JUNE 2026'!#REF!=\"\",\"\",'Risk template_JUNE 2026'!#REF!)","v":{"$error":"#REF!"}},{"$f":"IF('Risk template_JUNE 2026'!#REF!=\"\",\"\",'Risk template_JUNE 2026'!#REF!)","v":{"$error":"#REF!"}},{"$f":"IF('Risk template_JUNE 2026'!#REF!=\"\",\"\",'Risk template_JUNE 2026'!#REF!)","v":{"$error":"#REF!"}},{"$f":"IF('Risk template_JUNE 2026'!#REF!=\"\",\"\",'Risk template_JUNE 2026'!#REF!)","v":{"$error":"#REF!"}},{"$f":"IF('Risk template_JUNE 2026'!#REF!=\"\",\"\",'Risk template_JUNE 2026'!#REF!)","v":{"$error":"#REF!"}},{"$f":"IF('Risk template_JUNE 2026'!#REF!=\"\",\"\",'Risk template_JUNE 2026'!#REF!)","v":{"$error":"#REF!"}}]
[{"$f":"IF('Risk template_JUNE 2026'!#REF!=\"\",\"\",'Risk template_JUNE 2026'!#REF!)","v":{"$error":"#REF!"}},{"$f":"IF('Risk template_JUNE 2026'!#REF!=\"\",\"\",'Risk template_JUNE 2026'!#REF!)","v":{"$error":"#REF!"}},{"$f":"IF('Risk template_JUNE 2026'!#REF!=\"\",\"\",'Risk template_JUNE 2026'!#REF!)","v":{"$error":"#REF!"}},{"$f":"IF('Risk template_JUNE 2026'!#REF!=\"\",\"\",'Risk template_JUNE 2026'!#REF!)","v":{"$error":"#REF!"}},{"$f":"IF('Risk template_JUNE 2026'!#REF!=\"\",\"\",'Risk template_JUNE 2026'!#REF!)","v":{"$error":"#REF!"}},{"$f":"IF('Risk template_JUNE 2026'!#REF!=\"\",\"\",'Risk template_JUNE 2026'!#REF!)","v":{"$error":"#REF!"}},{"$f":"IF('Risk template_JUNE 2026'!#REF!=\"\",\"\",'Risk template_JUNE 2026'!#REF!)","v":{"$error":"#REF!"}},{"$f":"IF('Risk template_JUNE 2026'!#REF!=\"\",\"\",'Risk template_JUNE 2026'!#REF!)","v":{"$error":"#REF!"}},{"$f":"IF('Risk template_JUNE 2026'!#REF!=\"\",\"\",'Risk template_JUNE 2026'!#REF!)","v":{"$error":"#REF!"}},{"$f":"IF('Risk template_JUNE 2026'!#REF!=\"\",\"\",'Risk template_JUNE 2026'!#REF!)","v":{"$error":"#REF!"}},{"$f":"IF('Risk template_JUNE 2026'!#REF!=\"\",\"\",'Risk template_JUNE 2026'!#REF!)","v":{"$error":"#REF!"}},{"$f":"IF('Risk template_JUNE 2026'!#REF!=\"\",\"\",'Risk template_JUNE 2026'!#REF!)","v":{"$error":"#REF!"}}]
[{"$f":"IF('Risk template_JUNE 2026'!#REF!=\"\",\"\",'Risk template_JUNE 2026'!#REF!)","v":{"$error":"#REF!"}},{"$f":"IF('Risk template_JUNE 2026'!#REF!=\"\",\"\",'Risk template_JUNE 2026'!#REF!)","v":{"$error":"#REF!"}},{"$f":"IF('Risk template_JUNE 2026'!#REF!=\"\",\"\",'Risk template_JUNE 2026'!#REF!)","v":{"$error":"#REF!"}},{"$f":"IF('Risk template_JUNE 2026'!#REF!=\"\",\"\",'Risk template_JUNE 2026'!#REF!)","v":{"$error":"#REF!"}},{"$f":"IF('Risk template_JUNE 2026'!#REF!=\"\",\"\",'Risk template_JUNE 2026'!#REF!)","v":{"$error":"#REF!"}},{"$f":"IF('Risk template_JUNE 2026'!#REF!=\"\",\"\",'Risk template_JUNE 2026'!#REF!)","v":{"$error":"#REF!"}},{"$f":"IF('Risk template_JUNE 2026'!#REF!=\"\",\"\",'Risk template_JUNE 2026'!#REF!)","v":{"$error":"#REF!"}},{"$f":"IF('Risk template_JUNE 2026'!#REF!=\"\",\"\",'Risk template_JUNE 2026'!#REF!)","v":{"$error":"#REF!"}},{"$f":"IF('Risk template_JUNE 2026'!#REF!=\"\",\"\",'Risk template_JUNE 2026'!#REF!)","v":{"$error":"#REF!"}},{"$f":"IF('Risk template_JUNE 2026'!#REF!=\"\",\"\",'Risk template_JUNE 2026'!#REF!)","v":{"$error":"#REF!"}},{"$f":"IF('Risk template_JUNE 2026'!#REF!=\"\",\"\",'Risk template_JUNE 2026'!#REF!)","v":{"$error":"#REF!"}},{"$f":"IF('Risk template_JUNE 2026'!#REF!=\"\",\"\",'Risk template_JUNE 2026'!#REF!)","v":{"$error":"#REF!"}}]
[{"$f":"IF('Risk template_JUNE 2026'!#REF!=\"\",\"\",'Risk template_JUNE 2026'!#REF!)","v":{"$error":"#REF!"}},{"$f":"IF('Risk template_JUNE 2026'!#REF!=\"\",\"\",'Risk template_JUNE 2026'!#REF!)","v":{"$error":"#REF!"}},{"$f":"IF('Risk template_JUNE 2026'!#REF!=\"\",\"\",'Risk template_JUNE 2026'!#REF!)","v":{"$error":"#REF!"}},{"$f":"IF('Risk template_JUNE 2026'!#REF!=\"\",\"\",'Risk template_JUNE 2026'!#REF!)","v":{"$error":"#REF!"}},{"$f":"IF('Risk template_JUNE 2026'!#REF!=\"\",\"\",'Risk template_JUNE 2026'!#REF!)","v":{"$error":"#REF!"}},{"$f":"IF('Risk template_JUNE 2026'!#REF!=\"\",\"\",'Risk template_JUNE 2026'!#REF!)","v":{"$error":"#REF!"}},{"$f":"IF('Risk template_JUNE 2026'!#REF!=\"\",\"\",'Risk template_JUNE 2026'!#REF!)","v":{"$error":"#REF!"}},{"$f":"IF('Risk template_JUNE 2026'!#REF!=\"\",\"\",'Risk template_JUNE 2026'!#REF!)","v":{"$error":"#REF!"}},{"$f":"IF('Risk template_JUNE 2026'!#REF!=\"\",\"\",'Risk template_JUNE 2026'!#REF!)","v":{"$error":"#REF!"}},{"$f":"IF('Risk template_JUNE 2026'!#REF!=\"\",\"\",'Risk template_JUNE 2026'!#REF!)","v":{"$error":"#REF!"}},{"$f":"IF('Risk template_JUNE 2026'!#REF!=\"\",\"\",'Risk template_JUNE 2026'!#REF!)","v":{"$error":"#REF!"}},{"$f":"IF('Risk template_JUNE 2026'!#REF!=\"\",\"\",'Risk template_JUNE 2026'!#REF!)","v":{"$error":"#REF!"}}]
[{"$f":"IF('Risk template_JUNE 2026'!#REF!=\"\",\"\",'Risk template_JUNE 2026'!#REF!)","v":{"$error":"#REF!"}},{"$f":"IF('Risk template_JUNE 2026'!#REF!=\"\",\"\",'Risk template_JUNE 2026'!#REF!)","v":{"$error":"#REF!"}},{"$f":"IF('Risk template_JUNE 2026'!#REF!=\"\",\"\",'Risk template_JUNE 2026'!#REF!)","v":{"$error":"#REF!"}},{"$f":"IF('Risk template_JUNE 2026'!#REF!=\"\",\"\",'Risk template_JUNE 2026'!#REF!)","v":{"$error":"#REF!"}},{"$f":"IF('Risk template_JUNE 2026'!#REF!=\"\",\"\",'Risk template_JUNE 2026'!#REF!)","v":{"$error":"#REF!"}},{"$f":"IF('Risk template_JUNE 2026'!#REF!=\"\",\"\",'Risk template_JUNE 2026'!#REF!)","v":{"$error":"#REF!"}},{"$f":"IF('Risk template_JUNE 2026'!#REF!=\"\",\"\",'Risk template_JUNE 2026'!#REF!)","v":{"$error":"#REF!"}},{"$f":"IF('Risk template_JUNE 2026'!#REF!=\"\",\"\",'Risk template_JUNE 2026'!#REF!)","v":{"$error":"#REF!"}},{"$f":"IF('Risk template_JUNE 2026'!#REF!=\"\",\"\",'Risk template_JUNE 2026'!#REF!)","v":{"$error":"#REF!"}},{"$f":"IF('Risk template_JUNE 2026'!#REF!=\"\",\"\",'Risk template_JUNE 2026'!#REF!)","v":{"$error":"#REF!"}},{"$f":"IF('Risk template_JUNE 2026'!#REF!=\"\",\"\",'Risk template_JUNE 2026'!#REF!)","v":{"$error":"#REF!"}},{"$f":"IF('Risk template_JUNE 2026'!#REF!=\"\",\"\",'Risk template_JUNE 2026'!#REF!)","v":{"$error":"#REF!"}}]
[{"$f":"IF('Risk template_JUNE 2026'!#REF!=\"\",\"\",'Risk template_JUNE 2026'!#REF!)","v":{"$error":"#REF!"}},{"$f":"IF('Risk template_JUNE 2026'!#REF!=\"\",\"\",'Risk template_JUNE 2026'!#REF!)","v":{"$error":"#REF!"}},{"$f":"IF('Risk template_JUNE 2026'!#REF!=\"\",\"\",'Risk template_JUNE 2026'!#REF!)","v":{"$error":"#REF!"}},{"$f":"IF('Risk template_JUNE 2026'!#REF!=\"\",\"\",'Risk template_JUNE 2026'!#REF!)","v":{"$error":"#REF!"}},{"$f":"IF('Risk template_JUNE 2026'!#REF!=\"\",\"\",'Risk template_JUNE 2026'!#REF!)","v":{"$error":"#REF!"}},{"$f":"IF('Risk template_JUNE 2026'!#REF!=\"\",\"\",'Risk template_JUNE 2026'!#REF!)","v":{"$error":"#REF!"}},{"$f":"IF('Risk template_JUNE 2026'!#REF!=\"\",\"\",'Risk template_JUNE 2026'!#REF!)","v":{"$error":"#REF!"}},{"$f":"IF('Risk template_JUNE 2026'!#REF!=\"\",\"\",'Risk template_JUNE 2026'!#REF!)","v":{"$error":"#REF!"}},{"$f":"IF('Risk template_JUNE 2026'!#REF!=\"\",\"\",'Risk template_JUNE 2026'!#REF!)","v":{"$error":"#REF!"}},{"$f":"IF('Risk template_JUNE 2026'!#REF!=\"\",\"\",'Risk template_JUNE 2026'!#REF!)","v":{"$error":"#REF!"}},{"$f":"IF('Risk template_JUNE 2026'!#REF!=\"\",\"\",'Risk template_JUNE 2026'!#REF!)","v":{"$error":"#REF!"}},{"$f":"IF('Risk template_JUNE 2026'!#REF!=\"\",\"\",'Risk template_JUNE 2026'!#REF!)","v":{"$error":"#REF!"}}]
[{"$f":"IF('Risk template_JUNE 2026'!#REF!=\"\",\"\",'Risk template_JUNE 2026'!#REF!)","v":{"$error":"#REF!"}},{"$f":"IF('Risk template_JUNE 2026'!#REF!=\"\",\"\",'Risk template_JUNE 2026'!#REF!)","v":{"$error":"#REF!"}},{"$f":"IF('Risk template_JUNE 2026'!#REF!=\"\",\"\",'Risk template_JUNE 2026'!#REF!)","v":{"$error":"#REF!"}},{"$f":"IF('Risk template_JUNE 2026'!#REF!=\"\",\"\",'Risk template_JUNE 2026'!#REF!)","v":{"$error":"#REF!"}},{"$f":"IF('Risk template_JUNE 2026'!#REF!=\"\",\"\",'Risk template_JUNE 2026'!#REF!)","v":{"$error":"#REF!"}},{"$f":"IF('Risk template_JUNE 2026'!#REF!=\"\",\"\",'Risk template_JUNE 2026'!#REF!)","v":{"$error":"#REF!"}},{"$f":"IF('Risk template_JUNE 2026'!#REF!=\"\",\"\",'Risk template_JUNE 2026'!#REF!)","v":{"$error":"#REF!"}},{"$f":"IF('Risk template_JUNE 2026'!#REF!=\"\",\"\",'Risk template_JUNE 2026'!#REF!)","v":{"$error":"#REF!"}},{"$f":"IF('Risk template_JUNE 2026'!#REF!=\"\",\"\",'Risk template_JUNE 2026'!#REF!)","v":{"$error":"#REF!"}},{"$f":"IF('Risk template_JUNE 2026'!#REF!=\"\",\"\",'Risk template_JUNE 2026'!#REF!)","v":{"$error":"#REF!"}},{"$f":"IF('Risk template_JUNE 2026'!#REF!=\"\",\"\",'Risk template_JUNE 2026'!#REF!)","v":{"$error":"#REF!"}},{"$f":"IF('Risk template_JUNE 2026'!#REF!=\"\",\"\",'Risk template_JUNE 2026'!#REF!)","v":{"$error":"#REF!"}}]
[{"$f":"IF('Risk template_JUNE 2026'!#REF!=\"\",\"\",'Risk template_JUNE 2026'!#REF!)","v":{"$error":"#REF!"}},{"$f":"IF('Risk template_JUNE 2026'!#REF!=\"\",\"\",'Risk template_JUNE 2026'!#REF!)","v":{"$error":"#REF!"}},{"$f":"IF('Risk template_JUNE 2026'!#REF!=\"\",\"\",'Risk template_JUNE 2026'!#REF!)","v":{"$error":"#REF!"}},{"$f":"IF('Risk template_JUNE 2026'!#REF!=\"\",\"\",'Risk template_JUNE 2026'!#REF!)","v":{"$error":"#REF!"}},{"$f":"IF('Risk template_JUNE 2026'!#REF!=\"\",\"\",'Risk template_JUNE 2026'!#REF!)","v":{"$error":"#REF!"}},{"$f":"IF('Risk template_JUNE 2026'!#REF!=\"\",\"\",'Risk template_JUNE 2026'!#REF!)","v":{"$error":"#REF!"}},{"$f":"IF('Risk template_JUNE 2026'!#REF!=\"\",\"\",'Risk template_JUNE 2026'!#REF!)","v":{"$error":"#REF!"}},{"$f":"IF('Risk template_JUNE 2026'!#REF!=\"\",\"\",'Risk template_JUNE 2026'!#REF!)","v":{"$error":"#REF!"}},{"$f":"IF('Risk template_JUNE 2026'!#REF!=\"\",\"\",'Risk template_JUNE 2026'!#REF!)","v":{"$error":"#REF!"}},{"$f":"IF('Risk template_JUNE 2026'!#REF!=\"\",\"\",'Risk template_JUNE 2026'!#REF!)","v":{"$error":"#REF!"}},{"$f":"IF('Risk template_JUNE 2026'!#REF!=\"\",\"\",'Risk template_JUNE 2026'!#REF!)","v":{"$error":"#REF!"}},{"$f":"IF('Risk template_JUNE 2026'!#REF!=\"\",\"\",'Risk template_JUNE 2026'!#REF!)","v":{"$error":"#REF!"}}]
[{"$f":"IF('Risk template_JUNE 2026'!#REF!=\"\",\"\",'Risk template_JUNE 2026'!#REF!)","v":{"$error":"#REF!"}},{"$f":"IF('Risk template_JUNE 2026'!#REF!=\"\",\"\",'Risk template_JUNE 2026'!#REF!)","v":{"$error":"#REF!"}},{"$f":"IF('Risk template_JUNE 2026'!#REF!=\"\",\"\",'Risk template_JUNE 2026'!#REF!)","v":{"$error":"#REF!"}},{"$f":"IF('Risk template_JUNE 2026'!#REF!=\"\",\"\",'Risk template_JUNE 2026'!#REF!)","v":{"$error":"#REF!"}},{"$f":"IF('Risk template_JUNE 2026'!#REF!=\"\",\"\",'Risk template_JUNE 2026'!#REF!)","v":{"$error":"#REF!"}},{"$f":"IF('Risk template_JUNE 2026'!#REF!=\"\",\"\",'Risk template_JUNE 2026'!#REF!)","v":{"$error":"#REF!"}},{"$f":"IF('Risk template_JUNE 2026'!#REF!=\"\",\"\",'Risk template_JUNE 2026'!#REF!)","v":{"$error":"#REF!"}},{"$f":"IF('Risk template_JUNE 2026'!#REF!=\"\",\"\",'Risk template_JUNE 2026'!#REF!)","v":{"$error":"#REF!"}},{"$f":"IF('Risk template_JUNE 2026'!#REF!=\"\",\"\",'Risk template_JUNE 2026'!#REF!)","v":{"$error":"#REF!"}},{"$f":"IF('Risk template_JUNE 2026'!#REF!=\"\",\"\",'Risk template_JUNE 2026'!#REF!)","v":{"$error":"#REF!"}},{"$f":"IF('Risk template_JUNE 2026'!#REF!=\"\",\"\",'Risk template_JUNE 2026'!#REF!)","v":{"$error":"#REF!"}},{"$f":"IF('Risk template_JUNE 2026'!#REF!=\"\",\"\",'Risk template_JUNE 2026'!#REF!)","v":{"$error":"#REF!"}}]
[{"$f":"IF('Risk template_JUNE 2026'!#REF!=\"\",\"\",'Risk template_JUNE 2026'!#REF!)","v":{"$error":"#REF!"}},{"$f":"IF('Risk template_JUNE 2026'!#REF!=\"\",\"\",'Risk template_JUNE 2026'!#REF!)","v":{"$error":"#REF!"}},{"$f":"IF('Risk template_JUNE 2026'!#REF!=\"\",\"\",'Risk template_JUNE 2026'!#REF!)","v":{"$error":"#REF!"}},{"$f":"IF('Risk template_JUNE 2026'!#REF!=\"\",\"\",'Risk template_JUNE 2026'!#REF!)","v":{"$error":"#REF!"}},{"$f":"IF('Risk template_JUNE 2026'!#REF!=\"\",\"\",'Risk template_JUNE 2026'!#REF!)","v":{"$error":"#REF!"}},{"$f":"IF('Risk template_JUNE 2026'!#REF!=\"\",\"\",'Risk template_JUNE 2026'!#REF!)","v":{"$error":"#REF!"}},{"$f":"IF('Risk template_JUNE 2026'!#REF!=\"\",\"\",'Risk template_JUNE 2026'!#REF!)","v":{"$error":"#REF!"}},{"$f":"IF('Risk template_JUNE 2026'!#REF!=\"\",\"\",'Risk template_JUNE 2026'!#REF!)","v":{"$error":"#REF!"}},{"$f":"IF('Risk template_JUNE 2026'!#REF!=\"\",\"\",'Risk template_JUNE 2026'!#REF!)","v":{"$error":"#REF!"}},{"$f":"IF('Risk template_JUNE 2026'!#REF!=\"\",\"\",'Risk template_JUNE 2026'!#REF!)","v":{"$error":"#REF!"}},{"$f":"IF('Risk template_JUNE 2026'!#REF!=\"\",\"\",'Risk template_JUNE 2026'!#REF!)","v":{"$error":"#REF!"}},{"$f":"IF('Risk template_JUNE 2026'!#REF!=\"\",\"\",'Risk template_JUNE 2026'!#REF!)","v":{"$error":"#REF!"}}]
[{"$f":"IF('Risk template_JUNE 2026'!#REF!=\"\",\"\",'Risk template_JUNE 2026'!#REF!)","v":{"$error":"#REF!"}},{"$f":"IF('Risk template_JUNE 2026'!#REF!=\"\",\"\",'Risk template_JUNE 2026'!#REF!)","v":{"$error":"#REF!"}},{"$f":"IF('Risk template_JUNE 2026'!#REF!=\"\",\"\",'Risk template_JUNE 2026'!#REF!)","v":{"$error":"#REF!"}},{"$f":"IF('Risk template_JUNE 2026'!#REF!=\"\",\"\",'Risk template_JUNE 2026'!#REF!)","v":{"$error":"#REF!"}},{"$f":"IF('Risk template_JUNE 2026'!#REF!=\"\",\"\",'Risk template_JUNE 2026'!#REF!)","v":{"$error":"#REF!"}},{"$f":"IF('Risk template_JUNE 2026'!#REF!=\"\",\"\",'Risk template_JUNE 2026'!#REF!)","v":{"$error":"#REF!"}},{"$f":"IF('Risk template_JUNE 2026'!#REF!=\"\",\"\",'Risk template_JUNE 2026'!#REF!)","v":{"$error":"#REF!"}},{"$f":"IF('Risk template_JUNE 2026'!#REF!=\"\",\"\",'Risk template_JUNE 2026'!#REF!)","v":{"$error":"#REF!"}},{"$f":"IF('Risk template_JUNE 2026'!#REF!=\"\",\"\",'Risk template_JUNE 2026'!#REF!)","v":{"$error":"#REF!"}},{"$f":"IF('Risk template_JUNE 2026'!#REF!=\"\",\"\",'Risk template_JUNE 2026'!#REF!)","v":{"$error":"#REF!"}},{"$f":"IF('Risk template_JUNE 2026'!#REF!=\"\",\"\",'Risk template_JUNE 2026'!#REF!)","v":{"$error":"#REF!"}},{"$f":"IF('Risk template_JUNE 2026'!#REF!=\"\",\"\",'Risk template_JUNE 2026'!#REF!)","v":{"$error":"#REF!"}}]
[{"$f":"IF('Risk template_JUNE 2026'!#REF!=\"\",\"\",'Risk template_JUNE 2026'!#REF!)","v":{"$error":"#REF!"}},{"$f":"IF('Risk template_JUNE 2026'!#REF!=\"\",\"\",'Risk template_JUNE 2026'!#REF!)","v":{"$error":"#REF!"}},{"$f":"IF('Risk template_JUNE 2026'!#REF!=\"\",\"\",'Risk template_JUNE 2026'!#REF!)","v":{"$error":"#REF!"}},{"$f":"IF('Risk template_JUNE 2026'!#REF!=\"\",\"\",'Risk template_JUNE 2026'!#REF!)","v":{"$error":"#REF!"}},{"$f":"IF('Risk template_JUNE 2026'!#REF!=\"\",\"\",'Risk template_JUNE 2026'!#REF!)","v":{"$error":"#REF!"}},{"$f":"IF('Risk template_JUNE 2026'!#REF!=\"\",\"\",'Risk template_JUNE 2026'!#REF!)","v":{"$error":"#REF!"}},{"$f":"IF('Risk template_JUNE 2026'!#REF!=\"\",\"\",'Risk template_JUNE 2026'!#REF!)","v":{"$error":"#REF!"}},{"$f":"IF('Risk template_JUNE 2026'!#REF!=\"\",\"\",'Risk template_JUNE 2026'!#REF!)","v":{"$error":"#REF!"}},{"$f":"IF('Risk template_JUNE 2026'!#REF!=\"\",\"\",'Risk template_JUNE 2026'!#REF!)","v":{"$error":"#REF!"}},{"$f":"IF('Risk template_JUNE 2026'!#REF!=\"\",\"\",'Risk template_JUNE 2026'!#REF!)","v":{"$error":"#REF!"}},{"$f":"IF('Risk template_JUNE 2026'!#REF!=\"\",\"\",'Risk template_JUNE 2026'!#REF!)","v":{"$error":"#REF!"}},{"$f":"IF('Risk template_JUNE 2026'!#REF!=\"\",\"\",'Risk template_JUNE 2026'!#REF!)","v":{"$error":"#REF!"}}]
[{"$f":"IF('Risk template_JUNE 2026'!#REF!=\"\",\"\",'Risk template_JUNE 2026'!#REF!)","v":{"$error":"#REF!"}},{"$f":"IF('Risk template_JUNE 2026'!#REF!=\"\",\"\",'Risk template_JUNE 2026'!#REF!)","v":{"$error":"#REF!"}},{"$f":"IF('Risk template_JUNE 2026'!#REF!=\"\",\"\",'Risk template_JUNE 2026'!#REF!)","v":{"$error":"#REF!"}},{"$f":"IF('Risk template_JUNE 2026'!#REF!=\"\",\"\",'Risk template_JUNE 2026'!#REF!)","v":{"$error":"#REF!"}},{"$f":"IF('Risk template_JUNE 2026'!#REF!=\"\",\"\",'Risk template_JUNE 2026'!#REF!)","v":{"$error":"#REF!"}},{"$f":"IF('Risk template_JUNE 2026'!#REF!=\"\",\"\",'Risk template_JUNE 2026'!#REF!)","v":{"$error":"#REF!"}},{"$f":"IF('Risk template_JUNE 2026'!#REF!=\"\",\"\",'Risk template_JUNE 2026'!#REF!)","v":{"$error":"#REF!"}},{"$f":"IF('Risk template_JUNE 2026'!#REF!=\"\",\"\",'Risk template_JUNE 2026'!#REF!)","v":{"$error":"#REF!"}},{"$f":"IF('Risk template_JUNE 2026'!#REF!=\"\",\"\",'Risk template_JUNE 2026'!#REF!)","v":{"$error":"#REF!"}},{"$f":"IF('Risk template_JUNE 2026'!#REF!=\"\",\"\",'Risk template_JUNE 2026'!#REF!)","v":{"$error":"#REF!"}},{"$f":"IF('Risk template_JUNE 2026'!#REF!=\"\",\"\",'Risk template_JUNE 2026'!#REF!)","v":{"$error":"#REF!"}},{"$f":"IF('Risk template_JUNE 2026'!#REF!=\"\",\"\",'Risk template_JUNE 2026'!#REF!)","v":{"$error":"#REF!"}}]
[{"$f":"IF('Risk template_JUNE 2026'!#REF!=\"\",\"\",'Risk template_JUNE 2026'!#REF!)","v":{"$error":"#REF!"}},{"$f":"IF('Risk template_JUNE 2026'!#REF!=\"\",\"\",'Risk template_JUNE 2026'!#REF!)","v":{"$error":"#REF!"}},{"$f":"IF('Risk template_JUNE 2026'!#REF!=\"\",\"\",'Risk template_JUNE 2026'!#REF!)","v":{"$error":"#REF!"}},{"$f":"IF('Risk template_JUNE 2026'!#REF!=\"\",\"\",'Risk template_JUNE 2026'!#REF!)","v":{"$error":"#REF!"}},{"$f":"IF('Risk template_JUNE 2026'!#REF!=\"\",\"\",'Risk template_JUNE 2026'!#REF!)","v":{"$error":"#REF!"}},{"$f":"IF('Risk template_JUNE 2026'!#REF!=\"\",\"\",'Risk template_JUNE 2026'!#REF!)","v":{"$error":"#REF!"}},{"$f":"IF('Risk template_JUNE 2026'!#REF!=\"\",\"\",'Risk template_JUNE 2026'!#REF!)","v":{"$error":"#REF!"}},{"$f":"IF('Risk template_JUNE 2026'!#REF!=\"\",\"\",'Risk template_JUNE 2026'!#REF!)","v":{"$error":"#REF!"}},{"$f":"IF('Risk template_JUNE 2026'!#REF!=\"\",\"\",'Risk template_JUNE 2026'!#REF!)","v":{"$error":"#REF!"}},{"$f":"IF('Risk template_JUNE 2026'!#REF!=\"\",\"\",'Risk template_JUNE 2026'!#REF!)","v":{"$error":"#REF!"}},{"$f":"IF('Risk template_JUNE 2026'!#REF!=\"\",\"\",'Risk template_JUNE 2026'!#REF!)","v":{"$error":"#REF!"}},{"$f":"IF('Risk template_JUNE 2026'!#REF!=\"\",\"\",'Risk template_JUNE 2026'!#REF!)","v":{"$error":"#REF!"}}]
[{"$f":"IF('Risk template_JUNE 2026'!#REF!=\"\",\"\",'Risk template_JUNE 2026'!#REF!)","v":{"$error":"#REF!"}},{"$f":"IF('Risk template_JUNE 2026'!#REF!=\"\",\"\",'Risk template_JUNE 2026'!#REF!)","v":{"$error":"#REF!"}},{"$f":"IF('Risk template_JUNE 2026'!#REF!=\"\",\"\",'Risk template_JUNE 2026'!#REF!)","v":{"$error":"#REF!"}},{"$f":"IF('Risk template_JUNE 2026'!#REF!=\"\",\"\",'Risk template_JUNE 2026'!#REF!)","v":{"$error":"#REF!"}},{"$f":"IF('Risk template_JUNE 2026'!#REF!=\"\",\"\",'Risk template_JUNE 2026'!#REF!)","v":{"$error":"#REF!"}},{"$f":"IF('Risk template_JUNE 2026'!#REF!=\"\",\"\",'Risk template_JUNE 2026'!#REF!)","v":{"$error":"#REF!"}},{"$f":"IF('Risk template_JUNE 2026'!#REF!=\"\",\"\",'Risk template_JUNE 2026'!#REF!)","v":{"$error":"#REF!"}},{"$f":"IF('Risk template_JUNE 2026'!#REF!=\"\",\"\",'Risk template_JUNE 2026'!#REF!)","v":{"$error":"#REF!"}},{"$f":"IF('Risk template_JUNE 2026'!#REF!=\"\",\"\",'Risk template_JUNE 2026'!#REF!)","v":{"$error":"#REF!"}},{"$f":"IF('Risk template_JUNE 2026'!#REF!=\"\",\"\",'Risk template_JUNE 2026'!#REF!)","v":{"$error":"#REF!"}},{"$f":"IF('Risk template_JUNE 2026'!#REF!=\"\",\"\",'Risk template_JUNE 2026'!#REF!)","v":{"$error":"#REF!"}},{"$f":"IF('Risk template_JUNE 2026'!#REF!=\"\",\"\",'Risk template_JUNE 2026'!#REF!)","v":{"$error":"#REF!"}}]
[{"$f":"IF('Risk template_JUNE 2026'!#REF!=\"\",\"\",'Risk template_JUNE 2026'!#REF!)","v":{"$error":"#REF!"}},{"$f":"IF('Risk template_JUNE 2026'!#REF!=\"\",\"\",'Risk template_JUNE 2026'!#REF!)","v":{"$error":"#REF!"}},{"$f":"IF('Risk template_JUNE 2026'!#REF!=\"\",\"\",'Risk template_JUNE 2026'!#REF!)","v":{"$error":"#REF!"}},{"$f":"IF('Risk template_JUNE 2026'!#REF!=\"\",\"\",'Risk template_JUNE 2026'!#REF!)","v":{"$error":"#REF!"}},{"$f":"IF('Risk template_JUNE 2026'!#REF!=\"\",\"\",'Risk template_JUNE 2026'!#REF!)","v":{"$error":"#REF!"}},{"$f":"IF('Risk template_JUNE 2026'!#REF!=\"\",\"\",'Risk template_JUNE 2026'!#REF!)","v":{"$error":"#REF!"}},{"$f":"IF('Risk template_JUNE 2026'!#REF!=\"\",\"\",'Risk template_JUNE 2026'!#REF!)","v":{"$error":"#REF!"}},{"$f":"IF('Risk template_JUNE 2026'!#REF!=\"\",\"\",'Risk template_JUNE 2026'!#REF!)","v":{"$error":"#REF!"}},{"$f":"IF('Risk template_JUNE 2026'!#REF!=\"\",\"\",'Risk template_JUNE 2026'!#REF!)","v":{"$error":"#REF!"}},{"$f":"IF('Risk template_JUNE 2026'!#REF!=\"\",\"\",'Risk template_JUNE 2026'!#REF!)","v":{"$error":"#REF!"}},{"$f":"IF('Risk template_JUNE 2026'!#REF!=\"\",\"\",'Risk template_JUNE 2026'!#REF!)","v":{"$error":"#REF!"}},{"$f":"IF('Risk template_JUNE 2026'!#REF!=\"\",\"\",'Risk template_JUNE 2026'!#REF!)","v":{"$error":"#REF!"}}]
[{"$f":"IF('Risk template_JUNE 2026'!#REF!=\"\",\"\",'Risk template_JUNE 2026'!#REF!)","v":{"$error":"#REF!"}},{"$f":"IF('Risk template_JUNE 2026'!#REF!=\"\",\"\",'Risk template_JUNE 2026'!#REF!)","v":{"$error":"#REF!"}},{"$f":"IF('Risk template_JUNE 2026'!#REF!=\"\",\"\",'Risk template_JUNE 2026'!#REF!)","v":{"$error":"#REF!"}},{"$f":"IF('Risk template_JUNE 2026'!#REF!=\"\",\"\",'Risk template_JUNE 2026'!#REF!)","v":{"$error":"#REF!"}},{"$f":"IF('Risk template_JUNE 2026'!#REF!=\"\",\"\",'Risk template_JUNE 2026'!#REF!)","v":{"$error":"#REF!"}},{"$f":"IF('Risk template_JUNE 2026'!#REF!=\"\",\"\",'Risk template_JUNE 2026'!#REF!)","v":{"$error":"#REF!"}},{"$f":"IF('Risk template_JUNE 2026'!#REF!=\"\",\"\",'Risk template_JUNE 2026'!#REF!)","v":{"$error":"#REF!"}},{"$f":"IF('Risk template_JUNE 2026'!#REF!=\"\",\"\",'Risk template_JUNE 2026'!#REF!)","v":{"$error":"#REF!"}},{"$f":"IF('Risk template_JUNE 2026'!#REF!=\"\",\"\",'Risk template_JUNE 2026'!#REF!)","v":{"$error":"#REF!"}},{"$f":"IF('Risk template_JUNE 2026'!#REF!=\"\",\"\",'Risk template_JUNE 2026'!#REF!)","v":{"$error":"#REF!"}},{"$f":"IF('Risk template_JUNE 2026'!#REF!=\"\",\"\",'Risk template_JUNE 2026'!#REF!)","v":{"$error":"#REF!"}},{"$f":"IF('Risk template_JUNE 2026'!#REF!=\"\",\"\",'Risk template_JUNE 2026'!#REF!)","v":{"$error":"#REF!"}}]
[{"$f":"IF('Risk template_JUNE 2026'!#REF!=\"\",\"\",'Risk template_JUNE 2026'!#REF!)","v":{"$error":"#REF!"}},{"$f":"IF('Risk template_JUNE 2026'!#REF!=\"\",\"\",'Risk template_JUNE 2026'!#REF!)","v":{"$error":"#REF!"}},{"$f":"IF('Risk template_JUNE 2026'!#REF!=\"\",\"\",'Risk template_JUNE 2026'!#REF!)","v":{"$error":"#REF!"}},{"$f":"IF('Risk template_JUNE 2026'!#REF!=\"\",\"\",'Risk template_JUNE 2026'!#REF!)","v":{"$error":"#REF!"}},{"$f":"IF('Risk template_JUNE 2026'!#REF!=\"\",\"\",'Risk template_JUNE 2026'!#REF!)","v":{"$error":"#REF!"}},{"$f":"IF('Risk template_JUNE 2026'!#REF!=\"\",\"\",'Risk template_JUNE 2026'!#REF!)","v":{"$error":"#REF!"}},{"$f":"IF('Risk template_JUNE 2026'!#REF!=\"\",\"\",'Risk template_JUNE 2026'!#REF!)","v":{"$error":"#REF!"}},{"$f":"IF('Risk template_JUNE 2026'!#REF!=\"\",\"\",'Risk template_JUNE 2026'!#REF!)","v":{"$error":"#REF!"}},{"$f":"IF('Risk template_JUNE 2026'!#REF!=\"\",\"\",'Risk template_JUNE 2026'!#REF!)","v":{"$error":"#REF!"}},{"$f":"IF('Risk template_JUNE 2026'!#REF!=\"\",\"\",'Risk template_JUNE 2026'!#REF!)","v":{"$error":"#REF!"}},{"$f":"IF('Risk template_JUNE 2026'!#REF!=\"\",\"\",'Risk template_JUNE 2026'!#REF!)","v":{"$error":"#REF!"}},{"$f":"IF('Risk template_JUNE 2026'!#REF!=\"\",\"\",'Risk template_JUNE 2026'!#REF!)","v":{"$error":"#REF!"}}]
[{"$f":"IF('Risk template_JUNE 2026'!#REF!=\"\",\"\",'Risk template_JUNE 2026'!#REF!)","v":{"$error":"#REF!"}},{"$f":"IF('Risk template_JUNE 2026'!#REF!=\"\",\"\",'Risk template_JUNE 2026'!#REF!)","v":{"$error":"#REF!"}},{"$f":"IF('Risk template_JUNE 2026'!#REF!=\"\",\"\",'Risk template_JUNE 2026'!#REF!)","v":{"$error":"#REF!"}},{"$f":"IF('Risk template_JUNE 2026'!#REF!=\"\",\"\",'Risk template_JUNE 2026'!#REF!)","v":{"$error":"#REF!"}},{"$f":"IF('Risk template_JUNE 2026'!#REF!=\"\",\"\",'Risk template_JUNE 2026'!#REF!)","v":{"$error":"#REF!"}},{"$f":"IF('Risk template_JUNE 2026'!#REF!=\"\",\"\",'Risk template_JUNE 2026'!#REF!)","v":{"$error":"#REF!"}},{"$f":"IF('Risk template_JUNE 2026'!#REF!=\"\",\"\",'Risk template_JUNE 2026'!#REF!)","v":{"$error":"#REF!"}},{"$f":"IF('Risk template_JUNE 2026'!#REF!=\"\",\"\",'Risk template_JUNE 2026'!#REF!)","v":{"$error":"#REF!"}},{"$f":"IF('Risk template_JUNE 2026'!#REF!=\"\",\"\",'Risk template_JUNE 2026'!#REF!)","v":{"$error":"#REF!"}},{"$f":"IF('Risk template_JUNE 2026'!#REF!=\"\",\"\",'Risk template_JUNE 2026'!#REF!)","v":{"$error":"#REF!"}},{"$f":"IF('Risk template_JUNE 2026'!#REF!=\"\",\"\",'Risk template_JUNE 2026'!#REF!)","v":{"$error":"#REF!"}},{"$f":"IF('Risk template_JUNE 2026'!#REF!=\"\",\"\",'Risk template_JUNE 2026'!#REF!)","v":{"$error":"#REF!"}}]
[{"$f":"IF('Risk template_JUNE 2026'!#REF!=\"\",\"\",'Risk template_JUNE 2026'!#REF!)","v":{"$error":"#REF!"}},{"$f":"IF('Risk template_JUNE 2026'!#REF!=\"\",\"\",'Risk template_JUNE 2026'!#REF!)","v":{"$error":"#REF!"}},{"$f":"IF('Risk template_JUNE 2026'!#REF!=\"\",\"\",'Risk template_JUNE 2026'!#REF!)","v":{"$error":"#REF!"}},{"$f":"IF('Risk template_JUNE 2026'!#REF!=\"\",\"\",'Risk template_JUNE 2026'!#REF!)","v":{"$error":"#REF!"}},{"$f":"IF('Risk template_JUNE 2026'!#REF!=\"\",\"\",'Risk template_JUNE 2026'!#REF!)","v":{"$error":"#REF!"}},{"$f":"IF('Risk template_JUNE 2026'!#REF!=\"\",\"\",'Risk template_JUNE 2026'!#REF!)","v":{"$error":"#REF!"}},{"$f":"IF('Risk template_JUNE 2026'!#REF!=\"\",\"\",'Risk template_JUNE 2026'!#REF!)","v":{"$error":"#REF!"}},{"$f":"IF('Risk template_JUNE 2026'!#REF!=\"\",\"\",'Risk template_JUNE 2026'!#REF!)","v":{"$error":"#REF!"}},{"$f":"IF('Risk template_JUNE 2026'!#REF!=\"\",\"\",'Risk template_JUNE 2026'!#REF!)","v":{"$error":"#REF!"}},{"$f":"IF('Risk template_JUNE 2026'!#REF!=\"\",\"\",'Risk template_JUNE 2026'!#REF!)","v":{"$error":"#REF!"}},{"$f":"IF('Risk template_JUNE 2026'!#REF!=\"\",\"\",'Risk template_JUNE 2026'!#REF!)","v":{"$error":"#REF!"}},{"$f":"IF('Risk template_JUNE 2026'!#REF!=\"\",\"\",'Risk template_JUNE 2026'!#REF!)","v":{"$error":"#REF!"}}]
[{"$f":"IF('Risk template_JUNE 2026'!#REF!=\"\",\"\",'Risk template_JUNE 2026'!#REF!)","v":{"$error":"#REF!"}},{"$f":"IF('Risk template_JUNE 2026'!#REF!=\"\",\"\",'Risk template_JUNE 2026'!#REF!)","v":{"$error":"#REF!"}},{"$f":"IF('Risk template_JUNE 2026'!#REF!=\"\",\"\",'Risk template_JUNE 2026'!#REF!)","v":{"$error":"#REF!"}},{"$f":"IF('Risk template_JUNE 2026'!#REF!=\"\",\"\",'Risk template_JUNE 2026'!#REF!)","v":{"$error":"#REF!"}},{"$f":"IF('Risk template_JUNE 2026'!#REF!=\"\",\"\",'Risk template_JUNE 2026'!#REF!)","v":{"$error":"#REF!"}},{"$f":"IF('Risk template_JUNE 2026'!#REF!=\"\",\"\",'Risk template_JUNE 2026'!#REF!)","v":{"$error":"#REF!"}},{"$f":"IF('Risk template_JUNE 2026'!#REF!=\"\",\"\",'Risk template_JUNE 2026'!#REF!)","v":{"$error":"#REF!"}},{"$f":"IF('Risk template_JUNE 2026'!#REF!=\"\",\"\",'Risk template_JUNE 2026'!#REF!)","v":{"$error":"#REF!"}},{"$f":"IF('Risk template_JUNE 2026'!#REF!=\"\",\"\",'Risk template_JUNE 2026'!#REF!)","v":{"$error":"#REF!"}},{"$f":"IF('Risk template_JUNE 2026'!#REF!=\"\",\"\",'Risk template_JUNE 2026'!#REF!)","v":{"$error":"#REF!"}},{"$f":"IF('Risk template_JUNE 2026'!#REF!=\"\",\"\",'Risk template_JUNE 2026'!#REF!)","v":{"$error":"#REF!"}},{"$f":"IF('Risk template_JUNE 2026'!#REF!=\"\",\"\",'Risk template_JUNE 2026'!#REF!)","v":{"$error":"#REF!"}}]
[{"$f":"IF('Risk template_JUNE 2026'!#REF!=\"\",\"\",'Risk template_JUNE 2026'!#REF!)","v":{"$error":"#REF!"}},{"$f":"IF('Risk template_JUNE 2026'!#REF!=\"\",\"\",'Risk template_JUNE 2026'!#REF!)","v":{"$error":"#REF!"}},{"$f":"IF('Risk template_JUNE 2026'!#REF!=\"\",\"\",'Risk template_JUNE 2026'!#REF!)","v":{"$error":"#REF!"}},{"$f":"IF('Risk template_JUNE 2026'!#REF!=\"\",\"\",'Risk template_JUNE 2026'!#REF!)","v":{"$error":"#REF!"}},{"$f":"IF('Risk template_JUNE 2026'!#REF!=\"\",\"\",'Risk template_JUNE 2026'!#REF!)","v":{"$error":"#REF!"}},{"$f":"IF('Risk template_JUNE 2026'!#REF!=\"\",\"\",'Risk template_JUNE 2026'!#REF!)","v":{"$error":"#REF!"}},{"$f":"IF('Risk template_JUNE 2026'!#REF!=\"\",\"\",'Risk template_JUNE 2026'!#REF!)","v":{"$error":"#REF!"}},{"$f":"IF('Risk template_JUNE 2026'!#REF!=\"\",\"\",'Risk template_JUNE 2026'!#REF!)","v":{"$error":"#REF!"}},{"$f":"IF('Risk template_JUNE 2026'!#REF!=\"\",\"\",'Risk template_JUNE 2026'!#REF!)","v":{"$error":"#REF!"}},{"$f":"IF('Risk template_JUNE 2026'!#REF!=\"\",\"\",'Risk template_JUNE 2026'!#REF!)","v":{"$error":"#REF!"}},{"$f":"IF('Risk template_JUNE 2026'!#REF!=\"\",\"\",'Risk template_JUNE 2026'!#REF!)","v":{"$error":"#REF!"}},{"$f":"IF('Risk template_JUNE 2026'!#REF!=\"\",\"\",'Risk template_JUNE 2026'!#REF!)","v":{"$error":"#REF!"}}]
[{"$f":"IF('Risk template_JUNE 2026'!#REF!=\"\",\"\",'Risk template_JUNE 2026'!#REF!)","v":{"$error":"#REF!"}},{"$f":"IF('Risk template_JUNE 2026'!#REF!=\"\",\"\",'Risk template_JUNE 2026'!#REF!)","v":{"$error":"#REF!"}},{"$f":"IF('Risk template_JUNE 2026'!#REF!=\"\",\"\",'Risk template_JUNE 2026'!#REF!)","v":{"$error":"#REF!"}},{"$f":"IF('Risk template_JUNE 2026'!#REF!=\"\",\"\",'Risk template_JUNE 2026'!#REF!)","v":{"$error":"#REF!"}},{"$f":"IF('Risk template_JUNE 2026'!#REF!=\"\",\"\",'Risk template_JUNE 2026'!#REF!)","v":{"$error":"#REF!"}},{"$f":"IF('Risk template_JUNE 2026'!#REF!=\"\",\"\",'Risk template_JUNE 2026'!#REF!)","v":{"$error":"#REF!"}},{"$f":"IF('Risk template_JUNE 2026'!#REF!=\"\",\"\",'Risk template_JUNE 2026'!#REF!)","v":{"$error":"#REF!"}},{"$f":"IF('Risk template_JUNE 2026'!#REF!=\"\",\"\",'Risk template_JUNE 2026'!#REF!)","v":{"$error":"#REF!"}},{"$f":"IF('Risk template_JUNE 2026'!#REF!=\"\",\"\",'Risk template_JUNE 2026'!#REF!)","v":{"$error":"#REF!"}},{"$f":"IF('Risk template_JUNE 2026'!#REF!=\"\",\"\",'Risk template_JUNE 2026'!#REF!)","v":{"$error":"#REF!"}},{"$f":"IF('Risk template_JUNE 2026'!#REF!=\"\",\"\",'Risk template_JUNE 2026'!#REF!)","v":{"$error":"#REF!"}},{"$f":"IF('Risk template_JUNE 2026'!#REF!=\"\",\"\",'Risk template_JUNE 2026'!#REF!)","v":{"$error":"#REF!"}}]
[{"$f":"IF('Risk template_JUNE 2026'!#REF!=\"\",\"\",'Risk template_JUNE 2026'!#REF!)","v":{"$error":"#REF!"}},{"$f":"IF('Risk template_JUNE 2026'!#REF!=\"\",\"\",'Risk template_JUNE 2026'!#REF!)","v":{"$error":"#REF!"}},{"$f":"IF('Risk template_JUNE 2026'!#REF!=\"\",\"\",'Risk template_JUNE 2026'!#REF!)","v":{"$error":"#REF!"}},{"$f":"IF('Risk template_JUNE 2026'!#REF!=\"\",\"\",'Risk template_JUNE 2026'!#REF!)","v":{"$error":"#REF!"}},{"$f":"IF('Risk template_JUNE 2026'!#REF!=\"\",\"\",'Risk template_JUNE 2026'!#REF!)","v":{"$error":"#REF!"}},{"$f":"IF('Risk template_JUNE 2026'!#REF!=\"\",\"\",'Risk template_JUNE 2026'!#REF!)","v":{"$error":"#REF!"}},{"$f":"IF('Risk template_JUNE 2026'!#REF!=\"\",\"\",'Risk template_JUNE 2026'!#REF!)","v":{"$error":"#REF!"}},{"$f":"IF('Risk template_JUNE 2026'!#REF!=\"\",\"\",'Risk template_JUNE 2026'!#REF!)","v":{"$error":"#REF!"}},{"$f":"IF('Risk template_JUNE 2026'!#REF!=\"\",\"\",'Risk template_JUNE 2026'!#REF!)","v":{"$error":"#REF!"}},{"$f":"IF('Risk template_JUNE 2026'!#REF!=\"\",\"\",'Risk template_JUNE 2026'!#REF!)","v":{"$error":"#REF!"}},{"$f":"IF('Risk template_JUNE 2026'!#REF!=\"\",\"\",'Risk template_JUNE 2026'!#REF!)","v":{"$error":"#REF!"}},{"$f":"IF('Risk template_JUNE 2026'!#REF!=\"\",\"\",'Risk template_JUNE 2026'!#REF!)","v":{"$error":"#REF!"}}]
[{"$f":"IF('Risk template_JUNE 2026'!#REF!=\"\",\"\",'Risk template_JUNE 2026'!#REF!)","v":{"$error":"#REF!"}},{"$f":"IF('Risk template_JUNE 2026'!#REF!=\"\",\"\",'Risk template_JUNE 2026'!#REF!)","v":{"$error":"#REF!"}},{"$f":"IF('Risk template_JUNE 2026'!#REF!=\"\",\"\",'Risk template_JUNE 2026'!#REF!)","v":{"$error":"#REF!"}},{"$f":"IF('Risk template_JUNE 2026'!#REF!=\"\",\"\",'Risk template_JUNE 2026'!#REF!)","v":{"$error":"#REF!"}},{"$f":"IF('Risk template_JUNE 2026'!#REF!=\"\",\"\",'Risk template_JUNE 2026'!#REF!)","v":{"$error":"#REF!"}},{"$f":"IF('Risk template_JUNE 2026'!#REF!=\"\",\"\",'Risk template_JUNE 2026'!#REF!)","v":{"$error":"#REF!"}},{"$f":"IF('Risk template_JUNE 2026'!#REF!=\"\",\"\",'Risk template_JUNE 2026'!#REF!)","v":{"$error":"#REF!"}},{"$f":"IF('Risk template_JUNE 2026'!#REF!=\"\",\"\",'Risk template_JUNE 2026'!#REF!)","v":{"$error":"#REF!"}},{"$f":"IF('Risk template_JUNE 2026'!#REF!=\"\",\"\",'Risk template_JUNE 2026'!#REF!)","v":{"$error":"#REF!"}},{"$f":"IF('Risk template_JUNE 2026'!#REF!=\"\",\"\",'Risk template_JUNE 2026'!#REF!)","v":{"$error":"#REF!"}},{"$f":"IF('Risk template_JUNE 2026'!#REF!=\"\",\"\",'Risk template_JUNE 2026'!#REF!)","v":{"$error":"#REF!"}},{"$f":"IF('Risk template_JUNE 2026'!#REF!=\"\",\"\",'Risk template_JUNE 2026'!#REF!)","v":{"$error":"#REF!"}}]
[{"$f":"IF('Risk template_JUNE 2026'!#REF!=\"\",\"\",'Risk template_JUNE 2026'!#REF!)","v":{"$error":"#REF!"}},{"$f":"IF('Risk template_JUNE 2026'!#REF!=\"\",\"\",'Risk template_JUNE 2026'!#REF!)","v":{"$error":"#REF!"}},{"$f":"IF('Risk template_JUNE 2026'!#REF!=\"\",\"\",'Risk template_JUNE 2026'!#REF!)","v":{"$error":"#REF!"}},{"$f":"IF('Risk template_JUNE 2026'!#REF!=\"\",\"\",'Risk template_JUNE 2026'!#REF!)","v":{"$error":"#REF!"}},{"$f":"IF('Risk template_JUNE 2026'!#REF!=\"\",\"\",'Risk template_JUNE 2026'!#REF!)","v":{"$error":"#REF!"}},{"$f":"IF('Risk template_JUNE 2026'!#REF!=\"\",\"\",'Risk template_JUNE 2026'!#REF!)","v":{"$error":"#REF!"}},{"$f":"IF('Risk template_JUNE 2026'!#REF!=\"\",\"\",'Risk template_JUNE 2026'!#REF!)","v":{"$error":"#REF!"}},{"$f":"IF('Risk template_JUNE 2026'!#REF!=\"\",\"\",'Risk template_JUNE 2026'!#REF!)","v":{"$error":"#REF!"}},{"$f":"IF('Risk template_JUNE 2026'!#REF!=\"\",\"\",'Risk template_JUNE 2026'!#REF!)","v":{"$error":"#REF!"}},{"$f":"IF('Risk template_JUNE 2026'!#REF!=\"\",\"\",'Risk template_JUNE 2026'!#REF!)","v":{"$error":"#REF!"}},{"$f":"IF('Risk template_JUNE 2026'!#REF!=\"\",\"\",'Risk template_JUNE 2026'!#REF!)","v":{"$error":"#REF!"}},{"$f":"IF('Risk template_JUNE 2026'!#REF!=\"\",\"\",'Risk template_JUNE 2026'!#REF!)","v":{"$error":"#REF!"}}]
[{"$f":"IF('Risk template_JUNE 2026'!#REF!=\"\",\"\",'Risk template_JUNE 2026'!#REF!)","v":{"$error":"#REF!"}},{"$f":"IF('Risk template_JUNE 2026'!#REF!=\"\",\"\",'Risk template_JUNE 2026'!#REF!)","v":{"$error":"#REF!"}},{"$f":"IF('Risk template_JUNE 2026'!#REF!=\"\",\"\",'Risk template_JUNE 2026'!#REF!)","v":{"$error":"#REF!"}},{"$f":"IF('Risk template_JUNE 2026'!#REF!=\"\",\"\",'Risk template_JUNE 2026'!#REF!)","v":{"$error":"#REF!"}},{"$f":"IF('Risk template_JUNE 2026'!#REF!=\"\",\"\",'Risk template_JUNE 2026'!#REF!)","v":{"$error":"#REF!"}},{"$f":"IF('Risk template_JUNE 2026'!#REF!=\"\",\"\",'Risk template_JUNE 2026'!#REF!)","v":{"$error":"#REF!"}},{"$f":"IF('Risk template_JUNE 2026'!#REF!=\"\",\"\",'Risk template_JUNE 2026'!#REF!)","v":{"$error":"#REF!"}},{"$f":"IF('Risk template_JUNE 2026'!#REF!=\"\",\"\",'Risk template_JUNE 2026'!#REF!)","v":{"$error":"#REF!"}},{"$f":"IF('Risk template_JUNE 2026'!#REF!=\"\",\"\",'Risk template_JUNE 2026'!#REF!)","v":{"$error":"#REF!"}},{"$f":"IF('Risk template_JUNE 2026'!#REF!=\"\",\"\",'Risk template_JUNE 2026'!#REF!)","v":{"$error":"#REF!"}},{"$f":"IF('Risk template_JUNE 2026'!#REF!=\"\",\"\",'Risk template_JUNE 2026'!#REF!)","v":{"$error":"#REF!"}},{"$f":"IF('Risk template_JUNE 2026'!#REF!=\"\",\"\",'Risk template_JUNE 2026'!#REF!)","v":{"$error":"#REF!"}}]
[{"$f":"IF('Risk template_JUNE 2026'!#REF!=\"\",\"\",'Risk template_JUNE 2026'!#REF!)","v":{"$error":"#REF!"}},{"$f":"IF('Risk template_JUNE 2026'!#REF!=\"\",\"\",'Risk template_JUNE 2026'!#REF!)","v":{"$error":"#REF!"}},{"$f":"IF('Risk template_JUNE 2026'!#REF!=\"\",\"\",'Risk template_JUNE 2026'!#REF!)","v":{"$error":"#REF!"}},{"$f":"IF('Risk template_JUNE 2026'!#REF!=\"\",\"\",'Risk template_JUNE 2026'!#REF!)","v":{"$error":"#REF!"}},{"$f":"IF('Risk template_JUNE 2026'!#REF!=\"\",\"\",'Risk template_JUNE 2026'!#REF!)","v":{"$error":"#REF!"}},{"$f":"IF('Risk template_JUNE 2026'!#REF!=\"\",\"\",'Risk template_JUNE 2026'!#REF!)","v":{"$error":"#REF!"}},{"$f":"IF('Risk template_JUNE 2026'!#REF!=\"\",\"\",'Risk template_JUNE 2026'!#REF!)","v":{"$error":"#REF!"}},{"$f":"IF('Risk template_JUNE 2026'!#REF!=\"\",\"\",'Risk template_JUNE 2026'!#REF!)","v":{"$error":"#REF!"}},{"$f":"IF('Risk template_JUNE 2026'!#REF!=\"\",\"\",'Risk template_JUNE 2026'!#REF!)","v":{"$error":"#REF!"}},{"$f":"IF('Risk template_JUNE 2026'!#REF!=\"\",\"\",'Risk template_JUNE 2026'!#REF!)","v":{"$error":"#REF!"}},{"$f":"IF('Risk template_JUNE 2026'!#REF!=\"\",\"\",'Risk template_JUNE 2026'!#REF!)","v":{"$error":"#REF!"}},{"$f":"IF('Risk template_JUNE 2026'!#REF!=\"\",\"\",'Risk template_JUNE 2026'!#REF!)","v":{"$error":"#REF!"}}]
[{"$f":"IF('Risk template_JUNE 2026'!#REF!=\"\",\"\",'Risk template_JUNE 2026'!#REF!)","v":{"$error":"#REF!"}},{"$f":"IF('Risk template_JUNE 2026'!#REF!=\"\",\"\",'Risk template_JUNE 2026'!#REF!)","v":{"$error":"#REF!"}},{"$f":"IF('Risk template_JUNE 2026'!#REF!=\"\",\"\",'Risk template_JUNE 2026'!#REF!)","v":{"$error":"#REF!"}},{"$f":"IF('Risk template_JUNE 2026'!#REF!=\"\",\"\",'Risk template_JUNE 2026'!#REF!)","v":{"$error":"#REF!"}},{"$f":"IF('Risk template_JUNE 2026'!#REF!=\"\",\"\",'Risk template_JUNE 2026'!#REF!)","v":{"$error":"#REF!"}},{"$f":"IF('Risk template_JUNE 2026'!#REF!=\"\",\"\",'Risk template_JUNE 2026'!#REF!)","v":{"$error":"#REF!"}},{"$f":"IF('Risk template_JUNE 2026'!#REF!=\"\",\"\",'Risk template_JUNE 2026'!#REF!)","v":{"$error":"#REF!"}},{"$f":"IF('Risk template_JUNE 2026'!#REF!=\"\",\"\",'Risk template_JUNE 2026'!#REF!)","v":{"$error":"#REF!"}},{"$f":"IF('Risk template_JUNE 2026'!#REF!=\"\",\"\",'Risk template_JUNE 2026'!#REF!)","v":{"$error":"#REF!"}},{"$f":"IF('Risk template_JUNE 2026'!#REF!=\"\",\"\",'Risk template_JUNE 2026'!#REF!)","v":{"$error":"#REF!"}},{"$f":"IF('Risk template_JUNE 2026'!#REF!=\"\",\"\",'Risk template_JUNE 2026'!#REF!)","v":{"$error":"#REF!"}},{"$f":"IF('Risk template_JUNE 2026'!#REF!=\"\",\"\",'Risk template_JUNE 2026'!#REF!)","v":{"$error":"#REF!"}}]
[{"$f":"IF('Risk template_JUNE 2026'!#REF!=\"\",\"\",'Risk template_JUNE 2026'!#REF!)","v":{"$error":"#REF!"}},{"$f":"IF('Risk template_JUNE 2026'!#REF!=\"\",\"\",'Risk template_JUNE 2026'!#REF!)","v":{"$error":"#REF!"}},{"$f":"IF('Risk template_JUNE 2026'!#REF!=\"\",\"\",'Risk template_JUNE 2026'!#REF!)","v":{"$error":"#REF!"}},{"$f":"IF('Risk template_JUNE 2026'!#REF!=\"\",\"\",'Risk template_JUNE 2026'!#REF!)","v":{"$error":"#REF!"}},{"$f":"IF('Risk template_JUNE 2026'!#REF!=\"\",\"\",'Risk template_JUNE 2026'!#REF!)","v":{"$error":"#REF!"}},{"$f":"IF('Risk template_JUNE 2026'!#REF!=\"\",\"\",'Risk template_JUNE 2026'!#REF!)","v":{"$error":"#REF!"}},{"$f":"IF('Risk template_JUNE 2026'!#REF!=\"\",\"\",'Risk template_JUNE 2026'!#REF!)","v":{"$error":"#REF!"}},{"$f":"IF('Risk template_JUNE 2026'!#REF!=\"\",\"\",'Risk template_JUNE 2026'!#REF!)","v":{"$error":"#REF!"}},{"$f":"IF('Risk template_JUNE 2026'!#REF!=\"\",\"\",'Risk template_JUNE 2026'!#REF!)","v":{"$error":"#REF!"}},{"$f":"IF('Risk template_JUNE 2026'!#REF!=\"\",\"\",'Risk template_JUNE 2026'!#REF!)","v":{"$error":"#REF!"}},{"$f":"IF('Risk template_JUNE 2026'!#REF!=\"\",\"\",'Risk template_JUNE 2026'!#REF!)","v":{"$error":"#REF!"}},{"$f":"IF('Risk template_JUNE 2026'!#REF!=\"\",\"\",'Risk template_JUNE 2026'!#REF!)","v":{"$error":"#REF!"}}]
[{"$f":"IF('Risk template_JUNE 2026'!#REF!=\"\",\"\",'Risk template_JUNE 2026'!#REF!)","v":{"$error":"#REF!"}},{"$f":"IF('Risk template_JUNE 2026'!#REF!=\"\",\"\",'Risk template_JUNE 2026'!#REF!)","v":{"$error":"#REF!"}},{"$f":"IF('Risk template_JUNE 2026'!#REF!=\"\",\"\",'Risk template_JUNE 2026'!#REF!)","v":{"$error":"#REF!"}},{"$f":"IF('Risk template_JUNE 2026'!#REF!=\"\",\"\",'Risk template_JUNE 2026'!#REF!)","v":{"$error":"#REF!"}},{"$f":"IF('Risk template_JUNE 2026'!#REF!=\"\",\"\",'Risk template_JUNE 2026'!#REF!)","v":{"$error":"#REF!"}},{"$f":"IF('Risk template_JUNE 2026'!#REF!=\"\",\"\",'Risk template_JUNE 2026'!#REF!)","v":{"$error":"#REF!"}},{"$f":"IF('Risk template_JUNE 2026'!#REF!=\"\",\"\",'Risk template_JUNE 2026'!#REF!)","v":{"$error":"#REF!"}},{"$f":"IF('Risk template_JUNE 2026'!#REF!=\"\",\"\",'Risk template_JUNE 2026'!#REF!)","v":{"$error":"#REF!"}},{"$f":"IF('Risk template_JUNE 2026'!#REF!=\"\",\"\",'Risk template_JUNE 2026'!#REF!)","v":{"$error":"#REF!"}},{"$f":"IF('Risk template_JUNE 2026'!#REF!=\"\",\"\",'Risk template_JUNE 2026'!#REF!)","v":{"$error":"#REF!"}},{"$f":"IF('Risk template_JUNE 2026'!#REF!=\"\",\"\",'Risk template_JUNE 2026'!#REF!)","v":{"$error":"#REF!"}},{"$f":"IF('Risk template_JUNE 2026'!#REF!=\"\",\"\",'Risk template_JUNE 2026'!#REF!)","v":{"$error":"#REF!"}}]
[{"$f":"IF('Risk template_JUNE 2026'!#REF!=\"\",\"\",'Risk template_JUNE 2026'!#REF!)","v":{"$error":"#REF!"}},{"$f":"IF('Risk template_JUNE 2026'!#REF!=\"\",\"\",'Risk template_JUNE 2026'!#REF!)","v":{"$error":"#REF!"}},{"$f":"IF('Risk template_JUNE 2026'!#REF!=\"\",\"\",'Risk template_JUNE 2026'!#REF!)","v":{"$error":"#REF!"}},{"$f":"IF('Risk template_JUNE 2026'!#REF!=\"\",\"\",'Risk template_JUNE 2026'!#REF!)","v":{"$error":"#REF!"}},{"$f":"IF('Risk template_JUNE 2026'!#REF!=\"\",\"\",'Risk template_JUNE 2026'!#REF!)","v":{"$error":"#REF!"}},{"$f":"IF('Risk template_JUNE 2026'!#REF!=\"\",\"\",'Risk template_JUNE 2026'!#REF!)","v":{"$error":"#REF!"}},{"$f":"IF('Risk template_JUNE 2026'!#REF!=\"\",\"\",'Risk template_JUNE 2026'!#REF!)","v":{"$error":"#REF!"}},{"$f":"IF('Risk template_JUNE 2026'!#REF!=\"\",\"\",'Risk template_JUNE 2026'!#REF!)","v":{"$error":"#REF!"}},{"$f":"IF('Risk template_JUNE 2026'!#REF!=\"\",\"\",'Risk template_JUNE 2026'!#REF!)","v":{"$error":"#REF!"}},{"$f":"IF('Risk template_JUNE 2026'!#REF!=\"\",\"\",'Risk template_JUNE 2026'!#REF!)","v":{"$error":"#REF!"}},{"$f":"IF('Risk template_JUNE 2026'!#REF!=\"\",\"\",'Risk template_JUNE 2026'!#REF!)","v":{"$error":"#REF!"}},{"$f":"IF('Risk template_JUNE 2026'!#REF!=\"\",\"\",'Risk template_JUNE 2026'!#REF!)","v":{"$error":"#REF!"}}]
[{"$f":"IF('Risk template_JUNE 2026'!#REF!=\"\",\"\",'Risk template_JUNE 2026'!#REF!)","v":{"$error":"#REF!"}},{"$f":"IF('Risk template_JUNE 2026'!#REF!=\"\",\"\",'Risk template_JUNE 2026'!#REF!)","v":{"$error":"#REF!"}},{"$f":"IF('Risk template_JUNE 2026'!#REF!=\"\",\"\",'Risk template_JUNE 2026'!#REF!)","v":{"$error":"#REF!"}},{"$f":"IF('Risk template_JUNE 2026'!#REF!=\"\",\"\",'Risk template_JUNE 2026'!#REF!)","v":{"$error":"#REF!"}},{"$f":"IF('Risk template_JUNE 2026'!#REF!=\"\",\"\",'Risk template_JUNE 2026'!#REF!)","v":{"$error":"#REF!"}},{"$f":"IF('Risk template_JUNE 2026'!#REF!=\"\",\"\",'Risk template_JUNE 2026'!#REF!)","v":{"$error":"#REF!"}},{"$f":"IF('Risk template_JUNE 2026'!#REF!=\"\",\"\",'Risk template_JUNE 2026'!#REF!)","v":{"$error":"#REF!"}},{"$f":"IF('Risk template_JUNE 2026'!#REF!=\"\",\"\",'Risk template_JUNE 2026'!#REF!)","v":{"$error":"#REF!"}},{"$f":"IF('Risk template_JUNE 2026'!#REF!=\"\",\"\",'Risk template_JUNE 2026'!#REF!)","v":{"$error":"#REF!"}},{"$f":"IF('Risk template_JUNE 2026'!#REF!=\"\",\"\",'Risk template_JUNE 2026'!#REF!)","v":{"$error":"#REF!"}},{"$f":"IF('Risk template_JUNE 2026'!#REF!=\"\",\"\",'Risk template_JUNE 2026'!#REF!)","v":{"$error":"#REF!"}},{"$f":"IF('Risk template_JUNE 2026'!#REF!=\"\",\"\",'Risk template_JUNE 2026'!#REF!)","v":{"$error":"#REF!"}}]
[{"$f":"IF('Risk template_JUNE 2026'!#REF!=\"\",\"\",'Risk template_JUNE 2026'!#REF!)","v":{"$error":"#REF!"}},{"$f":"IF('Risk template_JUNE 2026'!#REF!=\"\",\"\",'Risk template_JUNE 2026'!#REF!)","v":{"$error":"#REF!"}},{"$f":"IF('Risk template_JUNE 2026'!#REF!=\"\",\"\",'Risk template_JUNE 2026'!#REF!)","v":{"$error":"#REF!"}},{"$f":"IF('Risk template_JUNE 2026'!#REF!=\"\",\"\",'Risk template_JUNE 2026'!#REF!)","v":{"$error":"#REF!"}},{"$f":"IF('Risk template_JUNE 2026'!#REF!=\"\",\"\",'Risk template_JUNE 2026'!#REF!)","v":{"$error":"#REF!"}},{"$f":"IF('Risk template_JUNE 2026'!#REF!=\"\",\"\",'Risk template_JUNE 2026'!#REF!)","v":{"$error":"#REF!"}},{"$f":"IF('Risk template_JUNE 2026'!#REF!=\"\",\"\",'Risk template_JUNE 2026'!#REF!)","v":{"$error":"#REF!"}},{"$f":"IF('Risk template_JUNE 2026'!#REF!=\"\",\"\",'Risk template_JUNE 2026'!#REF!)","v":{"$error":"#REF!"}},{"$f":"IF('Risk template_JUNE 2026'!#REF!=\"\",\"\",'Risk template_JUNE 2026'!#REF!)","v":{"$error":"#REF!"}},{"$f":"IF('Risk template_JUNE 2026'!#REF!=\"\",\"\",'Risk template_JUNE 2026'!#REF!)","v":{"$error":"#REF!"}},{"$f":"IF('Risk template_JUNE 2026'!#REF!=\"\",\"\",'Risk template_JUNE 2026'!#REF!)","v":{"$error":"#REF!"}},{"$f":"IF('Risk template_JUNE 2026'!#REF!=\"\",\"\",'Risk template_JUNE 2026'!#REF!)","v":{"$error":"#REF!"}}]
[{"$f":"IF('Risk template_JUNE 2026'!#REF!=\"\",\"\",'Risk template_JUNE 2026'!#REF!)","v":{"$error":"#REF!"}},{"$f":"IF('Risk template_JUNE 2026'!#REF!=\"\",\"\",'Risk template_JUNE 2026'!#REF!)","v":{"$error":"#REF!"}},{"$f":"IF('Risk template_JUNE 2026'!#REF!=\"\",\"\",'Risk template_JUNE 2026'!#REF!)","v":{"$error":"#REF!"}},{"$f":"IF('Risk template_JUNE 2026'!#REF!=\"\",\"\",'Risk template_JUNE 2026'!#REF!)","v":{"$error":"#REF!"}},{"$f":"IF('Risk template_JUNE 2026'!#REF!=\"\",\"\",'Risk template_JUNE 2026'!#REF!)","v":{"$error":"#REF!"}},{"$f":"IF('Risk template_JUNE 2026'!#REF!=\"\",\"\",'Risk template_JUNE 2026'!#REF!)","v":{"$error":"#REF!"}},{"$f":"IF('Risk template_JUNE 2026'!#REF!=\"\",\"\",'Risk template_JUNE 2026'!#REF!)","v":{"$error":"#REF!"}},{"$f":"IF('Risk template_JUNE 2026'!#REF!=\"\",\"\",'Risk template_JUNE 2026'!#REF!)","v":{"$error":"#REF!"}},{"$f":"IF('Risk template_JUNE 2026'!#REF!=\"\",\"\",'Risk template_JUNE 2026'!#REF!)","v":{"$error":"#REF!"}},{"$f":"IF('Risk template_JUNE 2026'!#REF!=\"\",\"\",'Risk template_JUNE 2026'!#REF!)","v":{"$error":"#REF!"}},{"$f":"IF('Risk template_JUNE 2026'!#REF!=\"\",\"\",'Risk template_JUNE 2026'!#REF!)","v":{"$error":"#REF!"}},{"$f":"IF('Risk template_JUNE 2026'!#REF!=\"\",\"\",'Risk template_JUNE 2026'!#REF!)","v":{"$error":"#REF!"}}]
[{"$f":"IF('Risk template_JUNE 2026'!#REF!=\"\",\"\",'Risk template_JUNE 2026'!#REF!)","v":{"$error":"#REF!"}},{"$f":"IF('Risk template_JUNE 2026'!#REF!=\"\",\"\",'Risk template_JUNE 2026'!#REF!)","v":{"$error":"#REF!"}},{"$f":"IF('Risk template_JUNE 2026'!#REF!=\"\",\"\",'Risk template_JUNE 2026'!#REF!)","v":{"$error":"#REF!"}},{"$f":"IF('Risk template_JUNE 2026'!#REF!=\"\",\"\",'Risk template_JUNE 2026'!#REF!)","v":{"$error":"#REF!"}},{"$f":"IF('Risk template_JUNE 2026'!#REF!=\"\",\"\",'Risk template_JUNE 2026'!#REF!)","v":{"$error":"#REF!"}},{"$f":"IF('Risk template_JUNE 2026'!#REF!=\"\",\"\",'Risk template_JUNE 2026'!#REF!)","v":{"$error":"#REF!"}},{"$f":"IF('Risk template_JUNE 2026'!#REF!=\"\",\"\",'Risk template_JUNE 2026'!#REF!)","v":{"$error":"#REF!"}},{"$f":"IF('Risk template_JUNE 2026'!#REF!=\"\",\"\",'Risk template_JUNE 2026'!#REF!)","v":{"$error":"#REF!"}},{"$f":"IF('Risk template_JUNE 2026'!#REF!=\"\",\"\",'Risk template_JUNE 2026'!#REF!)","v":{"$error":"#REF!"}},{"$f":"IF('Risk template_JUNE 2026'!#REF!=\"\",\"\",'Risk template_JUNE 2026'!#REF!)","v":{"$error":"#REF!"}},{"$f":"IF('Risk template_JUNE 2026'!#REF!=\"\",\"\",'Risk template_JUNE 2026'!#REF!)","v":{"$error":"#REF!"}},{"$f":"IF('Risk template_JUNE 2026'!#REF!=\"\",\"\",'Risk template_JUNE 2026'!#REF!)","v":{"$error":"#REF!"}}]
[{"$f":"IF('Risk template_JUNE 2026'!#REF!=\"\",\"\",'Risk template_JUNE 2026'!#REF!)","v":{"$error":"#REF!"}},{"$f":"IF('Risk template_JUNE 2026'!#REF!=\"\",\"\",'Risk template_JUNE 2026'!#REF!)","v":{"$error":"#REF!"}},{"$f":"IF('Risk template_JUNE 2026'!#REF!=\"\",\"\",'Risk template_JUNE 2026'!#REF!)","v":{"$error":"#REF!"}},{"$f":"IF('Risk template_JUNE 2026'!#REF!=\"\",\"\",'Risk template_JUNE 2026'!#REF!)","v":{"$error":"#REF!"}},{"$f":"IF('Risk template_JUNE 2026'!#REF!=\"\",\"\",'Risk template_JUNE 2026'!#REF!)","v":{"$error":"#REF!"}},{"$f":"IF('Risk template_JUNE 2026'!#REF!=\"\",\"\",'Risk template_JUNE 2026'!#REF!)","v":{"$error":"#REF!"}},{"$f":"IF('Risk template_JUNE 2026'!#REF!=\"\",\"\",'Risk template_JUNE 2026'!#REF!)","v":{"$error":"#REF!"}},{"$f":"IF('Risk template_JUNE 2026'!#REF!=\"\",\"\",'Risk template_JUNE 2026'!#REF!)","v":{"$error":"#REF!"}},{"$f":"IF('Risk template_JUNE 2026'!#REF!=\"\",\"\",'Risk template_JUNE 2026'!#REF!)","v":{"$error":"#REF!"}},{"$f":"IF('Risk template_JUNE 2026'!#REF!=\"\",\"\",'Risk template_JUNE 2026'!#REF!)","v":{"$error":"#REF!"}},{"$f":"IF('Risk template_JUNE 2026'!#REF!=\"\",\"\",'Risk template_JUNE 2026'!#REF!)","v":{"$error":"#REF!"}},{"$f":"IF('Risk template_JUNE 2026'!#REF!=\"\",\"\",'Risk template_JUNE 2026'!#REF!)","v":{"$error":"#REF!"}}]
[{"$f":"IF('Risk template_JUNE 2026'!#REF!=\"\",\"\",'Risk template_JUNE 2026'!#REF!)","v":{"$error":"#REF!"}},{"$f":"IF('Risk template_JUNE 2026'!#REF!=\"\",\"\",'Risk template_JUNE 2026'!#REF!)","v":{"$error":"#REF!"}},{"$f":"IF('Risk template_JUNE 2026'!#REF!=\"\",\"\",'Risk template_JUNE 2026'!#REF!)","v":{"$error":"#REF!"}},{"$f":"IF('Risk template_JUNE 2026'!#REF!=\"\",\"\",'Risk template_JUNE 2026'!#REF!)","v":{"$error":"#REF!"}},{"$f":"IF('Risk template_JUNE 2026'!#REF!=\"\",\"\",'Risk template_JUNE 2026'!#REF!)","v":{"$error":"#REF!"}},{"$f":"IF('Risk template_JUNE 2026'!#REF!=\"\",\"\",'Risk template_JUNE 2026'!#REF!)","v":{"$error":"#REF!"}},{"$f":"IF('Risk template_JUNE 2026'!#REF!=\"\",\"\",'Risk template_JUNE 2026'!#REF!)","v":{"$error":"#REF!"}},{"$f":"IF('Risk template_JUNE 2026'!#REF!=\"\",\"\",'Risk template_JUNE 2026'!#REF!)","v":{"$error":"#REF!"}},{"$f":"IF('Risk template_JUNE 2026'!#REF!=\"\",\"\",'Risk template_JUNE 2026'!#REF!)","v":{"$error":"#REF!"}},{"$f":"IF('Risk template_JUNE 2026'!#REF!=\"\",\"\",'Risk template_JUNE 2026'!#REF!)","v":{"$error":"#REF!"}},{"$f":"IF('Risk template_JUNE 2026'!#REF!=\"\",\"\",'Risk template_JUNE 2026'!#REF!)","v":{"$error":"#REF!"}},{"$f":"IF('Risk template_JUNE 2026'!#REF!=\"\",\"\",'Risk template_JUNE 2026'!#REF!)","v":{"$error":"#REF!"}}]
[{"$f":"IF('Risk template_JUNE 2026'!#REF!=\"\",\"\",'Risk template_JUNE 2026'!#REF!)","v":{"$error":"#REF!"}},{"$f":"IF('Risk template_JUNE 2026'!#REF!=\"\",\"\",'Risk template_JUNE 2026'!#REF!)","v":{"$error":"#REF!"}},{"$f":"IF('Risk template_JUNE 2026'!#REF!=\"\",\"\",'Risk template_JUNE 2026'!#REF!)","v":{"$error":"#REF!"}},{"$f":"IF('Risk template_JUNE 2026'!#REF!=\"\",\"\",'Risk template_JUNE 2026'!#REF!)","v":{"$error":"#REF!"}},{"$f":"IF('Risk template_JUNE 2026'!#REF!=\"\",\"\",'Risk template_JUNE 2026'!#REF!)","v":{"$error":"#REF!"}},{"$f":"IF('Risk template_JUNE 2026'!#REF!=\"\",\"\",'Risk template_JUNE 2026'!#REF!)","v":{"$error":"#REF!"}},{"$f":"IF('Risk template_JUNE 2026'!#REF!=\"\",\"\",'Risk template_JUNE 2026'!#REF!)","v":{"$error":"#REF!"}},{"$f":"IF('Risk template_JUNE 2026'!#REF!=\"\",\"\",'Risk template_JUNE 2026'!#REF!)","v":{"$error":"#REF!"}},{"$f":"IF('Risk template_JUNE 2026'!#REF!=\"\",\"\",'Risk template_JUNE 2026'!#REF!)","v":{"$error":"#REF!"}},{"$f":"IF('Risk template_JUNE 2026'!#REF!=\"\",\"\",'Risk template_JUNE 2026'!#REF!)","v":{"$error":"#REF!"}},{"$f":"IF('Risk template_JUNE 2026'!#REF!=\"\",\"\",'Risk template_JUNE 2026'!#REF!)","v":{"$error":"#REF!"}},{"$f":"IF('Risk template_JUNE 2026'!#REF!=\"\",\"\",'Risk template_JUNE 2026'!#REF!)","v":{"$error":"#REF!"}}]
[{"$f":"IF('Risk template_JUNE 2026'!#REF!=\"\",\"\",'Risk template_JUNE 2026'!#REF!)","v":{"$error":"#REF!"}},{"$f":"IF('Risk template_JUNE 2026'!#REF!=\"\",\"\",'Risk template_JUNE 2026'!#REF!)","v":{"$error":"#REF!"}},{"$f":"IF('Risk template_JUNE 2026'!#REF!=\"\",\"\",'Risk template_JUNE 2026'!#REF!)","v":{"$error":"#REF!"}},{"$f":"IF('Risk template_JUNE 2026'!#REF!=\"\",\"\",'Risk template_JUNE 2026'!#REF!)","v":{"$error":"#REF!"}},{"$f":"IF('Risk template_JUNE 2026'!#REF!=\"\",\"\",'Risk template_JUNE 2026'!#REF!)","v":{"$error":"#REF!"}},{"$f":"IF('Risk template_JUNE 2026'!#REF!=\"\",\"\",'Risk template_JUNE 2026'!#REF!)","v":{"$error":"#REF!"}},{"$f":"IF('Risk template_JUNE 2026'!#REF!=\"\",\"\",'Risk template_JUNE 2026'!#REF!)","v":{"$error":"#REF!"}},{"$f":"IF('Risk template_JUNE 2026'!#REF!=\"\",\"\",'Risk template_JUNE 2026'!#REF!)","v":{"$error":"#REF!"}},{"$f":"IF('Risk template_JUNE 2026'!#REF!=\"\",\"\",'Risk template_JUNE 2026'!#REF!)","v":{"$error":"#REF!"}},{"$f":"IF('Risk template_JUNE 2026'!#REF!=\"\",\"\",'Risk template_JUNE 2026'!#REF!)","v":{"$error":"#REF!"}},{"$f":"IF('Risk template_JUNE 2026'!#REF!=\"\",\"\",'Risk template_JUNE 2026'!#REF!)","v":{"$error":"#REF!"}},{"$f":"IF('Risk template_JUNE 2026'!#REF!=\"\",\"\",'Risk template_JUNE 2026'!#REF!)","v":{"$error":"#REF!"}}]
[{"$f":"IF('Risk template_JUNE 2026'!#REF!=\"\",\"\",'Risk template_JUNE 2026'!#REF!)","v":{"$error":"#REF!"}},{"$f":"IF('Risk template_JUNE 2026'!#REF!=\"\",\"\",'Risk template_JUNE 2026'!#REF!)","v":{"$error":"#REF!"}},{"$f":"IF('Risk template_JUNE 2026'!#REF!=\"\",\"\",'Risk template_JUNE 2026'!#REF!)","v":{"$error":"#REF!"}},{"$f":"IF('Risk template_JUNE 2026'!#REF!=\"\",\"\",'Risk template_JUNE 2026'!#REF!)","v":{"$error":"#REF!"}},{"$f":"IF('Risk template_JUNE 2026'!#REF!=\"\",\"\",'Risk template_JUNE 2026'!#REF!)","v":{"$error":"#REF!"}},{"$f":"IF('Risk template_JUNE 2026'!#REF!=\"\",\"\",'Risk template_JUNE 2026'!#REF!)","v":{"$error":"#REF!"}},{"$f":"IF('Risk template_JUNE 2026'!#REF!=\"\",\"\",'Risk template_JUNE 2026'!#REF!)","v":{"$error":"#REF!"}},{"$f":"IF('Risk template_JUNE 2026'!#REF!=\"\",\"\",'Risk template_JUNE 2026'!#REF!)","v":{"$error":"#REF!"}},{"$f":"IF('Risk template_JUNE 2026'!#REF!=\"\",\"\",'Risk template_JUNE 2026'!#REF!)","v":{"$error":"#REF!"}},{"$f":"IF('Risk template_JUNE 2026'!#REF!=\"\",\"\",'Risk template_JUNE 2026'!#REF!)","v":{"$error":"#REF!"}},{"$f":"IF('Risk template_JUNE 2026'!#REF!=\"\",\"\",'Risk template_JUNE 2026'!#REF!)","v":{"$error":"#REF!"}},{"$f":"IF('Risk template_JUNE 2026'!#REF!=\"\",\"\",'Risk template_JUNE 2026'!#REF!)","v":{"$error":"#REF!"}}]
[{"$f":"IF('Risk template_JUNE 2026'!#REF!=\"\",\"\",'Risk template_JUNE 2026'!#REF!)","v":{"$error":"#REF!"}},{"$f":"IF('Risk template_JUNE 2026'!#REF!=\"\",\"\",'Risk template_JUNE 2026'!#REF!)","v":{"$error":"#REF!"}},{"$f":"IF('Risk template_JUNE 2026'!#REF!=\"\",\"\",'Risk template_JUNE 2026'!#REF!)","v":{"$error":"#REF!"}},{"$f":"IF('Risk template_JUNE 2026'!#REF!=\"\",\"\",'Risk template_JUNE 2026'!#REF!)","v":{"$error":"#REF!"}},{"$f":"IF('Risk template_JUNE 2026'!#REF!=\"\",\"\",'Risk template_JUNE 2026'!#REF!)","v":{"$error":"#REF!"}},{"$f":"IF('Risk template_JUNE 2026'!#REF!=\"\",\"\",'Risk template_JUNE 2026'!#REF!)","v":{"$error":"#REF!"}},{"$f":"IF('Risk template_JUNE 2026'!#REF!=\"\",\"\",'Risk template_JUNE 2026'!#REF!)","v":{"$error":"#REF!"}},{"$f":"IF('Risk template_JUNE 2026'!#REF!=\"\",\"\",'Risk template_JUNE 2026'!#REF!)","v":{"$error":"#REF!"}},{"$f":"IF('Risk template_JUNE 2026'!#REF!=\"\",\"\",'Risk template_JUNE 2026'!#REF!)","v":{"$error":"#REF!"}},{"$f":"IF('Risk template_JUNE 2026'!#REF!=\"\",\"\",'Risk template_JUNE 2026'!#REF!)","v":{"$error":"#REF!"}},{"$f":"IF('Risk template_JUNE 2026'!#REF!=\"\",\"\",'Risk template_JUNE 2026'!#REF!)","v":{"$error":"#REF!"}},{"$f":"IF('Risk template_JUNE 2026'!#REF!=\"\",\"\",'Risk template_JUNE 2026'!#REF!)","v":{"$error":"#REF!"}}]
[{"$f":"IF('Risk template_JUNE 2026'!#REF!=\"\",\"\",'Risk template_JUNE 2026'!#REF!)","v":{"$error":"#REF!"}},{"$f":"IF('Risk template_JUNE 2026'!#REF!=\"\",\"\",'Risk template_JUNE 2026'!#REF!)","v":{"$error":"#REF!"}},{"$f":"IF('Risk template_JUNE 2026'!#REF!=\"\",\"\",'Risk template_JUNE 2026'!#REF!)","v":{"$error":"#REF!"}},{"$f":"IF('Risk template_JUNE 2026'!#REF!=\"\",\"\",'Risk template_JUNE 2026'!#REF!)","v":{"$error":"#REF!"}},{"$f":"IF('Risk template_JUNE 2026'!#REF!=\"\",\"\",'Risk template_JUNE 2026'!#REF!)","v":{"$error":"#REF!"}},{"$f":"IF('Risk template_JUNE 2026'!#REF!=\"\",\"\",'Risk template_JUNE 2026'!#REF!)","v":{"$error":"#REF!"}},{"$f":"IF('Risk template_JUNE 2026'!#REF!=\"\",\"\",'Risk template_JUNE 2026'!#REF!)","v":{"$error":"#REF!"}},{"$f":"IF('Risk template_JUNE 2026'!#REF!=\"\",\"\",'Risk template_JUNE 2026'!#REF!)","v":{"$error":"#REF!"}},{"$f":"IF('Risk template_JUNE 2026'!#REF!=\"\",\"\",'Risk template_JUNE 2026'!#REF!)","v":{"$error":"#REF!"}},{"$f":"IF('Risk template_JUNE 2026'!#REF!=\"\",\"\",'Risk template_JUNE 2026'!#REF!)","v":{"$error":"#REF!"}},{"$f":"IF('Risk template_JUNE 2026'!#REF!=\"\",\"\",'Risk template_JUNE 2026'!#REF!)","v":{"$error":"#REF!"}},{"$f":"IF('Risk template_JUNE 2026'!#REF!=\"\",\"\",'Risk template_JUNE 2026'!#REF!)","v":{"$error":"#REF!"}}]
[{"$f":"IF('Risk template_JUNE 2026'!#REF!=\"\",\"\",'Risk template_JUNE 2026'!#REF!)","v":{"$error":"#REF!"}},{"$f":"IF('Risk template_JUNE 2026'!#REF!=\"\",\"\",'Risk template_JUNE 2026'!#REF!)","v":{"$error":"#REF!"}},{"$f":"IF('Risk template_JUNE 2026'!#REF!=\"\",\"\",'Risk template_JUNE 2026'!#REF!)","v":{"$error":"#REF!"}},{"$f":"IF('Risk template_JUNE 2026'!#REF!=\"\",\"\",'Risk template_JUNE 2026'!#REF!)","v":{"$error":"#REF!"}},{"$f":"IF('Risk template_JUNE 2026'!#REF!=\"\",\"\",'Risk template_JUNE 2026'!#REF!)","v":{"$error":"#REF!"}},{"$f":"IF('Risk template_JUNE 2026'!#REF!=\"\",\"\",'Risk template_JUNE 2026'!#REF!)","v":{"$error":"#REF!"}},{"$f":"IF('Risk template_JUNE 2026'!#REF!=\"\",\"\",'Risk template_JUNE 2026'!#REF!)","v":{"$error":"#REF!"}},{"$f":"IF('Risk template_JUNE 2026'!#REF!=\"\",\"\",'Risk template_JUNE 2026'!#REF!)","v":{"$error":"#REF!"}},{"$f":"IF('Risk template_JUNE 2026'!#REF!=\"\",\"\",'Risk template_JUNE 2026'!#REF!)","v":{"$error":"#REF!"}},{"$f":"IF('Risk template_JUNE 2026'!#REF!=\"\",\"\",'Risk template_JUNE 2026'!#REF!)","v":{"$error":"#REF!"}},{"$f":"IF('Risk template_JUNE 2026'!#REF!=\"\",\"\",'Risk template_JUNE 2026'!#REF!)","v":{"$error":"#REF!"}},{"$f":"IF('Risk template_JUNE 2026'!#REF!=\"\",\"\",'Risk template_JUNE 2026'!#REF!)","v":{"$error":"#REF!"}}]
[{"$f":"IF('Risk template_JUNE 2026'!#REF!=\"\",\"\",'Risk template_JUNE 2026'!#REF!)","v":{"$error":"#REF!"}},{"$f":"IF('Risk template_JUNE 2026'!#REF!=\"\",\"\",'Risk template_JUNE 2026'!#REF!)","v":{"$error":"#REF!"}},{"$f":"IF('Risk template_JUNE 2026'!#REF!=\"\",\"\",'Risk template_JUNE 2026'!#REF!)","v":{"$error":"#REF!"}},{"$f":"IF('Risk template_JUNE 2026'!#REF!=\"\",\"\",'Risk template_JUNE 2026'!#REF!)","v":{"$error":"#REF!"}},{"$f":"IF('Risk template_JUNE 2026'!#REF!=\"\",\"\",'Risk template_JUNE 2026'!#REF!)","v":{"$error":"#REF!"}},{"$f":"IF('Risk template_JUNE 2026'!#REF!=\"\",\"\",'Risk template_JUNE 2026'!#REF!)","v":{"$error":"#REF!"}},{"$f":"IF('Risk template_JUNE 2026'!#REF!=\"\",\"\",'Risk template_JUNE 2026'!#REF!)","v":{"$error":"#REF!"}},{"$f":"IF('Risk template_JUNE 2026'!#REF!=\"\",\"\",'Risk template_JUNE 2026'!#REF!)","v":{"$error":"#REF!"}},{"$f":"IF('Risk template_JUNE 2026'!#REF!=\"\",\"\",'Risk template_JUNE 2026'!#REF!)","v":{"$error":"#REF!"}},{"$f":"IF('Risk template_JUNE 2026'!#REF!=\"\",\"\",'Risk template_JUNE 2026'!#REF!)","v":{"$error":"#REF!"}},{"$f":"IF('Risk template_JUNE 2026'!#REF!=\"\",\"\",'Risk template_JUNE 2026'!#REF!)","v":{"$error":"#REF!"}},{"$f":"IF('Risk template_JUNE 2026'!#REF!=\"\",\"\",'Risk template_JUNE 2026'!#REF!)","v":{"$error":"#REF!"}}]
[{"$f":"IF('Risk template_JUNE 2026'!#REF!=\"\",\"\",'Risk template_JUNE 2026'!#REF!)","v":{"$error":"#REF!"}},{"$f":"IF('Risk template_JUNE 2026'!#REF!=\"\",\"\",'Risk template_JUNE 2026'!#REF!)","v":{"$error":"#REF!"}},{"$f":"IF('Risk template_JUNE 2026'!#REF!=\"\",\"\",'Risk template_JUNE 2026'!#REF!)","v":{"$error":"#REF!"}},{"$f":"IF('Risk template_JUNE 2026'!#REF!=\"\",\"\",'Risk template_JUNE 2026'!#REF!)","v":{"$error":"#REF!"}},{"$f":"IF('Risk template_JUNE 2026'!#REF!=\"\",\"\",'Risk template_JUNE 2026'!#REF!)","v":{"$error":"#REF!"}},{"$f":"IF('Risk template_JUNE 2026'!#REF!=\"\",\"\",'Risk template_JUNE 2026'!#REF!)","v":{"$error":"#REF!"}},{"$f":"IF('Risk template_JUNE 2026'!#REF!=\"\",\"\",'Risk template_JUNE 2026'!#REF!)","v":{"$error":"#REF!"}},{"$f":"IF('Risk template_JUNE 2026'!#REF!=\"\",\"\",'Risk template_JUNE 2026'!#REF!)","v":{"$error":"#REF!"}},{"$f":"IF('Risk template_JUNE 2026'!#REF!=\"\",\"\",'Risk template_JUNE 2026'!#REF!)","v":{"$error":"#REF!"}},{"$f":"IF('Risk template_JUNE 2026'!#REF!=\"\",\"\",'Risk template_JUNE 2026'!#REF!)","v":{"$error":"#REF!"}},{"$f":"IF('Risk template_JUNE 2026'!#REF!=\"\",\"\",'Risk template_JUNE 2026'!#REF!)","v":{"$error":"#REF!"}},{"$f":"IF('Risk template_JUNE 2026'!#REF!=\"\",\"\",'Risk template_JUNE 2026'!#REF!)","v":{"$error":"#REF!"}}]
[{"$f":"IF('Risk template_JUNE 2026'!#REF!=\"\",\"\",'Risk template_JUNE 2026'!#REF!)","v":{"$error":"#REF!"}},{"$f":"IF('Risk template_JUNE 2026'!#REF!=\"\",\"\",'Risk template_JUNE 2026'!#REF!)","v":{"$error":"#REF!"}},{"$f":"IF('Risk template_JUNE 2026'!#REF!=\"\",\"\",'Risk template_JUNE 2026'!#REF!)","v":{"$error":"#REF!"}},{"$f":"IF('Risk template_JUNE 2026'!#REF!=\"\",\"\",'Risk template_JUNE 2026'!#REF!)","v":{"$error":"#REF!"}},{"$f":"IF('Risk template_JUNE 2026'!#REF!=\"\",\"\",'Risk template_JUNE 2026'!#REF!)","v":{"$error":"#REF!"}},{"$f":"IF('Risk template_JUNE 2026'!#REF!=\"\",\"\",'Risk template_JUNE 2026'!#REF!)","v":{"$error":"#REF!"}},{"$f":"IF('Risk template_JUNE 2026'!#REF!=\"\",\"\",'Risk template_JUNE 2026'!#REF!)","v":{"$error":"#REF!"}},{"$f":"IF('Risk template_JUNE 2026'!#REF!=\"\",\"\",'Risk template_JUNE 2026'!#REF!)","v":{"$error":"#REF!"}},{"$f":"IF('Risk template_JUNE 2026'!#REF!=\"\",\"\",'Risk template_JUNE 2026'!#REF!)","v":{"$error":"#REF!"}},{"$f":"IF('Risk template_JUNE 2026'!#REF!=\"\",\"\",'Risk template_JUNE 2026'!#REF!)","v":{"$error":"#REF!"}},{"$f":"IF('Risk template_JUNE 2026'!#REF!=\"\",\"\",'Risk template_JUNE 2026'!#REF!)","v":{"$error":"#REF!"}},{"$f":"IF('Risk template_JUNE 2026'!#REF!=\"\",\"\",'Risk template_JUNE 2026'!#REF!)","v":{"$error":"#REF!"}}]
[{"$f":"IF('Risk template_JUNE 2026'!#REF!=\"\",\"\",'Risk template_JUNE 2026'!#REF!)","v":{"$error":"#REF!"}},{"$f":"IF('Risk template_JUNE 2026'!#REF!=\"\",\"\",'Risk template_JUNE 2026'!#REF!)","v":{"$error":"#REF!"}},{"$f":"IF('Risk template_JUNE 2026'!#REF!=\"\",\"\",'Risk template_JUNE 2026'!#REF!)","v":{"$error":"#REF!"}},{"$f":"IF('Risk template_JUNE 2026'!#REF!=\"\",\"\",'Risk template_JUNE 2026'!#REF!)","v":{"$error":"#REF!"}},{"$f":"IF('Risk template_JUNE 2026'!#REF!=\"\",\"\",'Risk template_JUNE 2026'!#REF!)","v":{"$error":"#REF!"}},{"$f":"IF('Risk template_JUNE 2026'!#REF!=\"\",\"\",'Risk template_JUNE 2026'!#REF!)","v":{"$error":"#REF!"}},{"$f":"IF('Risk template_JUNE 2026'!#REF!=\"\",\"\",'Risk template_JUNE 2026'!#REF!)","v":{"$error":"#REF!"}},{"$f":"IF('Risk template_JUNE 2026'!#REF!=\"\",\"\",'Risk template_JUNE 2026'!#REF!)","v":{"$error":"#REF!"}},{"$f":"IF('Risk template_JUNE 2026'!#REF!=\"\",\"\",'Risk template_JUNE 2026'!#REF!)","v":{"$error":"#REF!"}},{"$f":"IF('Risk template_JUNE 2026'!#REF!=\"\",\"\",'Risk template_JUNE 2026'!#REF!)","v":{"$error":"#REF!"}},{"$f":"IF('Risk template_JUNE 2026'!#REF!=\"\",\"\",'Risk template_JUNE 2026'!#REF!)","v":{"$error":"#REF!"}},{"$f":"IF('Risk template_JUNE 2026'!#REF!=\"\",\"\",'Risk template_JUNE 2026'!#REF!)","v":{"$error":"#REF!"}}]
[{"$f":"IF('Risk template_JUNE 2026'!#REF!=\"\",\"\",'Risk template_JUNE 2026'!#REF!)","v":{"$error":"#REF!"}},{"$f":"IF('Risk template_JUNE 2026'!#REF!=\"\",\"\",'Risk template_JUNE 2026'!#REF!)","v":{"$error":"#REF!"}},{"$f":"IF('Risk template_JUNE 2026'!#REF!=\"\",\"\",'Risk template_JUNE 2026'!#REF!)","v":{"$error":"#REF!"}},{"$f":"IF('Risk template_JUNE 2026'!#REF!=\"\",\"\",'Risk template_JUNE 2026'!#REF!)","v":{"$error":"#REF!"}},{"$f":"IF('Risk template_JUNE 2026'!#REF!=\"\",\"\",'Risk template_JUNE 2026'!#REF!)","v":{"$error":"#REF!"}},{"$f":"IF('Risk template_JUNE 2026'!#REF!=\"\",\"\",'Risk template_JUNE 2026'!#REF!)","v":{"$error":"#REF!"}},{"$f":"IF('Risk template_JUNE 2026'!#REF!=\"\",\"\",'Risk template_JUNE 2026'!#REF!)","v":{"$error":"#REF!"}},{"$f":"IF('Risk template_JUNE 2026'!#REF!=\"\",\"\",'Risk template_JUNE 2026'!#REF!)","v":{"$error":"#REF!"}},{"$f":"IF('Risk template_JUNE 2026'!#REF!=\"\",\"\",'Risk template_JUNE 2026'!#REF!)","v":{"$error":"#REF!"}},{"$f":"IF('Risk template_JUNE 2026'!#REF!=\"\",\"\",'Risk template_JUNE 2026'!#REF!)","v":{"$error":"#REF!"}},{"$f":"IF('Risk template_JUNE 2026'!#REF!=\"\",\"\",'Risk template_JUNE 2026'!#REF!)","v":{"$error":"#REF!"}},{"$f":"IF('Risk template_JUNE 2026'!#REF!=\"\",\"\",'Risk template_JUNE 2026'!#REF!)","v":{"$error":"#REF!"}}]
[{"$f":"IF('Risk template_JUNE 2026'!#REF!=\"\",\"\",'Risk template_JUNE 2026'!#REF!)","v":{"$error":"#REF!"}},{"$f":"IF('Risk template_JUNE 2026'!#REF!=\"\",\"\",'Risk template_JUNE 2026'!#REF!)","v":{"$error":"#REF!"}},{"$f":"IF('Risk template_JUNE 2026'!#REF!=\"\",\"\",'Risk template_JUNE 2026'!#REF!)","v":{"$error":"#REF!"}},{"$f":"IF('Risk template_JUNE 2026'!#REF!=\"\",\"\",'Risk template_JUNE 2026'!#REF!)","v":{"$error":"#REF!"}},{"$f":"IF('Risk template_JUNE 2026'!#REF!=\"\",\"\",'Risk template_JUNE 2026'!#REF!)","v":{"$error":"#REF!"}},{"$f":"IF('Risk template_JUNE 2026'!#REF!=\"\",\"\",'Risk template_JUNE 2026'!#REF!)","v":{"$error":"#REF!"}},{"$f":"IF('Risk template_JUNE 2026'!#REF!=\"\",\"\",'Risk template_JUNE 2026'!#REF!)","v":{"$error":"#REF!"}},{"$f":"IF('Risk template_JUNE 2026'!#REF!=\"\",\"\",'Risk template_JUNE 2026'!#REF!)","v":{"$error":"#REF!"}},{"$f":"IF('Risk template_JUNE 2026'!#REF!=\"\",\"\",'Risk template_JUNE 2026'!#REF!)","v":{"$error":"#REF!"}},{"$f":"IF('Risk template_JUNE 2026'!#REF!=\"\",\"\",'Risk template_JUNE 2026'!#REF!)","v":{"$error":"#REF!"}},{"$f":"IF('Risk template_JUNE 2026'!#REF!=\"\",\"\",'Risk template_JUNE 2026'!#REF!)","v":{"$error":"#REF!"}},{"$f":"IF('Risk template_JUNE 2026'!#REF!=\"\",\"\",'Risk template_JUNE 2026'!#REF!)","v":{"$error":"#REF!"}}]
[{"$f":"IF('Risk template_JUNE 2026'!#REF!=\"\",\"\",'Risk template_JUNE 2026'!#REF!)","v":{"$error":"#REF!"}},{"$f":"IF('Risk template_JUNE 2026'!#REF!=\"\",\"\",'Risk template_JUNE 2026'!#REF!)","v":{"$error":"#REF!"}},{"$f":"IF('Risk template_JUNE 2026'!#REF!=\"\",\"\",'Risk template_JUNE 2026'!#REF!)","v":{"$error":"#REF!"}},{"$f":"IF('Risk template_JUNE 2026'!#REF!=\"\",\"\",'Risk template_JUNE 2026'!#REF!)","v":{"$error":"#REF!"}},{"$f":"IF('Risk template_JUNE 2026'!#REF!=\"\",\"\",'Risk template_JUNE 2026'!#REF!)","v":{"$error":"#REF!"}},{"$f":"IF('Risk template_JUNE 2026'!#REF!=\"\",\"\",'Risk template_JUNE 2026'!#REF!)","v":{"$error":"#REF!"}},{"$f":"IF('Risk template_JUNE 2026'!#REF!=\"\",\"\",'Risk template_JUNE 2026'!#REF!)","v":{"$error":"#REF!"}},{"$f":"IF('Risk template_JUNE 2026'!#REF!=\"\",\"\",'Risk template_JUNE 2026'!#REF!)","v":{"$error":"#REF!"}},{"$f":"IF('Risk template_JUNE 2026'!#REF!=\"\",\"\",'Risk template_JUNE 2026'!#REF!)","v":{"$error":"#REF!"}},{"$f":"IF('Risk template_JUNE 2026'!#REF!=\"\",\"\",'Risk template_JUNE 2026'!#REF!)","v":{"$error":"#REF!"}},{"$f":"IF('Risk template_JUNE 2026'!#REF!=\"\",\"\",'Risk template_JUNE 2026'!#REF!)","v":{"$error":"#REF!"}},{"$f":"IF('Risk template_JUNE 2026'!#REF!=\"\",\"\",'Risk template_JUNE 2026'!#REF!)","v":{"$error":"#REF!"}}]
[{"$f":"IF('Risk template_JUNE 2026'!#REF!=\"\",\"\",'Risk template_JUNE 2026'!#REF!)","v":{"$error":"#REF!"}},{"$f":"IF('Risk template_JUNE 2026'!#REF!=\"\",\"\",'Risk template_JUNE 2026'!#REF!)","v":{"$error":"#REF!"}},{"$f":"IF('Risk template_JUNE 2026'!#REF!=\"\",\"\",'Risk template_JUNE 2026'!#REF!)","v":{"$error":"#REF!"}},{"$f":"IF('Risk template_JUNE 2026'!#REF!=\"\",\"\",'Risk template_JUNE 2026'!#REF!)","v":{"$error":"#REF!"}},{"$f":"IF('Risk template_JUNE 2026'!#REF!=\"\",\"\",'Risk template_JUNE 2026'!#REF!)","v":{"$error":"#REF!"}},{"$f":"IF('Risk template_JUNE 2026'!#REF!=\"\",\"\",'Risk template_JUNE 2026'!#REF!)","v":{"$error":"#REF!"}},{"$f":"IF('Risk template_JUNE 2026'!#REF!=\"\",\"\",'Risk template_JUNE 2026'!#REF!)","v":{"$error":"#REF!"}},{"$f":"IF('Risk template_JUNE 2026'!#REF!=\"\",\"\",'Risk template_JUNE 2026'!#REF!)","v":{"$error":"#REF!"}},{"$f":"IF('Risk template_JUNE 2026'!#REF!=\"\",\"\",'Risk template_JUNE 2026'!#REF!)","v":{"$error":"#REF!"}},{"$f":"IF('Risk template_JUNE 2026'!#REF!=\"\",\"\",'Risk template_JUNE 2026'!#REF!)","v":{"$error":"#REF!"}},{"$f":"IF('Risk template_JUNE 2026'!#REF!=\"\",\"\",'Risk template_JUNE 2026'!#REF!)","v":{"$error":"#REF!"}},{"$f":"IF('Risk template_JUNE 2026'!#REF!=\"\",\"\",'Risk template_JUNE 2026'!#REF!)","v":{"$error":"#REF!"}}]
[{"$f":"IF('Risk template_JUNE 2026'!#REF!=\"\",\"\",'Risk template_JUNE 2026'!#REF!)","v":{"$error":"#REF!"}},{"$f":"IF('Risk template_JUNE 2026'!#REF!=\"\",\"\",'Risk template_JUNE 2026'!#REF!)","v":{"$error":"#REF!"}},{"$f":"IF('Risk template_JUNE 2026'!#REF!=\"\",\"\",'Risk template_JUNE 2026'!#REF!)","v":{"$error":"#REF!"}},{"$f":"IF('Risk template_JUNE 2026'!#REF!=\"\",\"\",'Risk template_JUNE 2026'!#REF!)","v":{"$error":"#REF!"}},{"$f":"IF('Risk template_JUNE 2026'!#REF!=\"\",\"\",'Risk template_JUNE 2026'!#REF!)","v":{"$error":"#REF!"}},{"$f":"IF('Risk template_JUNE 2026'!#REF!=\"\",\"\",'Risk template_JUNE 2026'!#REF!)","v":{"$error":"#REF!"}},{"$f":"IF('Risk template_JUNE 2026'!#REF!=\"\",\"\",'Risk template_JUNE 2026'!#REF!)","v":{"$error":"#REF!"}},{"$f":"IF('Risk template_JUNE 2026'!#REF!=\"\",\"\",'Risk template_JUNE 2026'!#REF!)","v":{"$error":"#REF!"}},{"$f":"IF('Risk template_JUNE 2026'!#REF!=\"\",\"\",'Risk template_JUNE 2026'!#REF!)","v":{"$error":"#REF!"}},{"$f":"IF('Risk template_JUNE 2026'!#REF!=\"\",\"\",'Risk template_JUNE 2026'!#REF!)","v":{"$error":"#REF!"}},{"$f":"IF('Risk template_JUNE 2026'!#REF!=\"\",\"\",'Risk template_JUNE 2026'!#REF!)","v":{"$error":"#REF!"}},{"$f":"IF('Risk template_JUNE 2026'!#REF!=\"\",\"\",'Risk template_JUNE 2026'!#REF!)","v":{"$error":"#REF!"}}]
[{"$f":"IF('Risk template_JUNE 2026'!#REF!=\"\",\"\",'Risk template_JUNE 2026'!#REF!)","v":{"$error":"#REF!"}},{"$f":"IF('Risk template_JUNE 2026'!#REF!=\"\",\"\",'Risk template_JUNE 2026'!#REF!)","v":{"$error":"#REF!"}},{"$f":"IF('Risk template_JUNE 2026'!#REF!=\"\",\"\",'Risk template_JUNE 2026'!#REF!)","v":{"$error":"#REF!"}},{"$f":"IF('Risk template_JUNE 2026'!#REF!=\"\",\"\",'Risk template_JUNE 2026'!#REF!)","v":{"$error":"#REF!"}},{"$f":"IF('Risk template_JUNE 2026'!#REF!=\"\",\"\",'Risk template_JUNE 2026'!#REF!)","v":{"$error":"#REF!"}},{"$f":"IF('Risk template_JUNE 2026'!#REF!=\"\",\"\",'Risk template_JUNE 2026'!#REF!)","v":{"$error":"#REF!"}},{"$f":"IF('Risk template_JUNE 2026'!#REF!=\"\",\"\",'Risk template_JUNE 2026'!#REF!)","v":{"$error":"#REF!"}},{"$f":"IF('Risk template_JUNE 2026'!#REF!=\"\",\"\",'Risk template_JUNE 2026'!#REF!)","v":{"$error":"#REF!"}},{"$f":"IF('Risk template_JUNE 2026'!#REF!=\"\",\"\",'Risk template_JUNE 2026'!#REF!)","v":{"$error":"#REF!"}},{"$f":"IF('Risk template_JUNE 2026'!#REF!=\"\",\"\",'Risk template_JUNE 2026'!#REF!)","v":{"$error":"#REF!"}},{"$f":"IF('Risk template_JUNE 2026'!#REF!=\"\",\"\",'Risk template_JUNE 2026'!#REF!)","v":{"$error":"#REF!"}},{"$f":"IF('Risk template_JUNE 2026'!#REF!=\"\",\"\",'Risk template_JUNE 2026'!#REF!)","v":{"$error":"#REF!"}}]
[{"$f":"IF('Risk template_JUNE 2026'!#REF!=\"\",\"\",'Risk template_JUNE 2026'!#REF!)","v":{"$error":"#REF!"}},{"$f":"IF('Risk template_JUNE 2026'!#REF!=\"\",\"\",'Risk template_JUNE 2026'!#REF!)","v":{"$error":"#REF!"}},{"$f":"IF('Risk template_JUNE 2026'!#REF!=\"\",\"\",'Risk template_JUNE 2026'!#REF!)","v":{"$error":"#REF!"}},{"$f":"IF('Risk template_JUNE 2026'!#REF!=\"\",\"\",'Risk template_JUNE 2026'!#REF!)","v":{"$error":"#REF!"}},{"$f":"IF('Risk template_JUNE 2026'!#REF!=\"\",\"\",'Risk template_JUNE 2026'!#REF!)","v":{"$error":"#REF!"}},{"$f":"IF('Risk template_JUNE 2026'!#REF!=\"\",\"\",'Risk template_JUNE 2026'!#REF!)","v":{"$error":"#REF!"}},{"$f":"IF('Risk template_JUNE 2026'!#REF!=\"\",\"\",'Risk template_JUNE 2026'!#REF!)","v":{"$error":"#REF!"}},{"$f":"IF('Risk template_JUNE 2026'!#REF!=\"\",\"\",'Risk template_JUNE 2026'!#REF!)","v":{"$error":"#REF!"}},{"$f":"IF('Risk template_JUNE 2026'!#REF!=\"\",\"\",'Risk template_JUNE 2026'!#REF!)","v":{"$error":"#REF!"}},{"$f":"IF('Risk template_JUNE 2026'!#REF!=\"\",\"\",'Risk template_JUNE 2026'!#REF!)","v":{"$error":"#REF!"}},{"$f":"IF('Risk template_JUNE 2026'!#REF!=\"\",\"\",'Risk template_JUNE 2026'!#REF!)","v":{"$error":"#REF!"}},{"$f":"IF('Risk template_JUNE 2026'!#REF!=\"\",\"\",'Risk template_JUNE 2026'!#REF!)","v":{"$error":"#REF!"}}]
[{"$f":"IF('Risk template_JUNE 2026'!#REF!=\"\",\"\",'Risk template_JUNE 2026'!#REF!)","v":{"$error":"#REF!"}},{"$f":"IF('Risk template_JUNE 2026'!#REF!=\"\",\"\",'Risk template_JUNE 2026'!#REF!)","v":{"$error":"#REF!"}},{"$f":"IF('Risk template_JUNE 2026'!#REF!=\"\",\"\",'Risk template_JUNE 2026'!#REF!)","v":{"$error":"#REF!"}},{"$f":"IF('Risk template_JUNE 2026'!#REF!=\"\",\"\",'Risk template_JUNE 2026'!#REF!)","v":{"$error":"#REF!"}},{"$f":"IF('Risk template_JUNE 2026'!#REF!=\"\",\"\",'Risk template_JUNE 2026'!#REF!)","v":{"$error":"#REF!"}},{"$f":"IF('Risk template_JUNE 2026'!#REF!=\"\",\"\",'Risk template_JUNE 2026'!#REF!)","v":{"$error":"#REF!"}},{"$f":"IF('Risk template_JUNE 2026'!#REF!=\"\",\"\",'Risk template_JUNE 2026'!#REF!)","v":{"$error":"#REF!"}},{"$f":"IF('Risk template_JUNE 2026'!#REF!=\"\",\"\",'Risk template_JUNE 2026'!#REF!)","v":{"$error":"#REF!"}},{"$f":"IF('Risk template_JUNE 2026'!#REF!=\"\",\"\",'Risk template_JUNE 2026'!#REF!)","v":{"$error":"#REF!"}},{"$f":"IF('Risk template_JUNE 2026'!#REF!=\"\",\"\",'Risk template_JUNE 2026'!#REF!)","v":{"$error":"#REF!"}},{"$f":"IF('Risk template_JUNE 2026'!#REF!=\"\",\"\",'Risk template_JUNE 2026'!#REF!)","v":{"$error":"#REF!"}},{"$f":"IF('Risk template_JUNE 2026'!#REF!=\"\",\"\",'Risk template_JUNE 2026'!#REF!)","v":{"$error":"#REF!"}}]
[{"$f":"IF('Risk template_JUNE 2026'!#REF!=\"\",\"\",'Risk template_JUNE 2026'!#REF!)","v":{"$error":"#REF!"}},{"$f":"IF('Risk template_JUNE 2026'!#REF!=\"\",\"\",'Risk template_JUNE 2026'!#REF!)","v":{"$error":"#REF!"}},{"$f":"IF('Risk template_JUNE 2026'!#REF!=\"\",\"\",'Risk template_JUNE 2026'!#REF!)","v":{"$error":"#REF!"}},{"$f":"IF('Risk template_JUNE 2026'!#REF!=\"\",\"\",'Risk template_JUNE 2026'!#REF!)","v":{"$error":"#REF!"}},{"$f":"IF('Risk template_JUNE 2026'!#REF!=\"\",\"\",'Risk template_JUNE 2026'!#REF!)","v":{"$error":"#REF!"}},{"$f":"IF('Risk template_JUNE 2026'!#REF!=\"\",\"\",'Risk template_JUNE 2026'!#REF!)","v":{"$error":"#REF!"}},{"$f":"IF('Risk template_JUNE 2026'!#REF!=\"\",\"\",'Risk template_JUNE 2026'!#REF!)","v":{"$error":"#REF!"}},{"$f":"IF('Risk template_JUNE 2026'!#REF!=\"\",\"\",'Risk template_JUNE 2026'!#REF!)","v":{"$error":"#REF!"}},{"$f":"IF('Risk template_JUNE 2026'!#REF!=\"\",\"\",'Risk template_JUNE 2026'!#REF!)","v":{"$error":"#REF!"}},{"$f":"IF('Risk template_JUNE 2026'!#REF!=\"\",\"\",'Risk template_JUNE 2026'!#REF!)","v":{"$error":"#REF!"}},{"$f":"IF('Risk template_JUNE 2026'!#REF!=\"\",\"\",'Risk template_JUNE 2026'!#REF!)","v":{"$error":"#REF!"}},{"$f":"IF('Risk template_JUNE 2026'!#REF!=\"\",\"\",'Risk template_JUNE 2026'!#REF!)","v":{"$error":"#REF!"}}]
[{"$f":"IF('Risk template_JUNE 2026'!#REF!=\"\",\"\",'Risk template_JUNE 2026'!#REF!)","v":{"$error":"#REF!"}},{"$f":"IF('Risk template_JUNE 2026'!#REF!=\"\",\"\",'Risk template_JUNE 2026'!#REF!)","v":{"$error":"#REF!"}},{"$f":"IF('Risk template_JUNE 2026'!#REF!=\"\",\"\",'Risk template_JUNE 2026'!#REF!)","v":{"$error":"#REF!"}},{"$f":"IF('Risk template_JUNE 2026'!#REF!=\"\",\"\",'Risk template_JUNE 2026'!#REF!)","v":{"$error":"#REF!"}},{"$f":"IF('Risk template_JUNE 2026'!#REF!=\"\",\"\",'Risk template_JUNE 2026'!#REF!)","v":{"$error":"#REF!"}},{"$f":"IF('Risk template_JUNE 2026'!#REF!=\"\",\"\",'Risk template_JUNE 2026'!#REF!)","v":{"$error":"#REF!"}},{"$f":"IF('Risk template_JUNE 2026'!#REF!=\"\",\"\",'Risk template_JUNE 2026'!#REF!)","v":{"$error":"#REF!"}},{"$f":"IF('Risk template_JUNE 2026'!#REF!=\"\",\"\",'Risk template_JUNE 2026'!#REF!)","v":{"$error":"#REF!"}},{"$f":"IF('Risk template_JUNE 2026'!#REF!=\"\",\"\",'Risk template_JUNE 2026'!#REF!)","v":{"$error":"#REF!"}},{"$f":"IF('Risk template_JUNE 2026'!#REF!=\"\",\"\",'Risk template_JUNE 2026'!#REF!)","v":{"$error":"#REF!"}},{"$f":"IF('Risk template_JUNE 2026'!#REF!=\"\",\"\",'Risk template_JUNE 2026'!#REF!)","v":{"$error":"#REF!"}},{"$f":"IF('Risk template_JUNE 2026'!#REF!=\"\",\"\",'Risk template_JUNE 2026'!#REF!)","v":{"$error":"#REF!"}}]
[{"$f":"IF('Risk template_JUNE 2026'!#REF!=\"\",\"\",'Risk template_JUNE 2026'!#REF!)","v":{"$error":"#REF!"}},{"$f":"IF('Risk template_JUNE 2026'!#REF!=\"\",\"\",'Risk template_JUNE 2026'!#REF!)","v":{"$error":"#REF!"}},{"$f":"IF('Risk template_JUNE 2026'!#REF!=\"\",\"\",'Risk template_JUNE 2026'!#REF!)","v":{"$error":"#REF!"}},{"$f":"IF('Risk template_JUNE 2026'!#REF!=\"\",\"\",'Risk template_JUNE 2026'!#REF!)","v":{"$error":"#REF!"}},{"$f":"IF('Risk template_JUNE 2026'!#REF!=\"\",\"\",'Risk template_JUNE 2026'!#REF!)","v":{"$error":"#REF!"}},{"$f":"IF('Risk template_JUNE 2026'!#REF!=\"\",\"\",'Risk template_JUNE 2026'!#REF!)","v":{"$error":"#REF!"}},{"$f":"IF('Risk template_JUNE 2026'!#REF!=\"\",\"\",'Risk template_JUNE 2026'!#REF!)","v":{"$error":"#REF!"}},{"$f":"IF('Risk template_JUNE 2026'!#REF!=\"\",\"\",'Risk template_JUNE 2026'!#REF!)","v":{"$error":"#REF!"}},{"$f":"IF('Risk template_JUNE 2026'!#REF!=\"\",\"\",'Risk template_JUNE 2026'!#REF!)","v":{"$error":"#REF!"}},{"$f":"IF('Risk template_JUNE 2026'!#REF!=\"\",\"\",'Risk template_JUNE 2026'!#REF!)","v":{"$error":"#REF!"}},{"$f":"IF('Risk template_JUNE 2026'!#REF!=\"\",\"\",'Risk template_JUNE 2026'!#REF!)","v":{"$error":"#REF!"}},{"$f":"IF('Risk template_JUNE 2026'!#REF!=\"\",\"\",'Risk template_JUNE 2026'!#REF!)","v":{"$error":"#REF!"}}]
[{"$f":"IF('Risk template_JUNE 2026'!#REF!=\"\",\"\",'Risk template_JUNE 2026'!#REF!)","v":{"$error":"#REF!"}},{"$f":"IF('Risk template_JUNE 2026'!#REF!=\"\",\"\",'Risk template_JUNE 2026'!#REF!)","v":{"$error":"#REF!"}},{"$f":"IF('Risk template_JUNE 2026'!#REF!=\"\",\"\",'Risk template_JUNE 2026'!#REF!)","v":{"$error":"#REF!"}},{"$f":"IF('Risk template_JUNE 2026'!#REF!=\"\",\"\",'Risk template_JUNE 2026'!#REF!)","v":{"$error":"#REF!"}},{"$f":"IF('Risk template_JUNE 2026'!#REF!=\"\",\"\",'Risk template_JUNE 2026'!#REF!)","v":{"$error":"#REF!"}},{"$f":"IF('Risk template_JUNE 2026'!#REF!=\"\",\"\",'Risk template_JUNE 2026'!#REF!)","v":{"$error":"#REF!"}},{"$f":"IF('Risk template_JUNE 2026'!#REF!=\"\",\"\",'Risk template_JUNE 2026'!#REF!)","v":{"$error":"#REF!"}},{"$f":"IF('Risk template_JUNE 2026'!#REF!=\"\",\"\",'Risk template_JUNE 2026'!#REF!)","v":{"$error":"#REF!"}},{"$f":"IF('Risk template_JUNE 2026'!#REF!=\"\",\"\",'Risk template_JUNE 2026'!#REF!)","v":{"$error":"#REF!"}},{"$f":"IF('Risk template_JUNE 2026'!#REF!=\"\",\"\",'Risk template_JUNE 2026'!#REF!)","v":{"$error":"#REF!"}},{"$f":"IF('Risk template_JUNE 2026'!#REF!=\"\",\"\",'Risk template_JUNE 2026'!#REF!)","v":{"$error":"#REF!"}},{"$f":"IF('Risk template_JUNE 2026'!#REF!=\"\",\"\",'Risk template_JUNE 2026'!#REF!)","v":{"$error":"#REF!"}}]
[{"$f":"IF('Risk template_JUNE 2026'!#REF!=\"\",\"\",'Risk template_JUNE 2026'!#REF!)","v":{"$error":"#REF!"}},{"$f":"IF('Risk template_JUNE 2026'!#REF!=\"\",\"\",'Risk template_JUNE 2026'!#REF!)","v":{"$error":"#REF!"}},{"$f":"IF('Risk template_JUNE 2026'!#REF!=\"\",\"\",'Risk template_JUNE 2026'!#REF!)","v":{"$error":"#REF!"}},{"$f":"IF('Risk template_JUNE 2026'!#REF!=\"\",\"\",'Risk template_JUNE 2026'!#REF!)","v":{"$error":"#REF!"}},{"$f":"IF('Risk template_JUNE 2026'!#REF!=\"\",\"\",'Risk template_JUNE 2026'!#REF!)","v":{"$error":"#REF!"}},{"$f":"IF('Risk template_JUNE 2026'!#REF!=\"\",\"\",'Risk template_JUNE 2026'!#REF!)","v":{"$error":"#REF!"}},{"$f":"IF('Risk template_JUNE 2026'!#REF!=\"\",\"\",'Risk template_JUNE 2026'!#REF!)","v":{"$error":"#REF!"}},{"$f":"IF('Risk template_JUNE 2026'!#REF!=\"\",\"\",'Risk template_JUNE 2026'!#REF!)","v":{"$error":"#REF!"}},{"$f":"IF('Risk template_JUNE 2026'!#REF!=\"\",\"\",'Risk template_JUNE 2026'!#REF!)","v":{"$error":"#REF!"}},{"$f":"IF('Risk template_JUNE 2026'!#REF!=\"\",\"\",'Risk template_JUNE 2026'!#REF!)","v":{"$error":"#REF!"}},{"$f":"IF('Risk template_JUNE 2026'!#REF!=\"\",\"\",'Risk template_JUNE 2026'!#REF!)","v":{"$error":"#REF!"}},{"$f":"IF('Risk template_JUNE 2026'!#REF!=\"\",\"\",'Risk template_JUNE 2026'!#REF!)","v":{"$error":"#REF!"}}]
[{"$f":"IF('Risk template_JUNE 2026'!#REF!=\"\",\"\",'Risk template_JUNE 2026'!#REF!)","v":{"$error":"#REF!"}},{"$f":"IF('Risk template_JUNE 2026'!#REF!=\"\",\"\",'Risk template_JUNE 2026'!#REF!)","v":{"$error":"#REF!"}},{"$f":"IF('Risk template_JUNE 2026'!#REF!=\"\",\"\",'Risk template_JUNE 2026'!#REF!)","v":{"$error":"#REF!"}},{"$f":"IF('Risk template_JUNE 2026'!#REF!=\"\",\"\",'Risk template_JUNE 2026'!#REF!)","v":{"$error":"#REF!"}},{"$f":"IF('Risk template_JUNE 2026'!#REF!=\"\",\"\",'Risk template_JUNE 2026'!#REF!)","v":{"$error":"#REF!"}},{"$f":"IF('Risk template_JUNE 2026'!#REF!=\"\",\"\",'Risk template_JUNE 2026'!#REF!)","v":{"$error":"#REF!"}},{"$f":"IF('Risk template_JUNE 2026'!#REF!=\"\",\"\",'Risk template_JUNE 2026'!#REF!)","v":{"$error":"#REF!"}},{"$f":"IF('Risk template_JUNE 2026'!#REF!=\"\",\"\",'Risk template_JUNE 2026'!#REF!)","v":{"$error":"#REF!"}},{"$f":"IF('Risk template_JUNE 2026'!#REF!=\"\",\"\",'Risk template_JUNE 2026'!#REF!)","v":{"$error":"#REF!"}},{"$f":"IF('Risk template_JUNE 2026'!#REF!=\"\",\"\",'Risk template_JUNE 2026'!#REF!)","v":{"$error":"#REF!"}},{"$f":"IF('Risk template_JUNE 2026'!#REF!=\"\",\"\",'Risk template_JUNE 2026'!#REF!)","v":{"$error":"#REF!"}},{"$f":"IF('Risk template_JUNE 2026'!#REF!=\"\",\"\",'Risk template_JUNE 2026'!#REF!)","v":{"$error":"#REF!"}}]
[{"$f":"IF('Risk template_JUNE 2026'!#REF!=\"\",\"\",'Risk template_JUNE 2026'!#REF!)","v":{"$error":"#REF!"}},{"$f":"IF('Risk template_JUNE 2026'!#REF!=\"\",\"\",'Risk template_JUNE 2026'!#REF!)","v":{"$error":"#REF!"}},{"$f":"IF('Risk template_JUNE 2026'!#REF!=\"\",\"\",'Risk template_JUNE 2026'!#REF!)","v":{"$error":"#REF!"}},{"$f":"IF('Risk template_JUNE 2026'!#REF!=\"\",\"\",'Risk template_JUNE 2026'!#REF!)","v":{"$error":"#REF!"}},{"$f":"IF('Risk template_JUNE 2026'!#REF!=\"\",\"\",'Risk template_JUNE 2026'!#REF!)","v":{"$error":"#REF!"}},{"$f":"IF('Risk template_JUNE 2026'!#REF!=\"\",\"\",'Risk template_JUNE 2026'!#REF!)","v":{"$error":"#REF!"}},{"$f":"IF('Risk template_JUNE 2026'!#REF!=\"\",\"\",'Risk template_JUNE 2026'!#REF!)","v":{"$error":"#REF!"}},{"$f":"IF('Risk template_JUNE 2026'!#REF!=\"\",\"\",'Risk template_JUNE 2026'!#REF!)","v":{"$error":"#REF!"}},{"$f":"IF('Risk template_JUNE 2026'!#REF!=\"\",\"\",'Risk template_JUNE 2026'!#REF!)","v":{"$error":"#REF!"}},{"$f":"IF('Risk template_JUNE 2026'!#REF!=\"\",\"\",'Risk template_JUNE 2026'!#REF!)","v":{"$error":"#REF!"}},{"$f":"IF('Risk template_JUNE 2026'!#REF!=\"\",\"\",'Risk template_JUNE 2026'!#REF!)","v":{"$error":"#REF!"}},{"$f":"IF('Risk template_JUNE 2026'!#REF!=\"\",\"\",'Risk template_JUNE 2026'!#REF!)","v":{"$error":"#REF!"}}]
[{"$f":"IF('Risk template_JUNE 2026'!#REF!=\"\",\"\",'Risk template_JUNE 2026'!#REF!)","v":{"$error":"#REF!"}},{"$f":"IF('Risk template_JUNE 2026'!#REF!=\"\",\"\",'Risk template_JUNE 2026'!#REF!)","v":{"$error":"#REF!"}},{"$f":"IF('Risk template_JUNE 2026'!#REF!=\"\",\"\",'Risk template_JUNE 2026'!#REF!)","v":{"$error":"#REF!"}},{"$f":"IF('Risk template_JUNE 2026'!#REF!=\"\",\"\",'Risk template_JUNE 2026'!#REF!)","v":{"$error":"#REF!"}},{"$f":"IF('Risk template_JUNE 2026'!#REF!=\"\",\"\",'Risk template_JUNE 2026'!#REF!)","v":{"$error":"#REF!"}},{"$f":"IF('Risk template_JUNE 2026'!#REF!=\"\",\"\",'Risk template_JUNE 2026'!#REF!)","v":{"$error":"#REF!"}},{"$f":"IF('Risk template_JUNE 2026'!#REF!=\"\",\"\",'Risk template_JUNE 2026'!#REF!)","v":{"$error":"#REF!"}},{"$f":"IF('Risk template_JUNE 2026'!#REF!=\"\",\"\",'Risk template_JUNE 2026'!#REF!)","v":{"$error":"#REF!"}},{"$f":"IF('Risk template_JUNE 2026'!#REF!=\"\",\"\",'Risk template_JUNE 2026'!#REF!)","v":{"$error":"#REF!"}},{"$f":"IF('Risk template_JUNE 2026'!#REF!=\"\",\"\",'Risk template_JUNE 2026'!#REF!)","v":{"$error":"#REF!"}},{"$f":"IF('Risk template_JUNE 2026'!#REF!=\"\",\"\",'Risk template_JUNE 2026'!#REF!)","v":{"$error":"#REF!"}},{"$f":"IF('Risk template_JUNE 2026'!#REF!=\"\",\"\",'Risk template_JUNE 2026'!#REF!)","v":{"$error":"#REF!"}}]
[{"$f":"IF('Risk template_JUNE 2026'!#REF!=\"\",\"\",'Risk template_JUNE 2026'!#REF!)","v":{"$error":"#REF!"}},{"$f":"IF('Risk template_JUNE 2026'!#REF!=\"\",\"\",'Risk template_JUNE 2026'!#REF!)","v":{"$error":"#REF!"}},{"$f":"IF('Risk template_JUNE 2026'!#REF!=\"\",\"\",'Risk template_JUNE 2026'!#REF!)","v":{"$error":"#REF!"}},{"$f":"IF('Risk template_JUNE 2026'!#REF!=\"\",\"\",'Risk template_JUNE 2026'!#REF!)","v":{"$error":"#REF!"}},{"$f":"IF('Risk template_JUNE 2026'!#REF!=\"\",\"\",'Risk template_JUNE 2026'!#REF!)","v":{"$error":"#REF!"}},{"$f":"IF('Risk template_JUNE 2026'!#REF!=\"\",\"\",'Risk template_JUNE 2026'!#REF!)","v":{"$error":"#REF!"}},{"$f":"IF('Risk template_JUNE 2026'!#REF!=\"\",\"\",'Risk template_JUNE 2026'!#REF!)","v":{"$error":"#REF!"}},{"$f":"IF('Risk template_JUNE 2026'!#REF!=\"\",\"\",'Risk template_JUNE 2026'!#REF!)","v":{"$error":"#REF!"}},{"$f":"IF('Risk template_JUNE 2026'!#REF!=\"\",\"\",'Risk template_JUNE 2026'!#REF!)","v":{"$error":"#REF!"}},{"$f":"IF('Risk template_JUNE 2026'!#REF!=\"\",\"\",'Risk template_JUNE 2026'!#REF!)","v":{"$error":"#REF!"}},{"$f":"IF('Risk template_JUNE 2026'!#REF!=\"\",\"\",'Risk template_JUNE 2026'!#REF!)","v":{"$error":"#REF!"}},{"$f":"IF('Risk template_JUNE 2026'!#REF!=\"\",\"\",'Risk template_JUNE 2026'!#REF!)","v":{"$error":"#REF!"}}]
[{"$f":"IF('Risk template_JUNE 2026'!#REF!=\"\",\"\",'Risk template_JUNE 2026'!#REF!)","v":{"$error":"#REF!"}},{"$f":"IF('Risk template_JUNE 2026'!#REF!=\"\",\"\",'Risk template_JUNE 2026'!#REF!)","v":{"$error":"#REF!"}},{"$f":"IF('Risk template_JUNE 2026'!#REF!=\"\",\"\",'Risk template_JUNE 2026'!#REF!)","v":{"$error":"#REF!"}},{"$f":"IF('Risk template_JUNE 2026'!#REF!=\"\",\"\",'Risk template_JUNE 2026'!#REF!)","v":{"$error":"#REF!"}},{"$f":"IF('Risk template_JUNE 2026'!#REF!=\"\",\"\",'Risk template_JUNE 2026'!#REF!)","v":{"$error":"#REF!"}},{"$f":"IF('Risk template_JUNE 2026'!#REF!=\"\",\"\",'Risk template_JUNE 2026'!#REF!)","v":{"$error":"#REF!"}},{"$f":"IF('Risk template_JUNE 2026'!#REF!=\"\",\"\",'Risk template_JUNE 2026'!#REF!)","v":{"$error":"#REF!"}},{"$f":"IF('Risk template_JUNE 2026'!#REF!=\"\",\"\",'Risk template_JUNE 2026'!#REF!)","v":{"$error":"#REF!"}},{"$f":"IF('Risk template_JUNE 2026'!#REF!=\"\",\"\",'Risk template_JUNE 2026'!#REF!)","v":{"$error":"#REF!"}},{"$f":"IF('Risk template_JUNE 2026'!#REF!=\"\",\"\",'Risk template_JUNE 2026'!#REF!)","v":{"$error":"#REF!"}},{"$f":"IF('Risk template_JUNE 2026'!#REF!=\"\",\"\",'Risk template_JUNE 2026'!#REF!)","v":{"$error":"#REF!"}},{"$f":"IF('Risk template_JUNE 2026'!#REF!=\"\",\"\",'Risk template_JUNE 2026'!#REF!)","v":{"$error":"#REF!"}}]
[{"$f":"IF('Risk template_JUNE 2026'!#REF!=\"\",\"\",'Risk template_JUNE 2026'!#REF!)","v":{"$error":"#REF!"}},{"$f":"IF('Risk template_JUNE 2026'!#REF!=\"\",\"\",'Risk template_JUNE 2026'!#REF!)","v":{"$error":"#REF!"}},{"$f":"IF('Risk template_JUNE 2026'!#REF!=\"\",\"\",'Risk template_JUNE 2026'!#REF!)","v":{"$error":"#REF!"}},{"$f":"IF('Risk template_JUNE 2026'!#REF!=\"\",\"\",'Risk template_JUNE 2026'!#REF!)","v":{"$error":"#REF!"}},{"$f":"IF('Risk template_JUNE 2026'!#REF!=\"\",\"\",'Risk template_JUNE 2026'!#REF!)","v":{"$error":"#REF!"}},{"$f":"IF('Risk template_JUNE 2026'!#REF!=\"\",\"\",'Risk template_JUNE 2026'!#REF!)","v":{"$error":"#REF!"}},{"$f":"IF('Risk template_JUNE 2026'!#REF!=\"\",\"\",'Risk template_JUNE 2026'!#REF!)","v":{"$error":"#REF!"}},{"$f":"IF('Risk template_JUNE 2026'!#REF!=\"\",\"\",'Risk template_JUNE 2026'!#REF!)","v":{"$error":"#REF!"}},{"$f":"IF('Risk template_JUNE 2026'!#REF!=\"\",\"\",'Risk template_JUNE 2026'!#REF!)","v":{"$error":"#REF!"}},{"$f":"IF('Risk template_JUNE 2026'!#REF!=\"\",\"\",'Risk template_JUNE 2026'!#REF!)","v":{"$error":"#REF!"}},{"$f":"IF('Risk template_JUNE 2026'!#REF!=\"\",\"\",'Risk template_JUNE 2026'!#REF!)","v":{"$error":"#REF!"}},{"$f":"IF('Risk template_JUNE 2026'!#REF!=\"\",\"\",'Risk template_JUNE 2026'!#REF!)","v":{"$error":"#REF!"}}]
[{"$f":"IF('Risk template_JUNE 2026'!#REF!=\"\",\"\",'Risk template_JUNE 2026'!#REF!)","v":{"$error":"#REF!"}},{"$f":"IF('Risk template_JUNE 2026'!#REF!=\"\",\"\",'Risk template_JUNE 2026'!#REF!)","v":{"$error":"#REF!"}},{"$f":"IF('Risk template_JUNE 2026'!#REF!=\"\",\"\",'Risk template_JUNE 2026'!#REF!)","v":{"$error":"#REF!"}},{"$f":"IF('Risk template_JUNE 2026'!#REF!=\"\",\"\",'Risk template_JUNE 2026'!#REF!)","v":{"$error":"#REF!"}},{"$f":"IF('Risk template_JUNE 2026'!#REF!=\"\",\"\",'Risk template_JUNE 2026'!#REF!)","v":{"$error":"#REF!"}},{"$f":"IF('Risk template_JUNE 2026'!#REF!=\"\",\"\",'Risk template_JUNE 2026'!#REF!)","v":{"$error":"#REF!"}},{"$f":"IF('Risk template_JUNE 2026'!#REF!=\"\",\"\",'Risk template_JUNE 2026'!#REF!)","v":{"$error":"#REF!"}},{"$f":"IF('Risk template_JUNE 2026'!#REF!=\"\",\"\",'Risk template_JUNE 2026'!#REF!)","v":{"$error":"#REF!"}},{"$f":"IF('Risk template_JUNE 2026'!#REF!=\"\",\"\",'Risk template_JUNE 2026'!#REF!)","v":{"$error":"#REF!"}},{"$f":"IF('Risk template_JUNE 2026'!#REF!=\"\",\"\",'Risk template_JUNE 2026'!#REF!)","v":{"$error":"#REF!"}},{"$f":"IF('Risk template_JUNE 2026'!#REF!=\"\",\"\",'Risk template_JUNE 2026'!#REF!)","v":{"$error":"#REF!"}},{"$f":"IF('Risk template_JUNE 2026'!#REF!=\"\",\"\",'Risk template_JUNE 2026'!#REF!)","v":{"$error":"#REF!"}}]
[{"$f":"IF('Risk template_JUNE 2026'!#REF!=\"\",\"\",'Risk template_JUNE 2026'!#REF!)","v":{"$error":"#REF!"}},{"$f":"IF('Risk template_JUNE 2026'!#REF!=\"\",\"\",'Risk template_JUNE 2026'!#REF!)","v":{"$error":"#REF!"}},{"$f":"IF('Risk template_JUNE 2026'!#REF!=\"\",\"\",'Risk template_JUNE 2026'!#REF!)","v":{"$error":"#REF!"}},{"$f":"IF('Risk template_JUNE 2026'!#REF!=\"\",\"\",'Risk template_JUNE 2026'!#REF!)","v":{"$error":"#REF!"}},{"$f":"IF('Risk template_JUNE 2026'!#REF!=\"\",\"\",'Risk template_JUNE 2026'!#REF!)","v":{"$error":"#REF!"}},{"$f":"IF('Risk template_JUNE 2026'!#REF!=\"\",\"\",'Risk template_JUNE 2026'!#REF!)","v":{"$error":"#REF!"}},{"$f":"IF('Risk template_JUNE 2026'!#REF!=\"\",\"\",'Risk template_JUNE 2026'!#REF!)","v":{"$error":"#REF!"}},{"$f":"IF('Risk template_JUNE 2026'!#REF!=\"\",\"\",'Risk template_JUNE 2026'!#REF!)","v":{"$error":"#REF!"}},{"$f":"IF('Risk template_JUNE 2026'!#REF!=\"\",\"\",'Risk template_JUNE 2026'!#REF!)","v":{"$error":"#REF!"}},{"$f":"IF('Risk template_JUNE 2026'!#REF!=\"\",\"\",'Risk template_JUNE 2026'!#REF!)","v":{"$error":"#REF!"}},{"$f":"IF('Risk template_JUNE 2026'!#REF!=\"\",\"\",'Risk template_JUNE 2026'!#REF!)","v":{"$error":"#REF!"}},{"$f":"IF('Risk template_JUNE 2026'!#REF!=\"\",\"\",'Risk template_JUNE 2026'!#REF!)","v":{"$error":"#REF!"}}]
[{"$f":"IF('Risk template_JUNE 2026'!#REF!=\"\",\"\",'Risk template_JUNE 2026'!#REF!)","v":{"$error":"#REF!"}},{"$f":"IF('Risk template_JUNE 2026'!#REF!=\"\",\"\",'Risk template_JUNE 2026'!#REF!)","v":{"$error":"#REF!"}},{"$f":"IF('Risk template_JUNE 2026'!#REF!=\"\",\"\",'Risk template_JUNE 2026'!#REF!)","v":{"$error":"#REF!"}},{"$f":"IF('Risk template_JUNE 2026'!#REF!=\"\",\"\",'Risk template_JUNE 2026'!#REF!)","v":{"$error":"#REF!"}},{"$f":"IF('Risk template_JUNE 2026'!#REF!=\"\",\"\",'Risk template_JUNE 2026'!#REF!)","v":{"$error":"#REF!"}},{"$f":"IF('Risk template_JUNE 2026'!#REF!=\"\",\"\",'Risk template_JUNE 2026'!#REF!)","v":{"$error":"#REF!"}},{"$f":"IF('Risk template_JUNE 2026'!#REF!=\"\",\"\",'Risk template_JUNE 2026'!#REF!)","v":{"$error":"#REF!"}},{"$f":"IF('Risk template_JUNE 2026'!#REF!=\"\",\"\",'Risk template_JUNE 2026'!#REF!)","v":{"$error":"#REF!"}},{"$f":"IF('Risk template_JUNE 2026'!#REF!=\"\",\"\",'Risk template_JUNE 2026'!#REF!)","v":{"$error":"#REF!"}},{"$f":"IF('Risk template_JUNE 2026'!#REF!=\"\",\"\",'Risk template_JUNE 2026'!#REF!)","v":{"$error":"#REF!"}},{"$f":"IF('Risk template_JUNE 2026'!#REF!=\"\",\"\",'Risk template_JUNE 2026'!#REF!)","v":{"$error":"#REF!"}},{"$f":"IF('Risk template_JUNE 2026'!#REF!=\"\",\"\",'Risk template_JUNE 2026'!#REF!)","v":{"$error":"#REF!"}}]
[{"$f":"IF('Risk template_JUNE 2026'!#REF!=\"\",\"\",'Risk template_JUNE 2026'!#REF!)","v":{"$error":"#REF!"}},{"$f":"IF('Risk template_JUNE 2026'!#REF!=\"\",\"\",'Risk template_JUNE 2026'!#REF!)","v":{"$error":"#REF!"}},{"$f":"IF('Risk template_JUNE 2026'!#REF!=\"\",\"\",'Risk template_JUNE 2026'!#REF!)","v":{"$error":"#REF!"}},{"$f":"IF('Risk template_JUNE 2026'!#REF!=\"\",\"\",'Risk template_JUNE 2026'!#REF!)","v":{"$error":"#REF!"}},{"$f":"IF('Risk template_JUNE 2026'!#REF!=\"\",\"\",'Risk template_JUNE 2026'!#REF!)","v":{"$error":"#REF!"}},{"$f":"IF('Risk template_JUNE 2026'!#REF!=\"\",\"\",'Risk template_JUNE 2026'!#REF!)","v":{"$error":"#REF!"}},{"$f":"IF('Risk template_JUNE 2026'!#REF!=\"\",\"\",'Risk template_JUNE 2026'!#REF!)","v":{"$error":"#REF!"}},{"$f":"IF('Risk template_JUNE 2026'!#REF!=\"\",\"\",'Risk template_JUNE 2026'!#REF!)","v":{"$error":"#REF!"}},{"$f":"IF('Risk template_JUNE 2026'!#REF!=\"\",\"\",'Risk template_JUNE 2026'!#REF!)","v":{"$error":"#REF!"}},{"$f":"IF('Risk template_JUNE 2026'!#REF!=\"\",\"\",'Risk template_JUNE 2026'!#REF!)","v":{"$error":"#REF!"}},{"$f":"IF('Risk template_JUNE 2026'!#REF!=\"\",\"\",'Risk template_JUNE 2026'!#REF!)","v":{"$error":"#REF!"}},{"$f":"IF('Risk template_JUNE 2026'!#REF!=\"\",\"\",'Risk template_JUNE 2026'!#REF!)","v":{"$error":"#REF!"}}]
[{"$f":"IF('Risk template_JUNE 2026'!#REF!=\"\",\"\",'Risk template_JUNE 2026'!#REF!)","v":{"$error":"#REF!"}},{"$f":"IF('Risk template_JUNE 2026'!#REF!=\"\",\"\",'Risk template_JUNE 2026'!#REF!)","v":{"$error":"#REF!"}},{"$f":"IF('Risk template_JUNE 2026'!#REF!=\"\",\"\",'Risk template_JUNE 2026'!#REF!)","v":{"$error":"#REF!"}},{"$f":"IF('Risk template_JUNE 2026'!#REF!=\"\",\"\",'Risk template_JUNE 2026'!#REF!)","v":{"$error":"#REF!"}},{"$f":"IF('Risk template_JUNE 2026'!#REF!=\"\",\"\",'Risk template_JUNE 2026'!#REF!)","v":{"$error":"#REF!"}},{"$f":"IF('Risk template_JUNE 2026'!#REF!=\"\",\"\",'Risk template_JUNE 2026'!#REF!)","v":{"$error":"#REF!"}},{"$f":"IF('Risk template_JUNE 2026'!#REF!=\"\",\"\",'Risk template_JUNE 2026'!#REF!)","v":{"$error":"#REF!"}},{"$f":"IF('Risk template_JUNE 2026'!#REF!=\"\",\"\",'Risk template_JUNE 2026'!#REF!)","v":{"$error":"#REF!"}},{"$f":"IF('Risk template_JUNE 2026'!#REF!=\"\",\"\",'Risk template_JUNE 2026'!#REF!)","v":{"$error":"#REF!"}},{"$f":"IF('Risk template_JUNE 2026'!#REF!=\"\",\"\",'Risk template_JUNE 2026'!#REF!)","v":{"$error":"#REF!"}},{"$f":"IF('Risk template_JUNE 2026'!#REF!=\"\",\"\",'Risk template_JUNE 2026'!#REF!)","v":{"$error":"#REF!"}},{"$f":"IF('Risk template_JUNE 2026'!#REF!=\"\",\"\",'Risk template_JUNE 2026'!#REF!)","v":{"$error":"#REF!"}}]
[{"$f":"IF('Risk template_JUNE 2026'!#REF!=\"\",\"\",'Risk template_JUNE 2026'!#REF!)","v":{"$error":"#REF!"}},{"$f":"IF('Risk template_JUNE 2026'!#REF!=\"\",\"\",'Risk template_JUNE 2026'!#REF!)","v":{"$error":"#REF!"}},{"$f":"IF('Risk template_JUNE 2026'!#REF!=\"\",\"\",'Risk template_JUNE 2026'!#REF!)","v":{"$error":"#REF!"}},{"$f":"IF('Risk template_JUNE 2026'!#REF!=\"\",\"\",'Risk template_JUNE 2026'!#REF!)","v":{"$error":"#REF!"}},{"$f":"IF('Risk template_JUNE 2026'!#REF!=\"\",\"\",'Risk template_JUNE 2026'!#REF!)","v":{"$error":"#REF!"}},{"$f":"IF('Risk template_JUNE 2026'!#REF!=\"\",\"\",'Risk template_JUNE 2026'!#REF!)","v":{"$error":"#REF!"}},{"$f":"IF('Risk template_JUNE 2026'!#REF!=\"\",\"\",'Risk template_JUNE 2026'!#REF!)","v":{"$error":"#REF!"}},{"$f":"IF('Risk template_JUNE 2026'!#REF!=\"\",\"\",'Risk template_JUNE 2026'!#REF!)","v":{"$error":"#REF!"}},{"$f":"IF('Risk template_JUNE 2026'!#REF!=\"\",\"\",'Risk template_JUNE 2026'!#REF!)","v":{"$error":"#REF!"}},{"$f":"IF('Risk template_JUNE 2026'!#REF!=\"\",\"\",'Risk template_JUNE 2026'!#REF!)","v":{"$error":"#REF!"}},{"$f":"IF('Risk template_JUNE 2026'!#REF!=\"\",\"\",'Risk template_JUNE 2026'!#REF!)","v":{"$error":"#REF!"}},{"$f":"IF('Risk template_JUNE 2026'!#REF!=\"\",\"\",'Risk template_JUNE 2026'!#REF!)","v":{"$error":"#REF!"}}]
[{"$f":"IF('Risk template_JUNE 2026'!#REF!=\"\",\"\",'Risk template_JUNE 2026'!#REF!)","v":{"$error":"#REF!"}},{"$f":"IF('Risk template_JUNE 2026'!#REF!=\"\",\"\",'Risk template_JUNE 2026'!#REF!)","v":{"$error":"#REF!"}},{"$f":"IF('Risk template_JUNE 2026'!#REF!=\"\",\"\",'Risk template_JUNE 2026'!#REF!)","v":{"$error":"#REF!"}},{"$f":"IF('Risk template_JUNE 2026'!#REF!=\"\",\"\",'Risk template_JUNE 2026'!#REF!)","v":{"$error":"#REF!"}},{"$f":"IF('Risk template_JUNE 2026'!#REF!=\"\",\"\",'Risk template_JUNE 2026'!#REF!)","v":{"$error":"#REF!"}},{"$f":"IF('Risk template_JUNE 2026'!#REF!=\"\",\"\",'Risk template_JUNE 2026'!#REF!)","v":{"$error":"#REF!"}},{"$f":"IF('Risk template_JUNE 2026'!#REF!=\"\",\"\",'Risk template_JUNE 2026'!#REF!)","v":{"$error":"#REF!"}},{"$f":"IF('Risk template_JUNE 2026'!#REF!=\"\",\"\",'Risk template_JUNE 2026'!#REF!)","v":{"$error":"#REF!"}},{"$f":"IF('Risk template_JUNE 2026'!#REF!=\"\",\"\",'Risk template_JUNE 2026'!#REF!)","v":{"$error":"#REF!"}},{"$f":"IF('Risk template_JUNE 2026'!#REF!=\"\",\"\",'Risk template_JUNE 2026'!#REF!)","v":{"$error":"#REF!"}},{"$f":"IF('Risk template_JUNE 2026'!#REF!=\"\",\"\",'Risk template_JUNE 2026'!#REF!)","v":{"$error":"#REF!"}},{"$f":"IF('Risk template_JUNE 2026'!#REF!=\"\",\"\",'Risk template_JUNE 2026'!#REF!)","v":{"$error":"#REF!"}}]
[{"$f":"IF('Risk template_JUNE 2026'!#REF!=\"\",\"\",'Risk template_JUNE 2026'!#REF!)","v":{"$error":"#REF!"}},{"$f":"IF('Risk template_JUNE 2026'!#REF!=\"\",\"\",'Risk template_JUNE 2026'!#REF!)","v":{"$error":"#REF!"}},{"$f":"IF('Risk template_JUNE 2026'!#REF!=\"\",\"\",'Risk template_JUNE 2026'!#REF!)","v":{"$error":"#REF!"}},{"$f":"IF('Risk template_JUNE 2026'!#REF!=\"\",\"\",'Risk template_JUNE 2026'!#REF!)","v":{"$error":"#REF!"}},{"$f":"IF('Risk template_JUNE 2026'!#REF!=\"\",\"\",'Risk template_JUNE 2026'!#REF!)","v":{"$error":"#REF!"}},{"$f":"IF('Risk template_JUNE 2026'!#REF!=\"\",\"\",'Risk template_JUNE 2026'!#REF!)","v":{"$error":"#REF!"}},{"$f":"IF('Risk template_JUNE 2026'!#REF!=\"\",\"\",'Risk template_JUNE 2026'!#REF!)","v":{"$error":"#REF!"}},{"$f":"IF('Risk template_JUNE 2026'!#REF!=\"\",\"\",'Risk template_JUNE 2026'!#REF!)","v":{"$error":"#REF!"}},{"$f":"IF('Risk template_JUNE 2026'!#REF!=\"\",\"\",'Risk template_JUNE 2026'!#REF!)","v":{"$error":"#REF!"}},{"$f":"IF('Risk template_JUNE 2026'!#REF!=\"\",\"\",'Risk template_JUNE 2026'!#REF!)","v":{"$error":"#REF!"}},{"$f":"IF('Risk template_JUNE 2026'!#REF!=\"\",\"\",'Risk template_JUNE 2026'!#REF!)","v":{"$error":"#REF!"}},{"$f":"IF('Risk template_JUNE 2026'!#REF!=\"\",\"\",'Risk template_JUNE 2026'!#REF!)","v":{"$error":"#REF!"}}]
[{"$f":"IF('Risk template_JUNE 2026'!#REF!=\"\",\"\",'Risk template_JUNE 2026'!#REF!)","v":{"$error":"#REF!"}},{"$f":"IF('Risk template_JUNE 2026'!#REF!=\"\",\"\",'Risk template_JUNE 2026'!#REF!)","v":{"$error":"#REF!"}},{"$f":"IF('Risk template_JUNE 2026'!#REF!=\"\",\"\",'Risk template_JUNE 2026'!#REF!)","v":{"$error":"#REF!"}},{"$f":"IF('Risk template_JUNE 2026'!#REF!=\"\",\"\",'Risk template_JUNE 2026'!#REF!)","v":{"$error":"#REF!"}},{"$f":"IF('Risk template_JUNE 2026'!#REF!=\"\",\"\",'Risk template_JUNE 2026'!#REF!)","v":{"$error":"#REF!"}},{"$f":"IF('Risk template_JUNE 2026'!#REF!=\"\",\"\",'Risk template_JUNE 2026'!#REF!)","v":{"$error":"#REF!"}},{"$f":"IF('Risk template_JUNE 2026'!#REF!=\"\",\"\",'Risk template_JUNE 2026'!#REF!)","v":{"$error":"#REF!"}},{"$f":"IF('Risk template_JUNE 2026'!#REF!=\"\",\"\",'Risk template_JUNE 2026'!#REF!)","v":{"$error":"#REF!"}},{"$f":"IF('Risk template_JUNE 2026'!#REF!=\"\",\"\",'Risk template_JUNE 2026'!#REF!)","v":{"$error":"#REF!"}},{"$f":"IF('Risk template_JUNE 2026'!#REF!=\"\",\"\",'Risk template_JUNE 2026'!#REF!)","v":{"$error":"#REF!"}},{"$f":"IF('Risk template_JUNE 2026'!#REF!=\"\",\"\",'Risk template_JUNE 2026'!#REF!)","v":{"$error":"#REF!"}},{"$f":"IF('Risk template_JUNE 2026'!#REF!=\"\",\"\",'Risk template_JUNE 2026'!#REF!)","v":{"$error":"#REF!"}}]
[{"$f":"IF('Risk template_JUNE 2026'!#REF!=\"\",\"\",'Risk template_JUNE 2026'!#REF!)","v":{"$error":"#REF!"}},{"$f":"IF('Risk template_JUNE 2026'!#REF!=\"\",\"\",'Risk template_JUNE 2026'!#REF!)","v":{"$error":"#REF!"}},{"$f":"IF('Risk template_JUNE 2026'!#REF!=\"\",\"\",'Risk template_JUNE 2026'!#REF!)","v":{"$error":"#REF!"}},{"$f":"IF('Risk template_JUNE 2026'!#REF!=\"\",\"\",'Risk template_JUNE 2026'!#REF!)","v":{"$error":"#REF!"}},{"$f":"IF('Risk template_JUNE 2026'!#REF!=\"\",\"\",'Risk template_JUNE 2026'!#REF!)","v":{"$error":"#REF!"}},{"$f":"IF('Risk template_JUNE 2026'!#REF!=\"\",\"\",'Risk template_JUNE 2026'!#REF!)","v":{"$error":"#REF!"}},{"$f":"IF('Risk template_JUNE 2026'!#REF!=\"\",\"\",'Risk template_JUNE 2026'!#REF!)","v":{"$error":"#REF!"}},{"$f":"IF('Risk template_JUNE 2026'!#REF!=\"\",\"\",'Risk template_JUNE 2026'!#REF!)","v":{"$error":"#REF!"}},{"$f":"IF('Risk template_JUNE 2026'!#REF!=\"\",\"\",'Risk template_JUNE 2026'!#REF!)","v":{"$error":"#REF!"}},{"$f":"IF('Risk template_JUNE 2026'!#REF!=\"\",\"\",'Risk template_JUNE 2026'!#REF!)","v":{"$error":"#REF!"}},{"$f":"IF('Risk template_JUNE 2026'!#REF!=\"\",\"\",'Risk template_JUNE 2026'!#REF!)","v":{"$error":"#REF!"}},{"$f":"IF('Risk template_JUNE 2026'!#REF!=\"\",\"\",'Risk template_JUNE 2026'!#REF!)","v":{"$error":"#REF!"}}]
[{"$f":"IF('Risk template_JUNE 2026'!#REF!=\"\",\"\",'Risk template_JUNE 2026'!#REF!)","v":{"$error":"#REF!"}},{"$f":"IF('Risk template_JUNE 2026'!#REF!=\"\",\"\",'Risk template_JUNE 2026'!#REF!)","v":{"$error":"#REF!"}},{"$f":"IF('Risk template_JUNE 2026'!#REF!=\"\",\"\",'Risk template_JUNE 2026'!#REF!)","v":{"$error":"#REF!"}},{"$f":"IF('Risk template_JUNE 2026'!#REF!=\"\",\"\",'Risk template_JUNE 2026'!#REF!)","v":{"$error":"#REF!"}},{"$f":"IF('Risk template_JUNE 2026'!#REF!=\"\",\"\",'Risk template_JUNE 2026'!#REF!)","v":{"$error":"#REF!"}},{"$f":"IF('Risk template_JUNE 2026'!#REF!=\"\",\"\",'Risk template_JUNE 2026'!#REF!)","v":{"$error":"#REF!"}},{"$f":"IF('Risk template_JUNE 2026'!#REF!=\"\",\"\",'Risk template_JUNE 2026'!#REF!)","v":{"$error":"#REF!"}},{"$f":"IF('Risk template_JUNE 2026'!#REF!=\"\",\"\",'Risk template_JUNE 2026'!#REF!)","v":{"$error":"#REF!"}},{"$f":"IF('Risk template_JUNE 2026'!#REF!=\"\",\"\",'Risk template_JUNE 2026'!#REF!)","v":{"$error":"#REF!"}},{"$f":"IF('Risk template_JUNE 2026'!#REF!=\"\",\"\",'Risk template_JUNE 2026'!#REF!)","v":{"$error":"#REF!"}},{"$f":"IF('Risk template_JUNE 2026'!#REF!=\"\",\"\",'Risk template_JUNE 2026'!#REF!)","v":{"$error":"#REF!"}},{"$f":"IF('Risk template_JUNE 2026'!#REF!=\"\",\"\",'Risk template_JUNE 2026'!#REF!)","v":{"$error":"#REF!"}}]
[{"$f":"IF('Risk template_JUNE 2026'!#REF!=\"\",\"\",'Risk template_JUNE 2026'!#REF!)","v":{"$error":"#REF!"}},{"$f":"IF('Risk template_JUNE 2026'!#REF!=\"\",\"\",'Risk template_JUNE 2026'!#REF!)","v":{"$error":"#REF!"}},{"$f":"IF('Risk template_JUNE 2026'!#REF!=\"\",\"\",'Risk template_JUNE 2026'!#REF!)","v":{"$error":"#REF!"}},{"$f":"IF('Risk template_JUNE 2026'!#REF!=\"\",\"\",'Risk template_JUNE 2026'!#REF!)","v":{"$error":"#REF!"}},{"$f":"IF('Risk template_JUNE 2026'!#REF!=\"\",\"\",'Risk template_JUNE 2026'!#REF!)","v":{"$error":"#REF!"}},{"$f":"IF('Risk template_JUNE 2026'!#REF!=\"\",\"\",'Risk template_JUNE 2026'!#REF!)","v":{"$error":"#REF!"}},{"$f":"IF('Risk template_JUNE 2026'!#REF!=\"\",\"\",'Risk template_JUNE 2026'!#REF!)","v":{"$error":"#REF!"}},{"$f":"IF('Risk template_JUNE 2026'!#REF!=\"\",\"\",'Risk template_JUNE 2026'!#REF!)","v":{"$error":"#REF!"}},{"$f":"IF('Risk template_JUNE 2026'!#REF!=\"\",\"\",'Risk template_JUNE 2026'!#REF!)","v":{"$error":"#REF!"}},{"$f":"IF('Risk template_JUNE 2026'!#REF!=\"\",\"\",'Risk template_JUNE 2026'!#REF!)","v":{"$error":"#REF!"}},{"$f":"IF('Risk template_JUNE 2026'!#REF!=\"\",\"\",'Risk template_JUNE 2026'!#REF!)","v":{"$error":"#REF!"}},{"$f":"IF('Risk template_JUNE 2026'!#REF!=\"\",\"\",'Risk template_JUNE 2026'!#REF!)","v":{"$error":"#REF!"}}]
[{"$f":"IF('Risk template_JUNE 2026'!#REF!=\"\",\"\",'Risk template_JUNE 2026'!#REF!)","v":{"$error":"#REF!"}},{"$f":"IF('Risk template_JUNE 2026'!#REF!=\"\",\"\",'Risk template_JUNE 2026'!#REF!)","v":{"$error":"#REF!"}},{"$f":"IF('Risk template_JUNE 2026'!#REF!=\"\",\"\",'Risk template_JUNE 2026'!#REF!)","v":{"$error":"#REF!"}},{"$f":"IF('Risk template_JUNE 2026'!#REF!=\"\",\"\",'Risk template_JUNE 2026'!#REF!)","v":{"$error":"#REF!"}},{"$f":"IF('Risk template_JUNE 2026'!#REF!=\"\",\"\",'Risk template_JUNE 2026'!#REF!)","v":{"$error":"#REF!"}},{"$f":"IF('Risk template_JUNE 2026'!#REF!=\"\",\"\",'Risk template_JUNE 2026'!#REF!)","v":{"$error":"#REF!"}},{"$f":"IF('Risk template_JUNE 2026'!#REF!=\"\",\"\",'Risk template_JUNE 2026'!#REF!)","v":{"$error":"#REF!"}},{"$f":"IF('Risk template_JUNE 2026'!#REF!=\"\",\"\",'Risk template_JUNE 2026'!#REF!)","v":{"$error":"#REF!"}},{"$f":"IF('Risk template_JUNE 2026'!#REF!=\"\",\"\",'Risk template_JUNE 2026'!#REF!)","v":{"$error":"#REF!"}},{"$f":"IF('Risk template_JUNE 2026'!#REF!=\"\",\"\",'Risk template_JUNE 2026'!#REF!)","v":{"$error":"#REF!"}},{"$f":"IF('Risk template_JUNE 2026'!#REF!=\"\",\"\",'Risk template_JUNE 2026'!#REF!)","v":{"$error":"#REF!"}},{"$f":"IF('Risk template_JUNE 2026'!#REF!=\"\",\"\",'Risk template_JUNE 2026'!#REF!)","v":{"$error":"#REF!"}}]
[{"$f":"IF('Risk template_JUNE 2026'!#REF!=\"\",\"\",'Risk template_JUNE 2026'!#REF!)","v":{"$error":"#REF!"}},{"$f":"IF('Risk template_JUNE 2026'!#REF!=\"\",\"\",'Risk template_JUNE 2026'!#REF!)","v":{"$error":"#REF!"}},{"$f":"IF('Risk template_JUNE 2026'!#REF!=\"\",\"\",'Risk template_JUNE 2026'!#REF!)","v":{"$error":"#REF!"}},{"$f":"IF('Risk template_JUNE 2026'!#REF!=\"\",\"\",'Risk template_JUNE 2026'!#REF!)","v":{"$error":"#REF!"}},{"$f":"IF('Risk template_JUNE 2026'!#REF!=\"\",\"\",'Risk template_JUNE 2026'!#REF!)","v":{"$error":"#REF!"}},{"$f":"IF('Risk template_JUNE 2026'!#REF!=\"\",\"\",'Risk template_JUNE 2026'!#REF!)","v":{"$error":"#REF!"}},{"$f":"IF('Risk template_JUNE 2026'!#REF!=\"\",\"\",'Risk template_JUNE 2026'!#REF!)","v":{"$error":"#REF!"}},{"$f":"IF('Risk template_JUNE 2026'!#REF!=\"\",\"\",'Risk template_JUNE 2026'!#REF!)","v":{"$error":"#REF!"}},{"$f":"IF('Risk template_JUNE 2026'!#REF!=\"\",\"\",'Risk template_JUNE 2026'!#REF!)","v":{"$error":"#REF!"}},{"$f":"IF('Risk template_JUNE 2026'!#REF!=\"\",\"\",'Risk template_JUNE 2026'!#REF!)","v":{"$error":"#REF!"}},{"$f":"IF('Risk template_JUNE 2026'!#REF!=\"\",\"\",'Risk template_JUNE 2026'!#REF!)","v":{"$error":"#REF!"}},{"$f":"IF('Risk template_JUNE 2026'!#REF!=\"\",\"\",'Risk template_JUNE 2026'!#REF!)","v":{"$error":"#REF!"}}]
[{"$f":"IF('Risk template_JUNE 2026'!#REF!=\"\",\"\",'Risk template_JUNE 2026'!#REF!)","v":{"$error":"#REF!"}},{"$f":"IF('Risk template_JUNE 2026'!#REF!=\"\",\"\",'Risk template_JUNE 2026'!#REF!)","v":{"$error":"#REF!"}},{"$f":"IF('Risk template_JUNE 2026'!#REF!=\"\",\"\",'Risk template_JUNE 2026'!#REF!)","v":{"$error":"#REF!"}},{"$f":"IF('Risk template_JUNE 2026'!#REF!=\"\",\"\",'Risk template_JUNE 2026'!#REF!)","v":{"$error":"#REF!"}},{"$f":"IF('Risk template_JUNE 2026'!#REF!=\"\",\"\",'Risk template_JUNE 2026'!#REF!)","v":{"$error":"#REF!"}},{"$f":"IF('Risk template_JUNE 2026'!#REF!=\"\",\"\",'Risk template_JUNE 2026'!#REF!)","v":{"$error":"#REF!"}},{"$f":"IF('Risk template_JUNE 2026'!#REF!=\"\",\"\",'Risk template_JUNE 2026'!#REF!)","v":{"$error":"#REF!"}},{"$f":"IF('Risk template_JUNE 2026'!#REF!=\"\",\"\",'Risk template_JUNE 2026'!#REF!)","v":{"$error":"#REF!"}},{"$f":"IF('Risk template_JUNE 2026'!#REF!=\"\",\"\",'Risk template_JUNE 2026'!#REF!)","v":{"$error":"#REF!"}},{"$f":"IF('Risk template_JUNE 2026'!#REF!=\"\",\"\",'Risk template_JUNE 2026'!#REF!)","v":{"$error":"#REF!"}},{"$f":"IF('Risk template_JUNE 2026'!#REF!=\"\",\"\",'Risk template_JUNE 2026'!#REF!)","v":{"$error":"#REF!"}},{"$f":"IF('Risk template_JUNE 2026'!#REF!=\"\",\"\",'Risk template_JUNE 2026'!#REF!)","v":{"$error":"#REF!"}}]
[{"$f":"IF('Risk template_JUNE 2026'!#REF!=\"\",\"\",'Risk template_JUNE 2026'!#REF!)","v":{"$error":"#REF!"}},{"$f":"IF('Risk template_JUNE 2026'!#REF!=\"\",\"\",'Risk template_JUNE 2026'!#REF!)","v":{"$error":"#REF!"}},{"$f":"IF('Risk template_JUNE 2026'!#REF!=\"\",\"\",'Risk template_JUNE 2026'!#REF!)","v":{"$error":"#REF!"}},{"$f":"IF('Risk template_JUNE 2026'!#REF!=\"\",\"\",'Risk template_JUNE 2026'!#REF!)","v":{"$error":"#REF!"}},{"$f":"IF('Risk template_JUNE 2026'!#REF!=\"\",\"\",'Risk template_JUNE 2026'!#REF!)","v":{"$error":"#REF!"}},{"$f":"IF('Risk template_JUNE 2026'!#REF!=\"\",\"\",'Risk template_JUNE 2026'!#REF!)","v":{"$error":"#REF!"}},{"$f":"IF('Risk template_JUNE 2026'!#REF!=\"\",\"\",'Risk template_JUNE 2026'!#REF!)","v":{"$error":"#REF!"}},{"$f":"IF('Risk template_JUNE 2026'!#REF!=\"\",\"\",'Risk template_JUNE 2026'!#REF!)","v":{"$error":"#REF!"}},{"$f":"IF('Risk template_JUNE 2026'!#REF!=\"\",\"\",'Risk template_JUNE 2026'!#REF!)","v":{"$error":"#REF!"}},{"$f":"IF('Risk template_JUNE 2026'!#REF!=\"\",\"\",'Risk template_JUNE 2026'!#REF!)","v":{"$error":"#REF!"}},{"$f":"IF('Risk template_JUNE 2026'!#REF!=\"\",\"\",'Risk template_JUNE 2026'!#REF!)","v":{"$error":"#REF!"}},{"$f":"IF('Risk template_JUNE 2026'!#REF!=\"\",\"\",'Risk template_JUNE 2026'!#REF!)","v":{"$error":"#REF!"}}]
[{"$f":"IF('Risk template_JUNE 2026'!#REF!=\"\",\"\",'Risk template_JUNE 2026'!#REF!)","v":{"$error":"#REF!"}},{"$f":"IF('Risk template_JUNE 2026'!#REF!=\"\",\"\",'Risk template_JUNE 2026'!#REF!)","v":{"$error":"#REF!"}},{"$f":"IF('Risk template_JUNE 2026'!#REF!=\"\",\"\",'Risk template_JUNE 2026'!#REF!)","v":{"$error":"#REF!"}},{"$f":"IF('Risk template_JUNE 2026'!#REF!=\"\",\"\",'Risk template_JUNE 2026'!#REF!)","v":{"$error":"#REF!"}},{"$f":"IF('Risk template_JUNE 2026'!#REF!=\"\",\"\",'Risk template_JUNE 2026'!#REF!)","v":{"$error":"#REF!"}},{"$f":"IF('Risk template_JUNE 2026'!#REF!=\"\",\"\",'Risk template_JUNE 2026'!#REF!)","v":{"$error":"#REF!"}},{"$f":"IF('Risk template_JUNE 2026'!#REF!=\"\",\"\",'Risk template_JUNE 2026'!#REF!)","v":{"$error":"#REF!"}},{"$f":"IF('Risk template_JUNE 2026'!#REF!=\"\",\"\",'Risk template_JUNE 2026'!#REF!)","v":{"$error":"#REF!"}},{"$f":"IF('Risk template_JUNE 2026'!#REF!=\"\",\"\",'Risk template_JUNE 2026'!#REF!)","v":{"$error":"#REF!"}},{"$f":"IF('Risk template_JUNE 2026'!#REF!=\"\",\"\",'Risk template_JUNE 2026'!#REF!)","v":{"$error":"#REF!"}},{"$f":"IF('Risk template_JUNE 2026'!#REF!=\"\",\"\",'Risk template_JUNE 2026'!#REF!)","v":{"$error":"#REF!"}},{"$f":"IF('Risk template_JUNE 2026'!#REF!=\"\",\"\",'Risk template_JUNE 2026'!#REF!)","v":{"$error":"#REF!"}}]

{"sheet":"Consequence rating","index":3,"n_rows":10,"n_cols":3,"rows_kept":10}
[]
[null,null,"Consequence criteria "]
[null,"Consequence rating","Description"]
[null,null,"Health and Safety"]
[null,1,"No injuries or health effects(near misses)"]
[null,2,"First-aid treatment case,  and temporary discomfort case"]
[null,3,"Medical treatment case; occupational disease with reversible/non-permanent effect"]
[null,4,"Lost Time Injury. Irreversible health effects/occupational disease with permanent consequence "]
[null,5,"Fatality or life threatening health effects"]
[null,6,"Multiple fatalities "]

{"sheet":"Likelihood rating","index":4,"n_rows":18,"n_cols":9,"rows_kept":18,"merged":[[1,0,1,5],[2,4,2,5],[4,1,6,1],[4,2,6,2],[4,4,6,4],[4,5,6,5],[7,1,9,1],[7,2,9,2],[7,4,9,4],[7,5,9,5],[10,1,11,1],[10,2,11,2],[10,4,11,4],[10,5,11,5],[12,1,14,1],[12,2,14,2],[12,4,14,4],[12,5,14,5],[15,1,17,1],[15,2,17,2],[15,4,17,4],[15,5,17,5]]}
[]
["Likelihood criteria"]
[null,"Score","Descriptor","Safety","Occupational hygiene"]
[{"$nulls":4},"Exposure","Probability of exceeding OEL"]
[null,"A","Highly unlikely","§  More than a “100 year event” ","Rare (once a year)","No exposure (or exposure < 10% of OEL)"]
[{"$nulls":3},"§  Exceptionally unlikely, even in the long-term future"]
[{"$nulls":3},"§  < 5% probability."]
[null,"B","Unlikely","§  Could occur in “years to decades”","Short periods of time, a few times per day/ intermittent (once in six months, three months, or a month)","Low exposure (< 50% of OEL)"]
[{"$nulls":3},"§  May occur but not anticipated"]
[{"$nulls":3},"§  ≥ 5% and < 20% probability."]
[null,"C","Possible","§  Could occur within “months to years”","Continuous for between one and two hours (often/ weekly)","Moderate exposure (chronic exposure > 50% of OEL or acute exposure ≥ OEL)"]
[{"$nulls":3},"§  May occur shortly but a distinct probability it will not, or ≥ 20% and < 70% probability."]
[null,"D","Likely","§  Could occur within “weeks to months”","Continuous for between two and four hours (frequent/daily)","High exposure (chronic exposure > OEL, or exposure exceeding OEL-STEL)",null,null,"gv g"]
[{"$nulls":3},"§  Balance of probability will occur"]
[{"$nulls":3},"§  ≥ 70% and < 90% probability."]
[null,"E","Unavoidable","§  Could occur within “days to weeks”","Continuous for eight-hour shift","Very high exposure (chronic exposure > 2 x OEL or exposure exceeding OEL-C)"]
[{"$nulls":3},"§  Impact is imminent"]
[{"$nulls":3},"§  ≥ 90% probability."]

{"sheet":"Risk control effectiveness","index":5,"n_rows":8,"n_cols":3,"rows_kept":8,"merged":[[2,1,2,2]]}
[]
[]
[null,"RISK CONTROL EFFECTIVENESS GUIDE"]
[null,"             RCE","Guide"]
[null,"Fully effective","Nothing more to be done except review and monitor the existing controls. Controls are well designed for the risk, are largely preventive and address the root causes. Management believes that they are effective and reliable at all times. Reactive controls only support preventive controls."]
[null,"Mostly effective","Most controls are designed correctly and are in place and effective. Some more work to be done to improve operating effectiveness or management has doubts about operational effectiveness and reliability of the controls."]
[null,"Mostly ineffective","While the design of controls may be largely correct in that they treat most of the root causes of the risk, they are not currently operationally very effective. There may be an over-reliance on reactive controls, or some of the controls do not seem correctly designed in that they do not treat root causes."]
[null,"None","Virtually no credible control. Management has no confidence that any degree of control is being achieved."]

{"sheet":"Risk matrix","index":6,"n_rows":17,"n_cols":9,"rows_kept":17,"merged":[[1,4,1,8],[2,2,7,2],[9,4,9,8],[12,5,12,6],[13,5,13,6],[14,5,14,6],[15,5,15,6],[16,5,16,6]]}
[]
[{"$nulls":4},"RISK MATRIX"]
[null,null,"Consequences",6,"I","I","I","I","I"]
[{"$nulls":3},5,"II","II","II","I","I"]
[{"$nulls":3},4,"III","III","II","I","I"]
[{"$nulls":3},3,"IV","III","II","II","I"]
[{"$nulls":3},2,"IV","IV","III","II","II"]
[{"$nulls":3},1,"IV","IV","III","III","III"]
[{"$nulls":4},"A","B","C","D","E"]
[{"$nulls":4},"Likelihood"]
[]
[]
[{"$nulls":3},"Priority","Risk ranking","Action required"]
[{"$nulls":3},"I","Very high","Immediate action required, and these risks to be captured on IRM system."]
[{"$nulls":3},"II","High","Strong mandatory action required, and these risks to be captured on IRM system."]
[{"$nulls":3},"III","Medium","Action required, possibly at administrative level."]
[{"$nulls":3},"IV","Low","Minor or no action required."]